Supplier Name,Transaction Number, Paid Date, Paid Amount, Department,Costcentre,Description,Irrecoverable VAT
1 CALL BUSINESS SOLUTIONS LIMITED,1933188,04-Oct-19,831.60,Business Management ,B7950,Contracts With Voluntary Organisations,
1 CALL BUSINESS SOLUTIONS LIMITED,1933388,07-Oct-19,"1,980.00",Childrens Services ,H4011,Hired or Contracted services,
1 CALL BUSINESS SOLUTIONS LIMITED,1934122,10-Oct-19,"1,128.00",Delivery Services (Assistant Chief Executive) ,L4975,Grants to Voluntary Organisations,
1 CALL BUSINESS SOLUTIONS LIMITED,1938581,29-Oct-19,"6,434.16",Delivery Services (Assistant Chief Executive) ,L2080,Hired or Contracted services,
1 CALL BUSINESS SOLUTIONS LIMITED,1938581,29-Oct-19,"1,825.35",Delivery Services (Assistant Chief Executive) ,D2510,Hired or Contracted services,
1 CALL BUSINESS SOLUTIONS LIMITED,1938945,30-Oct-19,"2,399.46",Delivery Services (Assistant Chief Executive) ,L3970,Hired or Contracted services,
1 CALL BUSINESS SOLUTIONS LIMITED,1934918,15-Oct-19,"11,996.00",Delivery Services (Assistant Chief Executive) ,D2510,Hired or Contracted services,
1 CALL BUSINESS SOLUTIONS LIMITED,1937638,25-Oct-19,"2,820.00",Delivery Services (Assistant Chief Executive) ,D3140,"Repairs, alterations and maintenance",
101 DATA SOLUTIONS LIMITED,1936514,18-Oct-19,"5,068.80",Business Management ,F4410,Hired or Contracted services,
1ST ENABLE LIMITED,1933638,08-Oct-19,"14,012.78",Adult Care & Health ,S6121,Hired or Contracted services,
2MINDS NLP LIMITED,1937119,23-Oct-19,"1,149.40",Childrens Services ,E9965,Hired or Contracted services,
365 SUPPORT LIMITED,1934123,10-Oct-19,"93,926.43",Adult Care & Health ,S6132,16 Plus Non Accommodation,
4SIGHT COMMUNICATIONS LIMITED,1932322,03-Oct-19,"4,272.00",Business Management ,F4410,Specialist Contracts & Fees,
51 WELLINGTON ROAD RES HOME,1931682,01-Oct-19,"1,884.00",Adult Care & Health ,S6121,16 Plus Accommodation,
51 WELLINGTON ROAD RES HOME,1931682,01-Oct-19,"1,884.00",Adult Care & Health ,S6142,16 Plus Non Accommodation,
51 WELLINGTON ROAD RES HOME,1931682,01-Oct-19,"1,884.00",Adult Care & Health ,S6121,Hired or Contracted services,
51 WELLINGTON ROAD RES HOME,1931682,01-Oct-19,"1,884.00",Adult Care & Health ,S6141,Hired or Contracted services,
51 WELLINGTON ROAD RES HOME,1931682,01-Oct-19,"1,884.00",Adult Care & Health ,S6121,Hired or Contracted services,
51 WELLINGTON ROAD RES HOME,1931682,01-Oct-19,"1,884.00",Adult Care & Health ,S6121,Hired or Contracted services,
51 WELLINGTON ROAD RES HOME,1931682,01-Oct-19,720.00,Adult Care & Health ,S6121,Hired or Contracted services,
51 WELLINGTON ROAD RES HOME,1938582,29-Oct-19,"1,884.00",Adult Care & Health ,S6141,Hired or Contracted services,
51 WELLINGTON ROAD RES HOME,1938582,29-Oct-19,"1,884.00",Adult Care & Health ,S6142,Hired or Contracted services,
51 WELLINGTON ROAD RES HOME,1938582,29-Oct-19,"1,884.00",Adult Care & Health ,S6142,Hired or Contracted services,
51 WELLINGTON ROAD RES HOME,1938582,29-Oct-19,"1,884.00",Adult Care & Health ,S6141,Hired or Contracted services,
51 WELLINGTON ROAD RES HOME,1938582,29-Oct-19,"1,884.00",Adult Care & Health ,S6121,Hired or Contracted services,
51 WELLINGTON ROAD RES HOME,1938582,29-Oct-19,"1,884.00",Adult Care & Health ,S6121,Hired or Contracted services,
51 WELLINGTON ROAD RES HOME,1938582,29-Oct-19,"1,884.00",Adult Care & Health ,S6121,Hired or Contracted services,
51 WELLINGTON ROAD RES HOME,1938582,29-Oct-19,"1,884.00",Adult Care & Health ,S6121,Hired or Contracted services,
51 WELLINGTON ROAD RES HOME,1931682,01-Oct-19,"1,884.00",Adult Care & Health ,S6142,Specialist Contracts & Fees,
51 WELLINGTON ROAD RES HOME,1931682,01-Oct-19,"1,884.00",Adult Care & Health ,S6141,Specialist Contracts & Fees,
51 WELLINGTON ROAD RES HOME,1938582,29-Oct-19,720.00,Adult Care & Health ,S6121,Specialist Contracts & Fees,
A & S MCKAY,1934685,14-Oct-19,"1,188.00",Delivery Services (Assistant Chief Executive) ,T4020,Specialist Contracts & Fees,
A E YATES LIMITED,1933864,09-Oct-19,"680,636.80",RE  Environment & Regulation,C5300,Hired or Contracted services,
A PYLE T/A AROMA,1935408,17-Oct-19,970.20,Childrens Services ,E9965,Hired or Contracted services,
A TEAM WIRRAL LIMITED,1934919,15-Oct-19,"13,738.41",Delivery Services (Assistant Chief Executive) ,E5730,Grants to Voluntary Organisations,
A TEAM WIRRAL LIMITED,1936763,21-Oct-19,"20,409.46",Delivery Services (Assistant Chief Executive) ,E5730,Grants to Voluntary Organisations,
A TEAM WIRRAL LIMITED,1938583,29-Oct-19,"15,088.03",Delivery Services (Assistant Chief Executive) ,E5730,Grants to Voluntary Organisations,
A TEAM WIRRAL LIMITED,1933389,07-Oct-19,"13,963.06",Delivery Services (Assistant Chief Executive) ,E5730,Specialist Contracts & Fees,
A WILDERNESS WAY LIMITED,1933639,08-Oct-19,"28,037.14",Childrens Services ,E7080,Contracts With Voluntary Organisations,
A WILDERNESS WAY LIMITED,1935158,16-Oct-19,"1,440.00",Childrens Services ,E7080,Grants to Voluntary Organisations,
A WILDERNESS WAY LIMITED,1933639,08-Oct-19,"1,440.00",Childrens Services ,E7080,Hired or Contracted services,
A1A TRAVEL,1934921,15-Oct-19,"17,655.10",Delivery Services (Assistant Chief Executive) ,E5730,Grants to Voluntary Organisations,
A1A TRAVEL,1934921,15-Oct-19,"17,655.10",Delivery Services (Assistant Chief Executive) ,E5730,Hired or Contracted services,
A1A TRAVEL,1938584,29-Oct-19,"17,655.10",Delivery Services (Assistant Chief Executive) ,E5730,Hired or Contracted services,
A2B TRAVEL (UK) LIMITED,1933390,07-Oct-19,"6,735.00",Delivery Services (Assistant Chief Executive) ,E5730,Hired or Contracted services,
A2B TRAVEL (UK) LIMITED,1933390,07-Oct-19,"2,238.30",Delivery Services (Assistant Chief Executive) ,E5730,Hired or Contracted services,
A2B TRAVEL (UK) LIMITED,1936764,21-Oct-19,"6,735.00",Delivery Services (Assistant Chief Executive) ,E5730,Hired or Contracted services,
A2B TRAVEL (UK) LIMITED,1936764,21-Oct-19,"2,238.30",Delivery Services (Assistant Chief Executive) ,E5730,Hired or Contracted services,
A2B TRAVEL (UK) LIMITED,1936764,21-Oct-19,"6,061.50",Delivery Services (Assistant Chief Executive) ,E5730,Hired or Contracted services,
A2B TRAVEL (UK) LIMITED,1936764,21-Oct-19,"2,238.30",Delivery Services (Assistant Chief Executive) ,E5730,Hired or Contracted services,
A2B TRAVEL (UK) LIMITED,1938585,29-Oct-19,"6,061.50",Delivery Services (Assistant Chief Executive) ,E5730,Hired or Contracted services,
A2B TRAVEL (UK) LIMITED,1934922,15-Oct-19,"6,061.50",Delivery Services (Assistant Chief Executive) ,E5730,Special Educ Needs Top Ups,
A2B TRAVEL (UK) LIMITED,1934922,15-Oct-19,"2,238.30",Delivery Services (Assistant Chief Executive) ,E5730,Special Educ Needs Top Ups,
A2B TRAVEL (UK) LIMITED,1938585,29-Oct-19,"2,238.30",Delivery Services (Assistant Chief Executive) ,E5730,Specialist Contracts & Fees,
AARON CARE GROUP LIMITED,1931683,01-Oct-19,"1,976.88",Adult Care & Health ,S6131,Hired or Contracted services,
AARON CARE GROUP LIMITED,1938586,29-Oct-19,"1,976.88",Adult Care & Health ,S6131,Hired or Contracted services,
ABBEY LAWNS LTD,1931685,01-Oct-19,"1,478.48",Adult Care & Health ,S6142,Grants to Voluntary Organisations,
ABBEY LAWNS LTD,1931685,01-Oct-19,-569.40,Adult Care & Health ,S6142,Hired or Contracted services,
ABBEY LAWNS LTD,1938587,29-Oct-19,-569.40,Adult Care & Health ,S6142,Hired or Contracted services,
ABBEY LAWNS LTD,1938587,29-Oct-19,"1,478.48",Adult Care & Health ,S6142,Hired or Contracted services,
ABBEYFIELD HOYLAKE & WEST KIRBY,1931686,01-Oct-19,"16,956.00",Adult Care & Health ,S6100,Hired or Contracted services,
ABBEYFIELD HOYLAKE & WEST KIRBY,1931686,01-Oct-19,"1,884.00",Adult Care & Health ,S6141,Hired or Contracted services,
ABBEYFIELD HOYLAKE & WEST KIRBY,1931686,01-Oct-19,672.86,Adult Care & Health ,S6131,Hired or Contracted services,
ABBEYFIELD HOYLAKE & WEST KIRBY,1938588,29-Oct-19,"16,956.00",Adult Care & Health ,S6100,Hired or Contracted services,
ABBEYFIELD HOYLAKE & WEST KIRBY,1938588,29-Oct-19,"1,884.00",Adult Care & Health ,S6141,Hired or Contracted services,
ABBEYFIELD HOYLAKE & WEST KIRBY,1931686,01-Oct-19,"1,884.00",Adult Care & Health ,S6142,Specialist Contracts & Fees,
ABBEYFIELD HOYLAKE & WEST KIRBY,1938588,29-Oct-19,"1,884.00",Adult Care & Health ,S6142,Specialist Contracts & Fees,
ABBEYFIELD WIRRAL EXTRA CARE,1938589,29-Oct-19,"1,884.00",Adult Care & Health ,S6132,Grants to Voluntary Organisations,
ABBEYFIELD WIRRAL EXTRA CARE,1938589,29-Oct-19,"1,884.00",Adult Care & Health ,S6132,Grants to Voluntary Organisations,
ABBEYFIELD WIRRAL EXTRA CARE,1938589,29-Oct-19,"1,884.00",Adult Care & Health ,S6132,Grants to Voluntary Organisations,
ABBEYFIELD WIRRAL EXTRA CARE,1931687,01-Oct-19,"1,884.00",Adult Care & Health ,S6132,Hired or Contracted services,
ABBEYFIELD WIRRAL EXTRA CARE,1931687,01-Oct-19,"1,884.00",Adult Care & Health ,S6141,Hired or Contracted services,
ABBEYFIELD WIRRAL EXTRA CARE,1931687,01-Oct-19,942.00,Adult Care & Health ,S6132,Hired or Contracted services,
ABBEYFIELD WIRRAL EXTRA CARE,1931687,01-Oct-19,672.86,Adult Care & Health ,S6132,Hired or Contracted services,
ABBEYFIELD WIRRAL EXTRA CARE,1938589,29-Oct-19,"1,884.00",Adult Care & Health ,S6132,Hired or Contracted services,
ABBEYFIELD WIRRAL EXTRA CARE,1938589,29-Oct-19,"1,884.00",Adult Care & Health ,S6142,Hired or Contracted services,
ABBEYFIELD WIRRAL EXTRA CARE,1938589,29-Oct-19,"1,884.00",Adult Care & Health ,S6141,Hired or Contracted services,
ABBEYFIELD WIRRAL EXTRA CARE,1938589,29-Oct-19,"1,884.00",Adult Care & Health ,S6141,Hired or Contracted services,
ABBEYFIELD WIRRAL EXTRA CARE,1938589,29-Oct-19,"1,884.00",Adult Care & Health ,S6132,Hired or Contracted services,
ABBEYFIELD WIRRAL EXTRA CARE,1938589,29-Oct-19,942.00,Adult Care & Health ,S6132,Hired or Contracted services,
ABBEYFIELD WIRRAL EXTRA CARE,1931687,01-Oct-19,"1,884.00",Adult Care & Health ,S6132,Specialist Contracts & Fees,
ABBEYFIELD WIRRAL EXTRA CARE,1931687,01-Oct-19,"1,884.00",Adult Care & Health ,S6142,Specialist Contracts & Fees,
ABBEYFIELD WIRRAL EXTRA CARE,1931687,01-Oct-19,"1,884.00",Adult Care & Health ,S6141,Specialist Contracts & Fees,
ABBEYFIELD WIRRAL EXTRA CARE,1931687,01-Oct-19,"1,884.00",Adult Care & Health ,S6132,Specialist Contracts & Fees,
ABBEYFIELD WIRRAL EXTRA CARE,1931687,01-Oct-19,"1,884.00",Adult Care & Health ,S6132,Specialist Contracts & Fees,
ABL HEALTH LIMITED,1934923,15-Oct-19,"58,156.50",Adult Care & Health ,P4040,Specialist Contracts & Fees,
ABOUT WITH FRIENDS,1933640,08-Oct-19,"1,008.24",Adult Care & Health ,S6161,Hired or Contracted services,
ACOR BUILDING AND PROPERTY SOLUTIONS LIMITED T/A WV CONSTRUCTION,1931688,01-Oct-19,"2,791.00",RE  Housing & Community Safety,C4212,Hired or Contracted services,
ACTION FOR CHILDREN SERVICES LIMITED(COMPANY),1938591,29-Oct-19,"11,181.30",Adult Care & Health ,P4090,Hired or Contracted services,
ACTIVE 8 SUPPORT SERVICES,1934686,14-Oct-19,"30,554.80",Childrens Services ,E9675,Hired or Contracted services,
ACTIVE 8 SUPPORT SERVICES,1933641,08-Oct-19,"1,339.17",Childrens Services ,E7081,Hired or Contracted services,
ACTIVE 8 SUPPORT SERVICES,1933641,08-Oct-19,"1,584.99",Childrens Services ,E7081,Hired or Contracted services,
ACTIVE 8 SUPPORT SERVICES,1933641,08-Oct-19,"1,806.41",Childrens Services ,E7081,Hired or Contracted services,
ACTIVE 8 SUPPORT SERVICES,1933641,08-Oct-19,"1,584.99",Childrens Services ,E7081,Hired or Contracted services,
ACTIVE 8 SUPPORT SERVICES,1933641,08-Oct-19,650.00,Childrens Services ,E7081,Hired or Contracted services,
ACTIVE 8 SUPPORT SERVICES,1933641,08-Oct-19,"1,363.56",Childrens Services ,E7081,Hired or Contracted services,
ACTIVE 8 SUPPORT SERVICES,1933641,08-Oct-19,"1,363.56",Childrens Services ,E7081,Hired or Contracted services,
ACTIVE 8 SUPPORT SERVICES,1934353,11-Oct-19,"1,533.86",Childrens Services ,E7081,Hired or Contracted services,
ACTIVE 8 SUPPORT SERVICES,1934353,11-Oct-19,"1,319.57",Childrens Services ,E7081,Hired or Contracted services,
ACTIVE 8 SUPPORT SERVICES,1934353,11-Oct-19,"1,319.57",Childrens Services ,E7081,Hired or Contracted services,
ACTIVE 8 SUPPORT SERVICES,1934353,11-Oct-19,"1,319.57",Childrens Services ,E7081,Hired or Contracted services,
ACTIVE 8 SUPPORT SERVICES,1933641,08-Oct-19,"1,363.56",Childrens Services ,E7081,Specialist Contracts & Fees,
ACTIVE 8 SUPPORT SERVICES,1933641,08-Oct-19,650.00,Childrens Services ,E7081,Specialist Contracts & Fees,
ACTIVE 8 SUPPORT SERVICES,1933641,08-Oct-19,650.00,Childrens Services ,E7081,Specialist Contracts & Fees,
ACTIVE 8 SUPPORT SERVICES,1934353,11-Oct-19,"1,748.14",Childrens Services ,E7081,Specialist Contracts & Fees,
ACTIVE 8 SUPPORT SERVICES,1934353,11-Oct-19,"1,533.86",Childrens Services ,E7081,Specialist Contracts & Fees,
ACTIVE TRAINING NETWORK LIMITED,1936517,18-Oct-19,"4,380.00",Delivery Services (Assistant Chief Executive) ,L1040,Hired or Contracted services,
ACTIVECARE LIMITED T/A WESTWOOD HALL,1938592,29-Oct-19,"1,533.00",Adult Care & Health ,S6132,Grants to Voluntary Organisations,
ACTIVECARE LIMITED T/A WESTWOOD HALL,1931689,01-Oct-19,"2,044.00",Adult Care & Health ,S6131,Hired or Contracted services,
ACTIVECARE LIMITED T/A WESTWOOD HALL,1931689,01-Oct-19,"2,044.00",Adult Care & Health ,S6131,Hired or Contracted services,
ACTIVECARE LIMITED T/A WESTWOOD HALL,1931689,01-Oct-19,"1,971.00",Adult Care & Health ,S6131,Hired or Contracted services,
ACTIVECARE LIMITED T/A WESTWOOD HALL,1938592,29-Oct-19,"2,044.00",Adult Care & Health ,S6131,Hired or Contracted services,
ACTIVECARE LIMITED T/A WESTWOOD HALL,1938592,29-Oct-19,"2,044.00",Adult Care & Health ,S6131,Hired or Contracted services,
ACTIVECARE LIMITED T/A WESTWOOD HALL,1938592,29-Oct-19,"2,044.00",Adult Care & Health ,S6131,Hired or Contracted services,
ACTIVECARE LIMITED T/A WESTWOOD HALL,1938592,29-Oct-19,"1,884.00",Adult Care & Health ,S6167,Hired or Contracted services,
ACTIVECARE LIMITED T/A WESTWOOD HALL,1931689,01-Oct-19,"1,884.00",Adult Care & Health ,S6167,Specialist Contracts & Fees,
ACTIVECARE LIMITED T/A WESTWOOD HALL,1931689,01-Oct-19,"1,884.00",Adult Care & Health ,S6131,Specialist Contracts & Fees,
ACTIVECARE LIMITED T/A WESTWOOD HALL,1931689,01-Oct-19,"2,044.00",Adult Care & Health ,S6131,Specialist Contracts & Fees,
ACTIVECARE LIMITED T/A WESTWOOD HALL,1938592,29-Oct-19,"1,884.00",Adult Care & Health ,S6131,Specialist Contracts & Fees,
ACTIVECARE LIMITED T/A WESTWOOD HALL,1938592,29-Oct-19,"2,044.00",Adult Care & Health ,S6132,Specialist Contracts & Fees,
ACTIVECARE LIMITED T/A WESTWOOD HALL,1938592,29-Oct-19,876.00,Adult Care & Health ,S6131,Specialist Contracts & Fees,
ADAMS SELFSTORE LLP,1932059,02-Oct-19,"1,073.10",Economic & Housing Growth ,H6080,Educational courses,
ADAMS SELFSTORE LLP,1932059,02-Oct-19,"1,073.10",Economic & Housing Growth ,H6080,Grants to Voluntary Organisations,
ADAMS SELFSTORE LLP,1932059,02-Oct-19,"1,195.25",Economic & Housing Growth ,H6080,Grants to Voluntary Organisations,
ADAMS SELFSTORE LLP,1938403,28-Oct-19,795.65,Economic & Housing Growth ,H6080,Grants to Voluntary Organisations,
ADEPT CLEANING SERVICES,1938593,29-Oct-19,"5,093.02",Delivery Services (Assistant Chief Executive) ,L3950,Hired or Contracted services,
ADOPTION MATTERS,1933866,09-Oct-19,815.25,Childrens Services ,E7041,Hired or Contracted services,
ADOPTION MATTERS,1933395,07-Oct-19,"1,049.00",Childrens Services ,E7041,Hired or Contracted services,
ADTAXIS-WIRRAL,1933396,07-Oct-19,"3,156.20",Delivery Services (Assistant Chief Executive) ,E5730,Contracts With Voluntary Organisations,
ADTAXIS-WIRRAL,1934924,15-Oct-19,"3,140.20",Delivery Services (Assistant Chief Executive) ,E5730,Hired or Contracted services,
ADTAXIS-WIRRAL,1936768,21-Oct-19,"2,965.20",Delivery Services (Assistant Chief Executive) ,E5730,Hired or Contracted services,
ADTAXIS-WIRRAL,1938594,29-Oct-19,"2,983.60",Delivery Services (Assistant Chief Executive) ,E5730,Hired or Contracted services,
ADVANCE SYSTEMS (NW) LIMITED,1931691,01-Oct-19,"1,089.77",Childrens Services ,H4090,Hired or Contracted services,
ADVANCE SYSTEMS (NW) LIMITED,1934355,11-Oct-19,"1,007.00",Childrens Services ,H4090,Hired or Contracted services,
ADVANCE SYSTEMS (NW) LIMITED,1939366,31-Oct-19,927.30,Childrens Services ,H4090,Hired or Contracted services,
ADVANCED CHILD CARE ASSESSMENTS LIMITED,1934687,14-Oct-19,"2,450.04",Business Management ,A1305,Hired or Contracted services,
ADVANCED CHILD CARE ASSESSMENTS LIMITED,1937362,24-Oct-19,"1,458.00",Business Management ,A1305,Hired or Contracted services,
ADVANCED CHILD CARE ASSESSMENTS LIMITED,1934356,11-Oct-19,627.16,Business Management ,A1305,Hired or Contracted services,
ADVANCED CHILD CARE ASSESSMENTS LIMITED,1938595,29-Oct-19,"2,327.04",Childrens Services ,E7025,Hired or Contracted services,
AECOM INFRASTRUCTURE & ENVIRONMENT UK LIMITED,1938948,30-Oct-19,"20,477.47",RE  Environment & Regulation,C3536,Hired or Contracted services,
AFTERCARE THE NEXT STEP LIMITED,1933642,08-Oct-19,"9,191.43",Childrens Services ,E7080,Grants to Voluntary Organisations,
AFTERCARE THE NEXT STEP LIMITED,1933642,08-Oct-19,"12,820.43",Childrens Services ,E7080,Hired or Contracted services,
AFTERCARE THE NEXT STEP LIMITED,1933642,08-Oct-19,"10,669.29",Childrens Services ,E7080,Hired or Contracted services,
AGE CONCERN WIRRAL T/A AGE UK WIRRAL,1931692,01-Oct-19,"2,100.00",Adult Care & Health ,S6131,Hired or Contracted services,
AGE CONCERN WIRRAL T/A AGE UK WIRRAL,1931692,01-Oct-19,"2,100.00",Adult Care & Health ,S6141,Hired or Contracted services,
AGE CONCERN WIRRAL T/A AGE UK WIRRAL,1931692,01-Oct-19,"2,100.00",Adult Care & Health ,S6131,Hired or Contracted services,
AGE CONCERN WIRRAL T/A AGE UK WIRRAL,1931692,01-Oct-19,"2,100.00",Adult Care & Health ,S6131,Hired or Contracted services,
AGE CONCERN WIRRAL T/A AGE UK WIRRAL,1931692,01-Oct-19,"2,100.00",Adult Care & Health ,S6142,Hired or Contracted services,
AGE CONCERN WIRRAL T/A AGE UK WIRRAL,1938596,29-Oct-19,"2,100.00",Adult Care & Health ,S6131,Hired or Contracted services,
AGE CONCERN WIRRAL T/A AGE UK WIRRAL,1938596,29-Oct-19,"2,100.00",Adult Care & Health ,S6131,Hired or Contracted services,
AGE CONCERN WIRRAL T/A AGE UK WIRRAL,1938596,29-Oct-19,"2,100.00",Adult Care & Health ,S6131,Hired or Contracted services,
AGE CONCERN WIRRAL T/A AGE UK WIRRAL,1938596,29-Oct-19,"2,100.00",Adult Care & Health ,S6142,Hired or Contracted services,
AGE CONCERN WIRRAL T/A AGE UK WIRRAL,1938596,29-Oct-19,"2,100.00",Adult Care & Health ,S6141,Hired or Contracted services,
AINTREE COACHES INT LIMITED T/A HELMS OF EASTHAM,1937123,23-Oct-19,"1,224.00",Delivery Services (Assistant Chief Executive) ,E5730,Grants to Voluntary Organisations,
ALAN  EVANS,1934688,14-Oct-19,810.00,Economic & Housing Growth ,B7070,Hired or Contracted services,
ALISON BLACK LIMITED T/A SPORTMAX,1937124,23-Oct-19,"1,716.38",Delivery Services (Assistant Chief Executive) ,L3320,Grants to Voluntary Organisations,
ALISON BLACK LIMITED T/A SPORTMAX,1934690,14-Oct-19,850.18,Delivery Services (Assistant Chief Executive) ,L3240,Specialist Contracts & Fees,
ALLIED HEALTHCARE GROUP LIMITED,1932064,02-Oct-19,"61,132.54",Adult Care & Health ,S6111,Hired or Contracted services,
ALLIED HEALTHCARE GROUP LIMITED,1936951,22-Oct-19,"2,535.00",Adult Care & Health ,S6121,Hired or Contracted services,
ALLIED PUBLICITY SERVICES (MANCHESTER) LIMITED,1938405,28-Oct-19,"1,633.16",Business Management ,F1120,Hired or Contracted services,
ALLISON ATHILL(CHILDMINDER),1938949,30-Oct-19,"1,075.20",Childrens Services ,E1170,16 Plus Non Accommodation,
ALLPAY LIMITED,1937125,23-Oct-19,"20,000.00",Business Management ,F6050,Benefits,
ALPHA (RSL) LTD,1937661,25-Oct-19,522.85,Economic & Housing Growth ,H7180,Grants Paid,
ALPHA (RSL) LTD,1933398,07-Oct-19,"156,638.02",RE  Housing & Community Safety,C4118,Expenditure on Capital Grants,
ALPHA PLUS FOSTERING LIMITED,1938406,28-Oct-19,"5,073.00",Childrens Services ,E7080,Care Provision,
ALPHA PLUS FOSTERING LIMITED,1938406,28-Oct-19,507.30,Childrens Services ,E7080,Care Provision,
ALPHABIOLABORATORIES LIMITED,1934693,14-Oct-19,700.80,Childrens Services ,E7035,Care Provision,
ALTERNATIVE APPROACH,1934360,11-Oct-19,"3,342.42",Childrens Services ,E7080,Care Provision,
AMBER BUTTON,1936953,22-Oct-19,"1,260.00",Childrens Services ,E6150,Hired or Contracted services,
AMBER FAMILY LIMITED,1934362,11-Oct-19,"19,750.00",Childrens Services ,E7080,16 Plus Non Accommodation,
AMENITY TREE CARE LIMITED,1938951,30-Oct-19,"1,355.56",Delivery Services (Assistant Chief Executive) ,L4976,16 Plus Non Accommodation,
AMENITY TREE CARE LIMITED,1933873,09-Oct-19,"1,549.20",Delivery Services (Assistant Chief Executive) ,L4976,Hired or Contracted services,
AMENITY TREE CARE LIMITED,1933645,08-Oct-19,"1,936.50",Delivery Services (Assistant Chief Executive) ,L4976,Hired or Contracted services,
AMENITY TREE CARE LIMITED,1933873,09-Oct-19,"1,549.20",Delivery Services (Assistant Chief Executive) ,L4976,Specialist Contracts & Fees,
AMEY OW LIMITED,1934130,10-Oct-19,"4,978.18",RE  Environment & Regulation,C5109,Specialist Contracts & Fees,
AMEY OW LIMITED,1934130,10-Oct-19,"10,589.84",RE  Environment & Regulation,C5300,Specialist Contracts & Fees,
ANAMAL DANCE COMPANY,1934930,15-Oct-19,"12,050.23",Delivery Services (Assistant Chief Executive) ,L3950,16 Plus Accommodation,
ANCHOR CAREHOMES GROUP LIMITED,1931697,01-Oct-19,"2,100.00",Adult Care & Health ,S6132,Contracts With Voluntary Organisations,
ANCHOR CAREHOMES GROUP LIMITED,1938598,29-Oct-19,"2,100.00",Adult Care & Health ,S6132,Contracts With Voluntary Organisations,
ANCHOR CAREHOMES GROUP LIMITED,1938598,29-Oct-19,"2,100.00",Adult Care & Health ,S6132,Educational courses,
ANCHOR CAREHOMES GROUP LIMITED,1931698,01-Oct-19,"1,884.00",Adult Care & Health ,S6141,Grants to Voluntary Organisations,
ANCHOR CAREHOMES GROUP LIMITED,1931698,01-Oct-19,"1,884.00",Adult Care & Health ,S6141,Grants to Voluntary Organisations,
ANCHOR CAREHOMES GROUP LIMITED,1931697,01-Oct-19,"2,100.00",Adult Care & Health ,S6142,Grants to Voluntary Organisations,
ANCHOR CAREHOMES GROUP LIMITED,1931697,01-Oct-19,"2,100.00",Adult Care & Health ,S6132,Grants to Voluntary Organisations,
ANCHOR CAREHOMES GROUP LIMITED,1931697,01-Oct-19,"2,100.00",Adult Care & Health ,S6142,Grants to Voluntary Organisations,
ANCHOR CAREHOMES GROUP LIMITED,1931697,01-Oct-19,"2,100.00",Adult Care & Health ,S6132,Grants to Voluntary Organisations,
ANCHOR CAREHOMES GROUP LIMITED,1938599,29-Oct-19,"1,884.00",Adult Care & Health ,S6132,Grants to Voluntary Organisations,
ANCHOR CAREHOMES GROUP LIMITED,1938599,29-Oct-19,"1,884.00",Adult Care & Health ,S6141,Grants to Voluntary Organisations,
ANCHOR CAREHOMES GROUP LIMITED,1938599,29-Oct-19,"1,884.00",Adult Care & Health ,S6141,Grants to Voluntary Organisations,
ANCHOR CAREHOMES GROUP LIMITED,1938598,29-Oct-19,"2,100.00",Adult Care & Health ,S6132,Grants to Voluntary Organisations,
ANCHOR CAREHOMES GROUP LIMITED,1938598,29-Oct-19,"1,884.00",Adult Care & Health ,S6132,Grants to Voluntary Organisations,
ANCHOR CAREHOMES GROUP LIMITED,1938598,29-Oct-19,"2,100.00",Adult Care & Health ,S6142,Grants to Voluntary Organisations,
ANCHOR CAREHOMES GROUP LIMITED,1938598,29-Oct-19,"2,100.00",Adult Care & Health ,S6132,Grants to Voluntary Organisations,
ANCHOR CAREHOMES GROUP LIMITED,1931698,01-Oct-19,"1,884.00",Adult Care & Health ,S6141,Hired or Contracted services,
ANCHOR CAREHOMES GROUP LIMITED,1931698,01-Oct-19,"1,884.00",Adult Care & Health ,S6141,Hired or Contracted services,
ANCHOR CAREHOMES GROUP LIMITED,1931698,01-Oct-19,"1,884.00",Adult Care & Health ,S6141,Hired or Contracted services,
ANCHOR CAREHOMES GROUP LIMITED,1931698,01-Oct-19,"1,884.00",Adult Care & Health ,S6141,Hired or Contracted services,
ANCHOR CAREHOMES GROUP LIMITED,1931698,01-Oct-19,"1,884.00",Adult Care & Health ,S6142,Hired or Contracted services,
ANCHOR CAREHOMES GROUP LIMITED,1931698,01-Oct-19,"1,884.00",Adult Care & Health ,S6141,Hired or Contracted services,
ANCHOR CAREHOMES GROUP LIMITED,1931698,01-Oct-19,"1,884.00",Adult Care & Health ,S6141,Hired or Contracted services,
ANCHOR CAREHOMES GROUP LIMITED,1931698,01-Oct-19,"1,884.00",Adult Care & Health ,S6141,Hired or Contracted services,
ANCHOR CAREHOMES GROUP LIMITED,1931698,01-Oct-19,"1,884.00",Adult Care & Health ,S6141,Hired or Contracted services,
ANCHOR CAREHOMES GROUP LIMITED,1931698,01-Oct-19,"1,884.00",Adult Care & Health ,S6132,Hired or Contracted services,
ANCHOR CAREHOMES GROUP LIMITED,1931698,01-Oct-19,"1,884.00",Adult Care & Health ,S6141,Hired or Contracted services,
ANCHOR CAREHOMES GROUP LIMITED,1931698,01-Oct-19,"1,884.00",Adult Care & Health ,S6141,Hired or Contracted services,
ANCHOR CAREHOMES GROUP LIMITED,1931698,01-Oct-19,"1,884.00",Adult Care & Health ,S6141,Hired or Contracted services,
ANCHOR CAREHOMES GROUP LIMITED,1931697,01-Oct-19,"1,884.00",Adult Care & Health ,S6132,Hired or Contracted services,
ANCHOR CAREHOMES GROUP LIMITED,1931697,01-Oct-19,"2,100.00",Adult Care & Health ,S6132,Hired or Contracted services,
ANCHOR CAREHOMES GROUP LIMITED,1931697,01-Oct-19,"2,100.00",Adult Care & Health ,S6142,Hired or Contracted services,
ANCHOR CAREHOMES GROUP LIMITED,1931697,01-Oct-19,"1,884.00",Adult Care & Health ,S6132,Hired or Contracted services,
ANCHOR CAREHOMES GROUP LIMITED,1931697,01-Oct-19,"2,100.00",Adult Care & Health ,S6142,Hired or Contracted services,
ANCHOR CAREHOMES GROUP LIMITED,1931697,01-Oct-19,"2,100.00",Adult Care & Health ,S6132,Hired or Contracted services,
ANCHOR CAREHOMES GROUP LIMITED,1931697,01-Oct-19,"1,884.00",Adult Care & Health ,S6132,Hired or Contracted services,
ANCHOR CAREHOMES GROUP LIMITED,1931697,01-Oct-19,"2,100.00",Adult Care & Health ,S6132,Hired or Contracted services,
ANCHOR CAREHOMES GROUP LIMITED,1931697,01-Oct-19,"2,100.00",Adult Care & Health ,S6132,Hired or Contracted services,
ANCHOR CAREHOMES GROUP LIMITED,1931697,01-Oct-19,"2,100.00",Adult Care & Health ,S6132,Hired or Contracted services,
ANCHOR CAREHOMES GROUP LIMITED,1931697,01-Oct-19,"2,100.00",Adult Care & Health ,S6167,Hired or Contracted services,
ANCHOR CAREHOMES GROUP LIMITED,1931697,01-Oct-19,"2,100.00",Adult Care & Health ,S6132,Hired or Contracted services,
ANCHOR CAREHOMES GROUP LIMITED,1931697,01-Oct-19,"2,100.00",Adult Care & Health ,S6167,Hired or Contracted services,
ANCHOR CAREHOMES GROUP LIMITED,1931697,01-Oct-19,"2,100.00",Adult Care & Health ,S6132,Hired or Contracted services,
ANCHOR CAREHOMES GROUP LIMITED,1931697,01-Oct-19,"2,100.00",Adult Care & Health ,S6167,Hired or Contracted services,
ANCHOR CAREHOMES GROUP LIMITED,1931697,01-Oct-19,"2,100.00",Adult Care & Health ,S6132,Hired or Contracted services,
ANCHOR CAREHOMES GROUP LIMITED,1931697,01-Oct-19,"1,884.00",Adult Care & Health ,S6132,Hired or Contracted services,
ANCHOR CAREHOMES GROUP LIMITED,1931697,01-Oct-19,"2,100.00",Adult Care & Health ,S6132,Hired or Contracted services,
ANCHOR CAREHOMES GROUP LIMITED,1931697,01-Oct-19,"2,100.00",Adult Care & Health ,S6132,Hired or Contracted services,
ANCHOR CAREHOMES GROUP LIMITED,1931697,01-Oct-19,"2,100.00",Adult Care & Health ,S6131,Hired or Contracted services,
ANCHOR CAREHOMES GROUP LIMITED,1931697,01-Oct-19,"1,884.00",Adult Care & Health ,S6132,Hired or Contracted services,
ANCHOR CAREHOMES GROUP LIMITED,1931697,01-Oct-19,"2,100.00",Adult Care & Health ,S6132,Hired or Contracted services,
ANCHOR CAREHOMES GROUP LIMITED,1931697,01-Oct-19,"2,100.00",Adult Care & Health ,S6167,Hired or Contracted services,
ANCHOR CAREHOMES GROUP LIMITED,1938599,29-Oct-19,"1,884.00",Adult Care & Health ,S6141,Hired or Contracted services,
ANCHOR CAREHOMES GROUP LIMITED,1938599,29-Oct-19,"1,884.00",Adult Care & Health ,S6141,Hired or Contracted services,
ANCHOR CAREHOMES GROUP LIMITED,1938599,29-Oct-19,"1,884.00",Adult Care & Health ,S6141,Hired or Contracted services,
ANCHOR CAREHOMES GROUP LIMITED,1938599,29-Oct-19,740.14,Adult Care & Health ,S6141,Hired or Contracted services,
ANCHOR CAREHOMES GROUP LIMITED,1938599,29-Oct-19,"1,884.00",Adult Care & Health ,S6141,Hired or Contracted services,
ANCHOR CAREHOMES GROUP LIMITED,1938599,29-Oct-19,"1,884.00",Adult Care & Health ,S6141,Hired or Contracted services,
ANCHOR CAREHOMES GROUP LIMITED,1938599,29-Oct-19,"1,884.00",Adult Care & Health ,S6132,Hired or Contracted services,
ANCHOR CAREHOMES GROUP LIMITED,1938599,29-Oct-19,"1,884.00",Adult Care & Health ,S6141,Hired or Contracted services,
ANCHOR CAREHOMES GROUP LIMITED,1938599,29-Oct-19,"1,884.00",Adult Care & Health ,S6141,Hired or Contracted services,
ANCHOR CAREHOMES GROUP LIMITED,1938599,29-Oct-19,"1,884.00",Adult Care & Health ,S6141,Hired or Contracted services,
ANCHOR CAREHOMES GROUP LIMITED,1938599,29-Oct-19,"1,884.00",Adult Care & Health ,S6141,Hired or Contracted services,
ANCHOR CAREHOMES GROUP LIMITED,1938599,29-Oct-19,"1,884.00",Adult Care & Health ,S6141,Hired or Contracted services,
ANCHOR CAREHOMES GROUP LIMITED,1938599,29-Oct-19,"1,884.00",Adult Care & Health ,S6141,Hired or Contracted services,
ANCHOR CAREHOMES GROUP LIMITED,1938599,29-Oct-19,"1,884.00",Adult Care & Health ,S6142,Hired or Contracted services,
ANCHOR CAREHOMES GROUP LIMITED,1938598,29-Oct-19,"1,884.00",Adult Care & Health ,S6132,Hired or Contracted services,
ANCHOR CAREHOMES GROUP LIMITED,1938598,29-Oct-19,"2,100.00",Adult Care & Health ,S6132,Hired or Contracted services,
ANCHOR CAREHOMES GROUP LIMITED,1938598,29-Oct-19,"2,100.00",Adult Care & Health ,S6142,Hired or Contracted services,
ANCHOR CAREHOMES GROUP LIMITED,1938598,29-Oct-19,"2,100.00",Adult Care & Health ,S6132,Hired or Contracted services,
ANCHOR CAREHOMES GROUP LIMITED,1938598,29-Oct-19,"2,100.00",Adult Care & Health ,S6132,Hired or Contracted services,
ANCHOR CAREHOMES GROUP LIMITED,1938598,29-Oct-19,"2,100.00",Adult Care & Health ,S6167,Hired or Contracted services,
ANCHOR CAREHOMES GROUP LIMITED,1938598,29-Oct-19,"2,100.00",Adult Care & Health ,S6132,Hired or Contracted services,
ANCHOR CAREHOMES GROUP LIMITED,1938598,29-Oct-19,"2,100.00",Adult Care & Health ,S6141,Hired or Contracted services,
ANCHOR CAREHOMES GROUP LIMITED,1938598,29-Oct-19,"2,100.00",Adult Care & Health ,S6142,Hired or Contracted services,
ANCHOR CAREHOMES GROUP LIMITED,1938598,29-Oct-19,"2,100.00",Adult Care & Health ,S6132,Hired or Contracted services,
ANCHOR CAREHOMES GROUP LIMITED,1938598,29-Oct-19,"2,100.00",Adult Care & Health ,S6141,Hired or Contracted services,
ANCHOR CAREHOMES GROUP LIMITED,1938598,29-Oct-19,"2,100.00",Adult Care & Health ,S6142,Hired or Contracted services,
ANCHOR CAREHOMES GROUP LIMITED,1938598,29-Oct-19,"2,100.00",Adult Care & Health ,S6132,Hired or Contracted services,
ANCHOR CAREHOMES GROUP LIMITED,1938598,29-Oct-19,"2,100.00",Adult Care & Health ,S6131,Hired or Contracted services,
ANCHOR CAREHOMES GROUP LIMITED,1938598,29-Oct-19,"2,100.00",Adult Care & Health ,S6132,Hired or Contracted services,
ANCHOR CAREHOMES GROUP LIMITED,1938598,29-Oct-19,"2,100.00",Adult Care & Health ,S6167,Hired or Contracted services,
ANCHOR CAREHOMES GROUP LIMITED,1938598,29-Oct-19,"2,100.00",Adult Care & Health ,S6167,Hired or Contracted services,
ANCHOR CAREHOMES GROUP LIMITED,1938598,29-Oct-19,"2,100.00",Adult Care & Health ,S6132,Hired or Contracted services,
ANCHOR CAREHOMES GROUP LIMITED,1938598,29-Oct-19,"1,884.00",Adult Care & Health ,S6132,Hired or Contracted services,
ANCHOR CAREHOMES GROUP LIMITED,1938598,29-Oct-19,"2,100.00",Adult Care & Health ,S6132,Hired or Contracted services,
ANCHOR CAREHOMES GROUP LIMITED,1938598,29-Oct-19,"1,800.00",Adult Care & Health ,S6141,Hired or Contracted services,
ANCHOR CAREHOMES GROUP LIMITED,1938598,29-Oct-19,"-2,100.00",Adult Care & Health ,S6132,Hired or Contracted services,
ANCHOR CAREHOMES GROUP LIMITED,1938598,29-Oct-19,-825.00,Adult Care & Health ,S6132,Hired or Contracted services,
ANCHOR CAREHOMES GROUP LIMITED,1938599,29-Oct-19,"1,816.71",Adult Care & Health ,S6141,Hired or Contracted services,
ANCHOR CAREHOMES GROUP LIMITED,1931697,01-Oct-19,"2,100.00",Adult Care & Health ,S6132,Special Educ Needs Top Ups,
ANCHOR CAREHOMES GROUP LIMITED,1931697,01-Oct-19,"2,100.00",Adult Care & Health ,S6132,Special Educ Needs Top Ups,
ANCHOR CAREHOMES GROUP LIMITED,1931698,01-Oct-19,"1,884.00",Adult Care & Health ,S6132,Specialist Contracts & Fees,
ANCHOR CAREHOMES GROUP LIMITED,1931698,01-Oct-19,"1,884.00",Adult Care & Health ,S6141,Specialist Contracts & Fees,
ANCHOR CAREHOMES GROUP LIMITED,1931698,01-Oct-19,"1,884.00",Adult Care & Health ,S6141,Specialist Contracts & Fees,
ANCHOR CAREHOMES GROUP LIMITED,1931697,01-Oct-19,"2,100.00",Adult Care & Health ,S6141,Specialist Contracts & Fees,
ANCHOR CAREHOMES GROUP LIMITED,1931697,01-Oct-19,"2,100.00",Adult Care & Health ,S6142,Specialist Contracts & Fees,
ANCHOR CAREHOMES GROUP LIMITED,1931697,01-Oct-19,"2,100.00",Adult Care & Health ,S6142,Specialist Contracts & Fees,
ANCHOR CAREHOMES GROUP LIMITED,1931697,01-Oct-19,"2,100.00",Adult Care & Health ,S6132,Specialist Contracts & Fees,
ANCHOR CAREHOMES GROUP LIMITED,1931697,01-Oct-19,"2,100.00",Adult Care & Health ,S6141,Specialist Contracts & Fees,
ANCHOR CAREHOMES GROUP LIMITED,1931697,01-Oct-19,"1,884.00",Adult Care & Health ,S6132,Specialist Contracts & Fees,
ANCHOR CAREHOMES GROUP LIMITED,1931697,01-Oct-19,"2,100.00",Adult Care & Health ,S6141,Specialist Contracts & Fees,
ANCHOR CAREHOMES GROUP LIMITED,1931697,01-Oct-19,"2,100.00",Adult Care & Health ,S6132,Specialist Contracts & Fees,
ANCHOR CAREHOMES GROUP LIMITED,1938599,29-Oct-19,"1,884.00",Adult Care & Health ,S6141,Specialist Contracts & Fees,
ANCHOR CAREHOMES GROUP LIMITED,1938598,29-Oct-19,"1,884.00",Adult Care & Health ,S6132,Specialist Contracts & Fees,
ANCHOR CAREHOMES GROUP LIMITED,1938598,29-Oct-19,"1,884.00",Adult Care & Health ,S6132,Specialist Contracts & Fees,
ANCHOR CAREHOMES GROUP LIMITED,1938598,29-Oct-19,"1,884.00",Adult Care & Health ,S6132,Specialist Contracts & Fees,
ANCHOR CAREHOMES GROUP LIMITED,1938598,29-Oct-19,"2,100.00",Adult Care & Health ,S6132,Specialist Contracts & Fees,
ANCHOR CAREHOMES GROUP LIMITED,1938598,29-Oct-19,"2,100.00",Adult Care & Health ,S6132,Specialist Contracts & Fees,
ANCHOR CAREHOMES GROUP LIMITED,1938598,29-Oct-19,"2,100.00",Adult Care & Health ,S6142,Specialist Contracts & Fees,
ANCHOR CAREHOMES GROUP LIMITED,1938598,29-Oct-19,"2,100.00",Adult Care & Health ,S6141,Specialist Contracts & Fees,
ANCHOR CAREHOMES GROUP LIMITED,1938598,29-Oct-19,"2,100.00",Adult Care & Health ,S6142,Specialist Contracts & Fees,
ANCHOR CAREHOMES GROUP LIMITED,1938598,29-Oct-19,"2,100.00",Adult Care & Health ,S6132,Specialist Contracts & Fees,
ANCHOR CAREHOMES GROUP LIMITED,1938598,29-Oct-19,"2,100.00",Adult Care & Health ,S6167,Specialist Contracts & Fees,
ANCHOR CAREHOMES GROUP LIMITED,1938598,29-Oct-19,"2,100.00",Adult Care & Health ,S6132,Specialist Contracts & Fees,
ANCHOR TRUST                  ,1938600,29-Oct-19,"1,884.00",Adult Care & Health ,S6167,16 Plus Non Accommodation,
ANCHOR TRUST                  ,1931699,01-Oct-19,"1,884.00",Adult Care & Health ,S6142,Grants to Voluntary Organisations,
ANCHOR TRUST                  ,1938600,29-Oct-19,"1,884.00",Adult Care & Health ,S6142,Grants to Voluntary Organisations,
ANCHOR TRUST                  ,1938600,29-Oct-19,"1,884.00",Adult Care & Health ,S6142,Grants to Voluntary Organisations,
ANCHOR TRUST                  ,1931699,01-Oct-19,"1,884.00",Adult Care & Health ,S6141,Hired or Contracted services,
ANCHOR TRUST                  ,1931699,01-Oct-19,"1,884.00",Adult Care & Health ,S6141,Hired or Contracted services,
ANCHOR TRUST                  ,1931699,01-Oct-19,"1,884.00",Adult Care & Health ,S6142,Hired or Contracted services,
ANCHOR TRUST                  ,1931699,01-Oct-19,"1,884.00",Adult Care & Health ,S6132,Hired or Contracted services,
ANCHOR TRUST                  ,1931699,01-Oct-19,"1,884.00",Adult Care & Health ,S6142,Hired or Contracted services,
ANCHOR TRUST                  ,1931699,01-Oct-19,"1,884.00",Adult Care & Health ,S6167,Hired or Contracted services,
ANCHOR TRUST                  ,1931699,01-Oct-19,"1,884.00",Adult Care & Health ,S6167,Hired or Contracted services,
ANCHOR TRUST                  ,1931699,01-Oct-19,"1,884.00",Adult Care & Health ,S6142,Hired or Contracted services,
ANCHOR TRUST                  ,1931699,01-Oct-19,"1,884.00",Adult Care & Health ,S6142,Hired or Contracted services,
ANCHOR TRUST                  ,1931699,01-Oct-19,"1,884.00",Adult Care & Health ,S6142,Hired or Contracted services,
ANCHOR TRUST                  ,1931699,01-Oct-19,"1,884.00",Adult Care & Health ,S6142,Hired or Contracted services,
ANCHOR TRUST                  ,1931699,01-Oct-19,"1,884.00",Adult Care & Health ,S6142,Hired or Contracted services,
ANCHOR TRUST                  ,1938600,29-Oct-19,"1,884.00",Adult Care & Health ,S6167,Hired or Contracted services,
ANCHOR TRUST                  ,1938600,29-Oct-19,"1,884.00",Adult Care & Health ,S6142,Hired or Contracted services,
ANCHOR TRUST                  ,1938600,29-Oct-19,"1,884.00",Adult Care & Health ,S6142,Hired or Contracted services,
ANCHOR TRUST                  ,1938600,29-Oct-19,"1,884.00",Adult Care & Health ,S6132,Hired or Contracted services,
ANCHOR TRUST                  ,1938600,29-Oct-19,"1,884.00",Adult Care & Health ,S6141,Hired or Contracted services,
ANCHOR TRUST                  ,1938600,29-Oct-19,"1,884.00",Adult Care & Health ,S6141,Hired or Contracted services,
ANCHOR TRUST                  ,1938600,29-Oct-19,"1,884.00",Adult Care & Health ,S6142,Hired or Contracted services,
ANCHOR TRUST                  ,1938600,29-Oct-19,"1,547.57",Adult Care & Health ,S6142,Hired or Contracted services,
ANCHOR TRUST                  ,1938600,29-Oct-19,"1,884.00",Adult Care & Health ,S6142,Hired or Contracted services,
ANCHOR TRUST                  ,1938600,29-Oct-19,"1,884.00",Adult Care & Health ,S6142,Hired or Contracted services,
ANCHOR TRUST                  ,1938600,29-Oct-19,"1,884.00",Adult Care & Health ,S6142,Specialist Contracts & Fees,
ANCHOR TRUST                  ,1937666,25-Oct-19,627.13,Economic & Housing Growth ,H7180,Grants Paid,
ANCHOR TRUST                  ,1937666,25-Oct-19,667.45,Economic & Housing Growth ,H7180,Grants Paid,
ANCHOR TRUST HOMES,1931700,01-Oct-19,"1,884.00",Adult Care & Health ,S6141,Memory & Cognition Support - Older People (65+),
ANCHOR TRUST HOMES,1931700,01-Oct-19,"1,884.00",Adult Care & Health ,S6132,Memory & Cognition Support - Older People (65+),
ANCHOR TRUST HOMES,1938601,29-Oct-19,"1,884.00",Adult Care & Health ,S6141,Memory & Cognition Support - Older People (65+),
ANCHOR TRUST HOMES,1938601,29-Oct-19,"1,884.00",Adult Care & Health ,S6132,Memory & Cognition Support - Older People (65+),
ANCHOR TRUST HOMES,1931700,01-Oct-19,"1,884.00",Adult Care & Health ,S6132,Mental Health Support - Older People (65+),
ANCHOR TRUST HOMES,1931700,01-Oct-19,"1,884.00",Adult Care & Health ,S6141,Mental Health Support - Older People (65+),
ANCHOR TRUST HOMES,1931700,01-Oct-19,"1,884.00",Adult Care & Health ,S6166,Mental Health Support - Older People (65+),
ANCHOR TRUST HOMES,1931700,01-Oct-19,"1,808.00",Adult Care & Health ,S6132,Mental Health Support - Older People (65+),
ANCHOR TRUST HOMES,1931700,01-Oct-19,538.29,Adult Care & Health ,S6132,Mental Health Support - Older People (65+),
ANCHOR TRUST HOMES,1931700,01-Oct-19,"1,884.00",Adult Care & Health ,S6132,Mental Health Support - Older People (65+),
ANCHOR TRUST HOMES,1938601,29-Oct-19,"1,884.00",Adult Care & Health ,S6132,Mental Health Support - Older People (65+),
ANCHOR TRUST HOMES,1938601,29-Oct-19,"1,884.00",Adult Care & Health ,S6166,Mental Health Support - Older People (65+),
ANCHOR TRUST HOMES,1938601,29-Oct-19,"1,808.00",Adult Care & Health ,S6132,Mental Health Support - Older People (65+),
ANCHOR TRUST HOMES,1938601,29-Oct-19,"1,884.00",Adult Care & Health ,S6132,Mental Health Support - Older People (65+),
ANCHOR TRUST HOMES,1938601,29-Oct-19,"1,884.00",Adult Care & Health ,S6141,Mental Health Support - Older People (65+),
ANCHOR TRUST HOMES,1931700,01-Oct-19,"1,884.00",Adult Care & Health ,S6141,Physical Support - Older People (65+),
ANCHOR TRUST HOMES,1931700,01-Oct-19,"1,884.00",Adult Care & Health ,S6167,Physical Support - Older People (65+),
ANCHOR TRUST HOMES,1931700,01-Oct-19,"1,884.00",Adult Care & Health ,S6132,Physical Support - Older People (65+),
ANCHOR TRUST HOMES,1931700,01-Oct-19,"1,884.00",Adult Care & Health ,S6132,Physical Support - Older People (65+),
ANCHOR TRUST HOMES,1931700,01-Oct-19,"1,884.00",Adult Care & Health ,S6141,Physical Support - Older People (65+),
ANCHOR TRUST HOMES,1931700,01-Oct-19,"1,884.00",Adult Care & Health ,S6132,Physical Support - Older People (65+),
ANCHOR TRUST HOMES,1931700,01-Oct-19,"1,884.00",Adult Care & Health ,S6131,Physical Support - Older People (65+),
ANCHOR TRUST HOMES,1931700,01-Oct-19,"1,884.00",Adult Care & Health ,S6131,Physical Support - Older People (65+),
ANCHOR TRUST HOMES,1931700,01-Oct-19,"1,884.00",Adult Care & Health ,S6142,Physical Support - Older People (65+),
ANCHOR TRUST HOMES,1931700,01-Oct-19,"1,884.00",Adult Care & Health ,S6132,Physical Support - Older People (65+),
ANCHOR TRUST HOMES,1931700,01-Oct-19,"1,884.00",Adult Care & Health ,S6132,Physical Support - Older People (65+),
ANCHOR TRUST HOMES,1931700,01-Oct-19,"1,884.00",Adult Care & Health ,S6141,Physical Support - Older People (65+),
ANCHOR TRUST HOMES,1931700,01-Oct-19,"1,884.00",Adult Care & Health ,S6132,Physical Support - Older People (65+),
ANCHOR TRUST HOMES,1931700,01-Oct-19,"1,884.00",Adult Care & Health ,S6132,Physical Support - Older People (65+),
ANCHOR TRUST HOMES,1938601,29-Oct-19,"1,884.00",Adult Care & Health ,S6141,Physical Support - Older People (65+),
ANCHOR TRUST HOMES,1938601,29-Oct-19,"1,884.00",Adult Care & Health ,S6167,Physical Support - Older People (65+),
ANCHOR TRUST HOMES,1938601,29-Oct-19,"1,884.00",Adult Care & Health ,S6132,Physical Support - Older People (65+),
ANCHOR TRUST HOMES,1938601,29-Oct-19,"1,884.00",Adult Care & Health ,S6141,Physical Support - Older People (65+),
ANCHOR TRUST HOMES,1938601,29-Oct-19,"1,884.00",Adult Care & Health ,S6132,Physical Support - Older People (65+),
ANCHOR TRUST HOMES,1938601,29-Oct-19,605.57,Adult Care & Health ,S6132,Physical Support - Older People (65+),
ANCHOR TRUST HOMES,1938601,29-Oct-19,"1,884.00",Adult Care & Health ,S6132,Physical Support - Older People (65+),
ANCHOR TRUST HOMES,1938601,29-Oct-19,"1,884.00",Adult Care & Health ,S6132,Physical Support - Older People (65+),
ANCHOR TRUST HOMES,1938601,29-Oct-19,"1,884.00",Adult Care & Health ,S6131,Physical Support - Older People (65+),
ANCHOR TRUST HOMES,1938601,29-Oct-19,"1,884.00",Adult Care & Health ,S6131,Physical Support - Older People (65+),
ANCHOR TRUST HOMES,1938601,29-Oct-19,"1,884.00",Adult Care & Health ,S6132,Physical Support - Older People (65+),
ANCHOR TRUST HOMES,1938601,29-Oct-19,"1,884.00",Adult Care & Health ,S6142,Physical Support - Older People (65+),
ANCHOR TRUST HOMES,1938601,29-Oct-19,672.86,Adult Care & Health ,S6142,Physical Support - Older People (65+),
ANCHOR TRUST HOMES,1938601,29-Oct-19,"1,884.00",Adult Care & Health ,S6132,Physical Support - Older People (65+),
ANCHOR TRUST HOMES,1938601,29-Oct-19,"1,884.00",Adult Care & Health ,S6141,Physical Support - Older People (65+),
ANCHOR TRUST HOMES,1938601,29-Oct-19,"1,682.14",Adult Care & Health ,S6141,Physical Support - Older People (65+),
ANCHOR TRUST HOMES,1938601,29-Oct-19,"1,884.00",Adult Care & Health ,S6141,Physical Support - Older People (65+),
ANCHOR TRUST HOMES,1938601,29-Oct-19,"1,345.71",Adult Care & Health ,S6132,Physical Support - Older People (65+),
ANCHOR TRUST HOMES,1931700,01-Oct-19,"1,884.00",Adult Care & Health ,S6132,Social Care Activities,
ANCHOR TRUST HOMES,1938601,29-Oct-19,"1,884.00",Adult Care & Health ,S6132,Social Care Activities,
ANGELS CARE WIRRAL LIMITED,1933646,08-Oct-19,722.00,Adult Care & Health ,S6141,Physical Support - Older People (65+),
ANNA'S LITTLE ANGELS - ANNA COOK,1938954,30-Oct-19,"1,075.20",Childrens Services ,E1170,Services,
ANNA'S LITTLE ANGELS - ANNA COOK,1938954,30-Oct-19,"1,688.40",Childrens Services ,E1170,Services,
ANSCO SIGNS LIMITED,1933400,07-Oct-19,"2,093.71",Delivery Services (Assistant Chief Executive) ,V1920,"Equipment, Furniture & Materials",
ANTALIS LIMITED,1933647,08-Oct-19,968.45,Business Management ,F3000,"Equipment, Furniture & Materials",
APEX CHILDRENS SERVICES LIMITED,1934133,10-Oct-19,"11,165.70",Childrens Services ,E7080,Care Provision,
APEX CHILDRENS SERVICES LIMITED,1934133,10-Oct-19,"11,165.70",Childrens Services ,E7080,Care Provision,
APEX CHILDRENS SERVICES LIMITED,1934133,10-Oct-19,"12,009.99",Childrens Services ,E7080,Care Provision,
APOLLO CARE (WIRRAL) LIMITED,1933648,08-Oct-19,"5,725.20",Adult Care & Health ,S6111,Physical Support - Older People (65+),
APOLLO CARE (WIRRAL) LIMITED,1934700,14-Oct-19,"6,567.60",Adult Care & Health ,S6111,Physical Support - Older People (65+),
APOLLO CARE (WIRRAL) LIMITED,1937128,23-Oct-19,"2,386.80",Adult Care & Health ,S6167,Physical Support - Older People (65+),
APPLE BLOSSOM COURT LIMITED,1931701,01-Oct-19,"1,759.08",Adult Care & Health ,S6121,Learning & Disability Support - Adults (18-64),
APPLE BLOSSOM COURT LIMITED,1931701,01-Oct-19,"1,093.68",Adult Care & Health ,S6121,Learning & Disability Support - Adults (18-64),
APPLE BLOSSOM COURT LIMITED,1931701,01-Oct-19,"2,228.16",Adult Care & Health ,S6142,Learning & Disability Support - Adults (18-64),
APPLE BLOSSOM COURT LIMITED,1931701,01-Oct-19,"2,738.00",Adult Care & Health ,S6121,Learning & Disability Support - Adults (18-64),
APPLE BLOSSOM COURT LIMITED,1931701,01-Oct-19,"1,884.00",Adult Care & Health ,S6142,Learning & Disability Support - Adults (18-64),
APPLE BLOSSOM COURT LIMITED,1931701,01-Oct-19,"2,460.00",Adult Care & Health ,S6121,Learning & Disability Support - Adults (18-64),
APPLE BLOSSOM COURT LIMITED,1931701,01-Oct-19,"1,884.00",Adult Care & Health ,S6142,Learning & Disability Support - Adults (18-64),
APPLE BLOSSOM COURT LIMITED,1931701,01-Oct-19,"1,093.68",Adult Care & Health ,S6142,Learning & Disability Support - Adults (18-64),
APPLE BLOSSOM COURT LIMITED,1931701,01-Oct-19,813.00,Adult Care & Health ,S6121,Learning & Disability Support - Adults (18-64),
APPLE BLOSSOM COURT LIMITED,1931701,01-Oct-19,"1,884.00",Adult Care & Health ,S6121,Learning & Disability Support - Adults (18-64),
APPLE BLOSSOM COURT LIMITED,1931701,01-Oct-19,"2,688.60",Adult Care & Health ,S6121,Learning & Disability Support - Adults (18-64),
APPLE BLOSSOM COURT LIMITED,1931701,01-Oct-19,"3,283.64",Adult Care & Health ,S6121,Learning & Disability Support - Adults (18-64),
APPLE BLOSSOM COURT LIMITED,1938602,29-Oct-19,"1,884.00",Adult Care & Health ,S6142,Learning & Disability Support - Adults (18-64),
APPLE BLOSSOM COURT LIMITED,1938602,29-Oct-19,"1,884.00",Adult Care & Health ,S6121,Learning & Disability Support - Adults (18-64),
APPLE BLOSSOM COURT LIMITED,1938602,29-Oct-19,"1,884.00",Adult Care & Health ,S6142,Learning & Disability Support - Adults (18-64),
APPLE BLOSSOM COURT LIMITED,1938602,29-Oct-19,"2,228.16",Adult Care & Health ,S6142,Learning & Disability Support - Adults (18-64),
APPLE BLOSSOM COURT LIMITED,1938602,29-Oct-19,"1,093.68",Adult Care & Health ,S6142,Learning & Disability Support - Adults (18-64),
APPLE BLOSSOM COURT LIMITED,1938602,29-Oct-19,"2,738.00",Adult Care & Health ,S6121,Learning & Disability Support - Adults (18-64),
APPLE BLOSSOM COURT LIMITED,1938602,29-Oct-19,"2,688.60",Adult Care & Health ,S6121,Learning & Disability Support - Adults (18-64),
APPLE BLOSSOM COURT LIMITED,1938602,29-Oct-19,"1,093.68",Adult Care & Health ,S6121,Learning & Disability Support - Adults (18-64),
APPLE BLOSSOM COURT LIMITED,1938602,29-Oct-19,"3,283.64",Adult Care & Health ,S6121,Learning & Disability Support - Adults (18-64),
APPLE BLOSSOM COURT LIMITED,1938602,29-Oct-19,"1,759.08",Adult Care & Health ,S6121,Learning & Disability Support - Adults (18-64),
APPLE BLOSSOM COURT LIMITED,1938602,29-Oct-19,813.00,Adult Care & Health ,S6121,Learning & Disability Support - Adults (18-64),
APPLE BLOSSOM COURT LIMITED,1938602,29-Oct-19,"2,460.00",Adult Care & Health ,S6121,Learning & Disability Support - Adults (18-64),
APPLE BLOSSOM COURT LIMITED,1931701,01-Oct-19,"2,614.84",Adult Care & Health ,S6121,Learning & Disability Support - Older People (65+),
APPLE BLOSSOM COURT LIMITED,1938602,29-Oct-19,"2,614.84",Adult Care & Health ,S6121,Learning & Disability Support - Older People (65+),
APPLE BLOSSOM COURT LIMITED,1931701,01-Oct-19,"1,884.00",Adult Care & Health ,S6142,Physical Support - Adults (18-64),
APPLE BLOSSOM COURT LIMITED,1938602,29-Oct-19,"1,884.00",Adult Care & Health ,S6142,Physical Support - Adults (18-64),
ARC4 LIMITED,1938956,30-Oct-19,"2,550.00",Economic & Housing Growth ,H6080,Specialist Contracts & Fees,
ARCO LTD,1937371,24-Oct-19,849.91,Delivery Services (Assistant Chief Executive) ,L3320,Hired or Contracted services,
ARDEN PLANT LTD T/A PETER DOUGLASS PLATFORMS,1933199,04-Oct-19,"1,554.00",Delivery Services (Assistant Chief Executive) ,T4020,Hired or Contracted services,
ARGYLE SATELLITE CONTRACT SERVICE LIMITED,1934936,15-Oct-19,"5,295.23",Delivery Services (Assistant Chief Executive) ,E5730,16 Plus Accommodation,
ARGYLE SATELLITE CONTRACT SERVICE LIMITED,1933403,07-Oct-19,"2,601.12",Delivery Services (Assistant Chief Executive) ,S5600,16 Plus Non Accommodation,
ARGYLE SATELLITE CONTRACT SERVICE LIMITED,1936776,21-Oct-19,"2,457.24",Delivery Services (Assistant Chief Executive) ,S5600,Care Provision,
ARGYLE SATELLITE CONTRACT SERVICE LIMITED,1938603,29-Oct-19,"2,005.50",Delivery Services (Assistant Chief Executive) ,S5600,Care Provision,
ARGYLE SATELLITE CONTRACT SERVICE LIMITED,1936776,21-Oct-19,"5,072.73",Delivery Services (Assistant Chief Executive) ,E5730,School Transport - Primary,
ARGYLE SATELLITE CONTRACT SERVICE LIMITED,1938603,29-Oct-19,"5,099.15",Delivery Services (Assistant Chief Executive) ,E5730,School Transport - Primary,
ARGYLE SATELLITE CONTRACT SERVICE LIMITED,1933403,07-Oct-19,"5,349.24",Delivery Services (Assistant Chief Executive) ,E5730,Specialist Contracts & Fees,
ARGYLE SATELLITE CONTRACT SERVICE LIMITED,1934936,15-Oct-19,"2,320.44",Delivery Services (Assistant Chief Executive) ,S5600,Specialist Contracts & Fees,
ARIEL TRUST LIMITED,1939428,31-Oct-19,"1,500.00",Childrens Services ,H4080,"Equipment, Furniture & Materials",
ARK COMMUNITY TRANSPORT,1933404,07-Oct-19,"10,098.00",Delivery Services (Assistant Chief Executive) ,S5600,Care Provision,
ARK COMMUNITY TRANSPORT,1934938,15-Oct-19,"10,098.00",Delivery Services (Assistant Chief Executive) ,S5600,Care Provision,
ARK COMMUNITY TRANSPORT,1936777,21-Oct-19,"10,098.00",Delivery Services (Assistant Chief Executive) ,S5600,Care Provision,
ARK COMMUNITY TRANSPORT,1938604,29-Oct-19,"10,098.00",Delivery Services (Assistant Chief Executive) ,S5600,Care Provision,
ARTEMIS MEDICAL SOLUTIONS UK LIMITED/MARK FRASER,1933881,09-Oct-19,"3,730.80",Delivery Services (Assistant Chief Executive) ,L4950,Services,
ARVAL UK LIMITED,1934374,11-Oct-19,882.18,Delivery Services (Assistant Chief Executive) ,T4020,Contract Hire & Operating Leases,
ARVAL UK LIMITED,1933882,09-Oct-19,882.18,Delivery Services (Assistant Chief Executive) ,T4020,Contract Hire & Operating Leases,
ASBESTOS CONTROL & TREATMENT LIMITED,1934706,14-Oct-19,"5,976.00",Children & Young People,C0625,Contractors - Main,
ASBESTOS CONTROL & TREATMENT LIMITED,1934941,15-Oct-19,"23,377.72",Children & Young People,C2820,Contractors - Main,
ASBESTOS CONTROL & TREATMENT LIMITED,1934941,15-Oct-19,"9,049.37",Children & Young People,C2092,Contractors - Main,
ASBESTOS CONTROL & TREATMENT LIMITED,1934941,15-Oct-19,959.42,Children & Young People,C2092,Contractors - Main,
ASBESTOS CONTROL & TREATMENT LIMITED,1934706,14-Oct-19,"5,272.32",Delivery Services (Assistant Chief Executive) ,D8102,"Repairs, alterations and maintenance",
ASBESTOS CONTROL & TREATMENT LIMITED,1937131,23-Oct-19,"3,863.80",Transformation and Resources,C0049,Contractors - Main,
ASBESTOS CONTROL & TREATMENT LIMITED,1937131,23-Oct-19,"2,842.16",Transformation and Resources,C8059,Contractors - Main,
ASBESTOS CONTROL & TREATMENT LIMITED,1937131,23-Oct-19,"8,827.10",Transformation and Resources,C8059,Contractors - Main,
ASD LIGHTING PLC,1938607,29-Oct-19,"61,464.00",RE  Environment & Regulation,C5233,Contractors - Main,
ASH HOUSE DAY NURSERY,1938958,30-Oct-19,"5,913.60",Childrens Services ,E1170,Services,
ASH HOUSE DAY NURSERY,1938958,30-Oct-19,"10,270.94",Childrens Services ,E1170,Services,
ASKONAS HOLT LIMITED,1935481,17-Oct-19,"2,700.00",Delivery Services (Assistant Chief Executive) ,L3950,"Advertising, Publicity & Marketing",
ASPIRATIONS CARE,1936528,18-Oct-19,"64,925.38",Adult Care & Health ,S6121,Learning & Disability Support - Adults (18-64),
ASPIRE CARE SUPPORT SERVICES LIMITED,1934137,10-Oct-19,"16,922.10",Adult Care & Health ,S6131,Physical Support - Older People (65+),
ASSOCIATED NEWSPAPER LIMITED,1933201,04-Oct-19,900.00,Business Management ,F4803,Hired or Contracted services,
ASSOCIATION FOR PUBLIC SERVICE EXCELLENCE (APSE),1933653,08-Oct-19,715.20,Delivery Services (Assistant Chief Executive) ,V2230,"Repairs, alterations and maintenance",
ASSOCIATION OF INDEPENDENT LSCB CHAIRS LIMITED,1932388,03-Oct-19,"1,500.00",Childrens Services ,E9690,Grants & Subscriptions,
ASSURED HEALTHCARE SOLUTIONS LIMITED,1931703,01-Oct-19,"1,894.60",Adult Care & Health ,S6131,Memory & Cognition Support - Older People (65+),
ASSURED HEALTHCARE SOLUTIONS LIMITED,1938608,29-Oct-19,"1,894.60",Adult Care & Health ,S6131,Memory & Cognition Support - Older People (65+),
ASTRA MARQUEES LIMITED,1933406,07-Oct-19,"2,152.80",Business Management ,B7531,Expenses,
ATHENA CARE (NEW BRIGHTON ONE) LIMITED,1931704,01-Oct-19,"2,100.00",Adult Care & Health ,S6141,Memory & Cognition Support - Older People (65+),
ATHENA CARE (NEW BRIGHTON ONE) LIMITED,1931704,01-Oct-19,"3,072.00",Adult Care & Health ,S6141,Memory & Cognition Support - Older People (65+),
ATHENA CARE (NEW BRIGHTON ONE) LIMITED,1938609,29-Oct-19,"2,100.00",Adult Care & Health ,S6141,Memory & Cognition Support - Older People (65+),
ATHENA CARE (NEW BRIGHTON ONE) LIMITED,1938609,29-Oct-19,"1,280.00",Adult Care & Health ,S6141,Memory & Cognition Support - Older People (65+),
ATHENA CARE (NEW BRIGHTON ONE) LIMITED,1938609,29-Oct-19,"1,280.00",Adult Care & Health ,S6141,Memory & Cognition Support - Older People (65+),
ATHENA CARE (NEW BRIGHTON ONE) LIMITED,1938609,29-Oct-19,"-3,072.00",Adult Care & Health ,S6141,Memory & Cognition Support - Older People (65+),
ATHENA CARE (NEW BRIGHTON ONE) LIMITED,1931704,01-Oct-19,"2,044.00",Adult Care & Health ,S6142,Physical Support - Older People (65+),
ATHENA CARE (NEW BRIGHTON ONE) LIMITED,1931704,01-Oct-19,"1,884.00",Adult Care & Health ,S6141,Physical Support - Older People (65+),
ATHENA CARE (NEW BRIGHTON ONE) LIMITED,1931704,01-Oct-19,"1,875.00",Adult Care & Health ,S6131,Physical Support - Older People (65+),
ATHENA CARE (NEW BRIGHTON ONE) LIMITED,1931704,01-Oct-19,"1,496.00",Adult Care & Health ,S6141,Physical Support - Older People (65+),
ATHENA CARE (NEW BRIGHTON ONE) LIMITED,1931704,01-Oct-19,"1,496.00",Adult Care & Health ,S6141,Physical Support - Older People (65+),
ATHENA CARE (NEW BRIGHTON ONE) LIMITED,1931704,01-Oct-19,"1,496.00",Adult Care & Health ,S6141,Physical Support - Older People (65+),
ATHENA CARE (NEW BRIGHTON ONE) LIMITED,1931704,01-Oct-19,"1,496.00",Adult Care & Health ,S6141,Physical Support - Older People (65+),
ATHENA CARE (NEW BRIGHTON ONE) LIMITED,1931704,01-Oct-19,"1,496.00",Adult Care & Health ,S6141,Physical Support - Older People (65+),
ATHENA CARE (NEW BRIGHTON ONE) LIMITED,1938609,29-Oct-19,"2,100.00",Adult Care & Health ,S6131,Physical Support - Older People (65+),
ATHENA CARE (NEW BRIGHTON ONE) LIMITED,1938609,29-Oct-19,"1,884.00",Adult Care & Health ,S6141,Physical Support - Older People (65+),
ATHENA CARE (NEW BRIGHTON ONE) LIMITED,1938609,29-Oct-19,"2,044.00",Adult Care & Health ,S6142,Physical Support - Older People (65+),
ATHENA CARE (NEW BRIGHTON ONE) LIMITED,1938609,29-Oct-19,"1,496.00",Adult Care & Health ,S6141,Physical Support - Older People (65+),
ATHENA CARE (NEW BRIGHTON ONE) LIMITED,1938609,29-Oct-19,"1,752.00",Adult Care & Health ,S6167,Physical Support - Older People (65+),
ATHENA CARE (NEW BRIGHTON ONE) LIMITED,1938609,29-Oct-19,740.14,Adult Care & Health ,S6141,Physical Support - Older People (65+),
ATHENA CARE (NEW BRIGHTON ONE) LIMITED,1938609,29-Oct-19,509.14,Adult Care & Health ,S6141,Physical Support - Older People (65+),
ATHENA CARE (NEW BRIGHTON ONE) LIMITED,1938609,29-Oct-19,"1,884.00",Adult Care & Health ,S6141,Physical Support - Older People (65+),
ATHENA CARE (NEW BRIGHTON ONE) LIMITED,1938609,29-Oct-19,"1,296.00",Adult Care & Health ,S6141,Physical Support - Older People (65+),
ATHENA CARE (NEW BRIGHTON ONE) LIMITED,1938609,29-Oct-19,"1,884.00",Adult Care & Health ,S6141,Physical Support - Older People (65+),
ATHENA CARE (NEW BRIGHTON ONE) LIMITED,1938609,29-Oct-19,"1,296.00",Adult Care & Health ,S6141,Physical Support - Older People (65+),
ATHENA CARE (NEW BRIGHTON ONE) LIMITED,1938609,29-Oct-19,"1,884.00",Adult Care & Health ,S6141,Physical Support - Older People (65+),
ATHENA CARE (NEW BRIGHTON ONE) LIMITED,1938609,29-Oct-19,"1,296.00",Adult Care & Health ,S6141,Physical Support - Older People (65+),
ATHENA CARE (NEW BRIGHTON ONE) LIMITED,1938609,29-Oct-19,"1,884.00",Adult Care & Health ,S6141,Physical Support - Older People (65+),
ATHENA CARE (NEW BRIGHTON ONE) LIMITED,1938609,29-Oct-19,"1,296.00",Adult Care & Health ,S6141,Physical Support - Older People (65+),
ATHERTON & PARTNERS LTD,1937693,25-Oct-19,"81,157.04",Children & Young People,C2820,Contractors - Main,
ATKINS LIMITED,1937694,25-Oct-19,"42,098.98",RE  Environment & Regulation,C5306,Consultants Fees,
ATLAS FIRE & SECURITY LIMITED,1936779,21-Oct-19,"4,230.00",Children & Young People,C2300,Contractors - Main,
ATLAS FIRE & SECURITY LIMITED,1935482,17-Oct-19,686.40,Delivery Services (Assistant Chief Executive) ,L2230,"Equipment, Furniture & Materials",
ATLAS FIRE & SECURITY LIMITED,1937695,25-Oct-19,763.20,Delivery Services (Assistant Chief Executive) ,L2230,"Repairs, alterations and maintenance",
AUNTIE EM'S CHILDMINDING SERVICE,1938961,30-Oct-19,806.40,Childrens Services ,E1170,Services,
AUNTIE EM'S CHILDMINDING SERVICE,1938961,30-Oct-19,774.90,Childrens Services ,E1170,Services,
AUNTIE JAYNE'S HOUSE LIMITED,1938962,30-Oct-19,"2,419.20",Childrens Services ,E1170,Services,
AUNTIE JAYNE'S HOUSE LIMITED,1938962,30-Oct-19,"6,463.47",Childrens Services ,E1170,Services,
AUTISM INITIATIVES,1931706,01-Oct-19,"4,792.28",Adult Care & Health ,S6121,Learning & Disability Support - Adults (18-64),
AUTISM INITIATIVES,1931706,01-Oct-19,"11,309.16",Adult Care & Health ,S6121,Learning & Disability Support - Adults (18-64),
AUTISM INITIATIVES,1931706,01-Oct-19,"6,510.14",Adult Care & Health ,S6121,Learning & Disability Support - Adults (18-64),
AUTISM INITIATIVES,1938613,29-Oct-19,"4,792.28",Adult Care & Health ,S6121,Learning & Disability Support - Adults (18-64),
AUTISM INITIATIVES,1938613,29-Oct-19,"6,058.48",Adult Care & Health ,S6121,Learning & Disability Support - Adults (18-64),
AUTISM INITIATIVES,1938613,29-Oct-19,"2,223.30",Adult Care & Health ,S6121,Learning & Disability Support - Adults (18-64),
AUTISM INITIATIVES,1938613,29-Oct-19,"2,223.30",Adult Care & Health ,S6121,Learning & Disability Support - Adults (18-64),
AUTISM INITIATIVES,1933654,08-Oct-19,"5,948.20",Adult Care & Health ,S6121,Learning & Disability Support - Adults (18-64),
AUTISM INITIATIVES,1933654,08-Oct-19,"34,845.94",Adult Care & Health ,S6121,Learning & Disability Support - Adults (18-64),
AUTISM TOGETHER,1931709,01-Oct-19,"1,980.00",Adult Care & Health ,S6121,Learning & Disability Support - Adults (18-64),
AUTISM TOGETHER,1931709,01-Oct-19,"2,267.40",Adult Care & Health ,S6121,Learning & Disability Support - Adults (18-64),
AUTISM TOGETHER,1931709,01-Oct-19,"3,500.00",Adult Care & Health ,S6121,Learning & Disability Support - Adults (18-64),
AUTISM TOGETHER,1931709,01-Oct-19,736.96,Adult Care & Health ,S6121,Learning & Disability Support - Adults (18-64),
AUTISM TOGETHER,1931709,01-Oct-19,"9,064.16",Adult Care & Health ,S6121,Learning & Disability Support - Adults (18-64),
AUTISM TOGETHER,1931709,01-Oct-19,"3,972.20",Adult Care & Health ,S6121,Learning & Disability Support - Adults (18-64),
AUTISM TOGETHER,1931709,01-Oct-19,"1,820.00",Adult Care & Health ,S6121,Learning & Disability Support - Adults (18-64),
AUTISM TOGETHER,1931709,01-Oct-19,"1,098.00",Adult Care & Health ,S6121,Learning & Disability Support - Adults (18-64),
AUTISM TOGETHER,1931709,01-Oct-19,"1,098.00",Adult Care & Health ,S6121,Learning & Disability Support - Adults (18-64),
AUTISM TOGETHER,1931709,01-Oct-19,"7,191.68",Adult Care & Health ,S6121,Learning & Disability Support - Adults (18-64),
AUTISM TOGETHER,1931709,01-Oct-19,"1,098.00",Adult Care & Health ,S6121,Learning & Disability Support - Adults (18-64),
AUTISM TOGETHER,1931709,01-Oct-19,"4,112.52",Adult Care & Health ,S6121,Learning & Disability Support - Adults (18-64),
AUTISM TOGETHER,1931709,01-Oct-19,"8,510.44",Adult Care & Health ,S6121,Learning & Disability Support - Adults (18-64),
AUTISM TOGETHER,1931709,01-Oct-19,"8,991.24",Adult Care & Health ,S6121,Learning & Disability Support - Adults (18-64),
AUTISM TOGETHER,1931709,01-Oct-19,"9,111.80",Adult Care & Health ,S6121,Learning & Disability Support - Adults (18-64),
AUTISM TOGETHER,1931709,01-Oct-19,"1,098.00",Adult Care & Health ,S6121,Learning & Disability Support - Adults (18-64),
AUTISM TOGETHER,1931709,01-Oct-19,"1,098.00",Adult Care & Health ,S6121,Learning & Disability Support - Adults (18-64),
AUTISM TOGETHER,1931709,01-Oct-19,"3,972.20",Adult Care & Health ,S6121,Learning & Disability Support - Adults (18-64),
AUTISM TOGETHER,1931709,01-Oct-19,"1,098.00",Adult Care & Health ,S6121,Learning & Disability Support - Adults (18-64),
AUTISM TOGETHER,1931709,01-Oct-19,"4,413.84",Adult Care & Health ,S6121,Learning & Disability Support - Adults (18-64),
AUTISM TOGETHER,1931709,01-Oct-19,"1,098.00",Adult Care & Health ,S6121,Learning & Disability Support - Adults (18-64),
AUTISM TOGETHER,1931709,01-Oct-19,"4,413.84",Adult Care & Health ,S6131,Learning & Disability Support - Adults (18-64),
AUTISM TOGETHER,1931709,01-Oct-19,"1,098.00",Adult Care & Health ,S6121,Learning & Disability Support - Adults (18-64),
AUTISM TOGETHER,1931709,01-Oct-19,"10,065.40",Adult Care & Health ,S6121,Learning & Disability Support - Adults (18-64),
AUTISM TOGETHER,1931709,01-Oct-19,732.00,Adult Care & Health ,S6121,Learning & Disability Support - Adults (18-64),
AUTISM TOGETHER,1931709,01-Oct-19,"10,047.12",Adult Care & Health ,S6121,Learning & Disability Support - Adults (18-64),
AUTISM TOGETHER,1931709,01-Oct-19,"9,171.00",Adult Care & Health ,S6121,Learning & Disability Support - Adults (18-64),
AUTISM TOGETHER,1931709,01-Oct-19,854.00,Adult Care & Health ,S6121,Learning & Disability Support - Adults (18-64),
AUTISM TOGETHER,1931709,01-Oct-19,"4,327.68",Adult Care & Health ,S6121,Learning & Disability Support - Adults (18-64),
AUTISM TOGETHER,1931709,01-Oct-19,"1,098.00",Adult Care & Health ,S6121,Learning & Disability Support - Adults (18-64),
AUTISM TOGETHER,1931709,01-Oct-19,"1,098.00",Adult Care & Health ,S6121,Learning & Disability Support - Adults (18-64),
AUTISM TOGETHER,1931709,01-Oct-19,610.00,Adult Care & Health ,S6121,Learning & Disability Support - Adults (18-64),
AUTISM TOGETHER,1931709,01-Oct-19,854.00,Adult Care & Health ,S6121,Learning & Disability Support - Adults (18-64),
AUTISM TOGETHER,1931709,01-Oct-19,854.00,Adult Care & Health ,S6121,Learning & Disability Support - Adults (18-64),
AUTISM TOGETHER,1931709,01-Oct-19,"7,937.08",Adult Care & Health ,S6121,Learning & Disability Support - Adults (18-64),
AUTISM TOGETHER,1931709,01-Oct-19,"6,127.84",Adult Care & Health ,S6121,Learning & Disability Support - Adults (18-64),
AUTISM TOGETHER,1931709,01-Oct-19,976.00,Adult Care & Health ,S6121,Learning & Disability Support - Adults (18-64),
AUTISM TOGETHER,1931709,01-Oct-19,"5,285.16",Adult Care & Health ,S6121,Learning & Disability Support - Adults (18-64),
AUTISM TOGETHER,1931709,01-Oct-19,"1,220.00",Adult Care & Health ,S6121,Learning & Disability Support - Adults (18-64),
AUTISM TOGETHER,1931708,01-Oct-19,610.00,Adult Care & Health ,S6121,Learning & Disability Support - Adults (18-64),
AUTISM TOGETHER,1931708,01-Oct-19,"8,623.24",Adult Care & Health ,S6121,Learning & Disability Support - Adults (18-64),
AUTISM TOGETHER,1931708,01-Oct-19,"1,400.00",Adult Care & Health ,S6121,Learning & Disability Support - Adults (18-64),
AUTISM TOGETHER,1931708,01-Oct-19,"4,515.52",Adult Care & Health ,S6121,Learning & Disability Support - Adults (18-64),
AUTISM TOGETHER,1931708,01-Oct-19,"9,912.04",Adult Care & Health ,S6121,Learning & Disability Support - Adults (18-64),
AUTISM TOGETHER,1931708,01-Oct-19,"6,908.48",Adult Care & Health ,S6121,Learning & Disability Support - Adults (18-64),
AUTISM TOGETHER,1931708,01-Oct-19,"5,252.92",Adult Care & Health ,S6121,Learning & Disability Support - Adults (18-64),
AUTISM TOGETHER,1938616,29-Oct-19,"-1,051.26",Adult Care & Health ,S6121,Learning & Disability Support - Adults (18-64),
AUTISM TOGETHER,1938616,29-Oct-19,"-2,102.52",Adult Care & Health ,S6121,Learning & Disability Support - Adults (18-64),
AUTISM TOGETHER,1938616,29-Oct-19,"1,820.00",Adult Care & Health ,S6121,Learning & Disability Support - Adults (18-64),
AUTISM TOGETHER,1938616,29-Oct-19,"3,500.00",Adult Care & Health ,S6121,Learning & Disability Support - Adults (18-64),
AUTISM TOGETHER,1938616,29-Oct-19,736.96,Adult Care & Health ,S6121,Learning & Disability Support - Adults (18-64),
AUTISM TOGETHER,1938616,29-Oct-19,720.00,Adult Care & Health ,S6121,Learning & Disability Support - Adults (18-64),
AUTISM TOGETHER,1938616,29-Oct-19,854.00,Adult Care & Health ,S6121,Learning & Disability Support - Adults (18-64),
AUTISM TOGETHER,1938616,29-Oct-19,854.00,Adult Care & Health ,S6121,Learning & Disability Support - Adults (18-64),
AUTISM TOGETHER,1938616,29-Oct-19,976.00,Adult Care & Health ,S6121,Learning & Disability Support - Adults (18-64),
AUTISM TOGETHER,1938616,29-Oct-19,854.00,Adult Care & Health ,S6121,Learning & Disability Support - Adults (18-64),
AUTISM TOGETHER,1938616,29-Oct-19,"1,098.00",Adult Care & Health ,S6121,Learning & Disability Support - Adults (18-64),
AUTISM TOGETHER,1938616,29-Oct-19,"1,098.00",Adult Care & Health ,S6121,Learning & Disability Support - Adults (18-64),
AUTISM TOGETHER,1938616,29-Oct-19,610.00,Adult Care & Health ,S6121,Learning & Disability Support - Adults (18-64),
AUTISM TOGETHER,1938616,29-Oct-19,"1,098.00",Adult Care & Health ,S6121,Learning & Disability Support - Adults (18-64),
AUTISM TOGETHER,1938616,29-Oct-19,"1,098.00",Adult Care & Health ,S6121,Learning & Disability Support - Adults (18-64),
AUTISM TOGETHER,1938616,29-Oct-19,732.00,Adult Care & Health ,S6121,Learning & Disability Support - Adults (18-64),
AUTISM TOGETHER,1938616,29-Oct-19,"1,098.00",Adult Care & Health ,S6121,Learning & Disability Support - Adults (18-64),
AUTISM TOGETHER,1938616,29-Oct-19,"1,098.00",Adult Care & Health ,S6121,Learning & Disability Support - Adults (18-64),
AUTISM TOGETHER,1938616,29-Oct-19,"1,098.00",Adult Care & Health ,S6121,Learning & Disability Support - Adults (18-64),
AUTISM TOGETHER,1938616,29-Oct-19,"1,098.00",Adult Care & Health ,S6121,Learning & Disability Support - Adults (18-64),
AUTISM TOGETHER,1938616,29-Oct-19,"1,098.00",Adult Care & Health ,S6121,Learning & Disability Support - Adults (18-64),
AUTISM TOGETHER,1938616,29-Oct-19,"1,098.00",Adult Care & Health ,S6121,Learning & Disability Support - Adults (18-64),
AUTISM TOGETHER,1938616,29-Oct-19,"1,220.00",Adult Care & Health ,S6121,Learning & Disability Support - Adults (18-64),
AUTISM TOGETHER,1938616,29-Oct-19,"5,285.16",Adult Care & Health ,S6121,Learning & Disability Support - Adults (18-64),
AUTISM TOGETHER,1938616,29-Oct-19,"7,937.08",Adult Care & Health ,S6121,Learning & Disability Support - Adults (18-64),
AUTISM TOGETHER,1938616,29-Oct-19,"6,127.84",Adult Care & Health ,S6121,Learning & Disability Support - Adults (18-64),
AUTISM TOGETHER,1938616,29-Oct-19,"9,171.00",Adult Care & Health ,S6121,Learning & Disability Support - Adults (18-64),
AUTISM TOGETHER,1938616,29-Oct-19,"4,327.68",Adult Care & Health ,S6121,Learning & Disability Support - Adults (18-64),
AUTISM TOGETHER,1938616,29-Oct-19,"4,413.84",Adult Care & Health ,S6131,Learning & Disability Support - Adults (18-64),
AUTISM TOGETHER,1938616,29-Oct-19,"10,065.40",Adult Care & Health ,S6121,Learning & Disability Support - Adults (18-64),
AUTISM TOGETHER,1938616,29-Oct-19,"10,047.12",Adult Care & Health ,S6121,Learning & Disability Support - Adults (18-64),
AUTISM TOGETHER,1938616,29-Oct-19,"3,972.20",Adult Care & Health ,S6121,Learning & Disability Support - Adults (18-64),
AUTISM TOGETHER,1938616,29-Oct-19,"4,413.84",Adult Care & Health ,S6121,Learning & Disability Support - Adults (18-64),
AUTISM TOGETHER,1938616,29-Oct-19,"4,112.52",Adult Care & Health ,S6121,Learning & Disability Support - Adults (18-64),
AUTISM TOGETHER,1938616,29-Oct-19,"8,510.44",Adult Care & Health ,S6121,Learning & Disability Support - Adults (18-64),
AUTISM TOGETHER,1938616,29-Oct-19,"8,991.24",Adult Care & Health ,S6121,Learning & Disability Support - Adults (18-64),
AUTISM TOGETHER,1938616,29-Oct-19,"9,111.80",Adult Care & Health ,S6121,Learning & Disability Support - Adults (18-64),
AUTISM TOGETHER,1938616,29-Oct-19,"7,191.68",Adult Care & Health ,S6121,Learning & Disability Support - Adults (18-64),
AUTISM TOGETHER,1938616,29-Oct-19,"3,972.20",Adult Care & Health ,S6121,Learning & Disability Support - Adults (18-64),
AUTISM TOGETHER,1938616,29-Oct-19,"9,064.16",Adult Care & Health ,S6121,Learning & Disability Support - Adults (18-64),
AUTISM TOGETHER,1938616,29-Oct-19,"2,267.40",Adult Care & Health ,S6121,Learning & Disability Support - Adults (18-64),
AUTISM TOGETHER,1938615,29-Oct-19,"1,400.00",Adult Care & Health ,S6121,Learning & Disability Support - Adults (18-64),
AUTISM TOGETHER,1938615,29-Oct-19,"9,912.04",Adult Care & Health ,S6121,Learning & Disability Support - Adults (18-64),
AUTISM TOGETHER,1938615,29-Oct-19,"6,908.48",Adult Care & Health ,S6121,Learning & Disability Support - Adults (18-64),
AUTISM TOGETHER,1938615,29-Oct-19,"5,252.92",Adult Care & Health ,S6121,Learning & Disability Support - Adults (18-64),
AUTISM TOGETHER,1938615,29-Oct-19,"4,515.52",Adult Care & Health ,S6121,Learning & Disability Support - Adults (18-64),
AUTISM TOGETHER,1938615,29-Oct-19,"8,623.24",Adult Care & Health ,S6121,Learning & Disability Support - Adults (18-64),
AUTISM TOGETHER,1938615,29-Oct-19,610.00,Adult Care & Health ,S6121,Learning & Disability Support - Adults (18-64),
AUTISM TOGETHER,1938616,29-Oct-19,"1,058.40",Adult Care & Health ,S6121,Learning & Disability Support - Adults (18-64),
AUTISM TOGETHER,1933655,08-Oct-19,"142,235.92",Adult Care & Health ,S6121,Learning & Disability Support - Adults (18-64),
AUTISM TOGETHER,1933655,08-Oct-19,"241,792.01",Adult Care & Health ,S6121,Physical Support - Adults (18-64),
AUTISM TOGETHER,1934709,14-Oct-19,"1,100.00",Business Management ,H2951,"Advertising, Publicity & Marketing",
AUTISM TOGETHER,1931707,01-Oct-19,"1,031.36",Childrens Services ,E3680,Care Provision,
AVALON,1931710,01-Oct-19,"9,250.40",Adult Care & Health ,S6121,Learning & Disability Support - Adults (18-64),
AVALON,1938617,29-Oct-19,"9,250.40",Adult Care & Health ,S6121,Learning & Disability Support - Adults (18-64),
AVALON,1931710,01-Oct-19,"7,252.00",Adult Care & Health ,S6162,Mental Health Support - Adults (18-64),
AVALON,1938617,29-Oct-19,"7,252.00",Adult Care & Health ,S6162,Mental Health Support - Adults (18-64),
AVALON SCH EDUCATIONAL TRUST,1938964,30-Oct-19,"6,878.60",Childrens Services ,E1170,Services,
AVALON SCH EDUCATIONAL TRUST,1938964,30-Oct-19,606.91,Childrens Services ,E1170,Services,
AVR TRANSCRIPTION LIMITED,1935484,17-Oct-19,610.06,Business Management ,A1305,General Supplies and Services,
AYNSLEY NURSING HOME,1931711,01-Oct-19,"2,044.00",Adult Care & Health ,S6142,Memory & Cognition Support - Older People (65+),
AYNSLEY NURSING HOME,1931711,01-Oct-19,"1,884.00",Adult Care & Health ,S6142,Memory & Cognition Support - Older People (65+),
AYNSLEY NURSING HOME,1938618,29-Oct-19,"1,884.00",Adult Care & Health ,S6142,Memory & Cognition Support - Older People (65+),
AYNSLEY NURSING HOME,1938618,29-Oct-19,"2,044.00",Adult Care & Health ,S6142,Memory & Cognition Support - Older People (65+),
AYNSLEY NURSING HOME,1938618,29-Oct-19,"1,211.14",Adult Care & Health ,S6142,Physical Support - Adults (18-64),
AYNSLEY NURSING HOME,1931711,01-Oct-19,"2,044.00",Adult Care & Health ,S6142,Physical Support - Older People (65+),
AYNSLEY NURSING HOME,1931711,01-Oct-19,"2,044.00",Adult Care & Health ,S6142,Physical Support - Older People (65+),
AYNSLEY NURSING HOME,1931711,01-Oct-19,511.00,Adult Care & Health ,S6142,Physical Support - Older People (65+),
AYNSLEY NURSING HOME,1931711,01-Oct-19,"1,884.00",Adult Care & Health ,S6142,Physical Support - Older People (65+),
AYNSLEY NURSING HOME,1931711,01-Oct-19,"1,884.00",Adult Care & Health ,S6142,Physical Support - Older People (65+),
AYNSLEY NURSING HOME,1931711,01-Oct-19,"2,044.00",Adult Care & Health ,S6132,Physical Support - Older People (65+),
AYNSLEY NURSING HOME,1931711,01-Oct-19,"2,044.00",Adult Care & Health ,S6142,Physical Support - Older People (65+),
AYNSLEY NURSING HOME,1931711,01-Oct-19,"2,044.00",Adult Care & Health ,S6142,Physical Support - Older People (65+),
AYNSLEY NURSING HOME,1931711,01-Oct-19,"2,044.00",Adult Care & Health ,S6142,Physical Support - Older People (65+),
AYNSLEY NURSING HOME,1931711,01-Oct-19,"2,044.00",Adult Care & Health ,S6142,Physical Support - Older People (65+),
AYNSLEY NURSING HOME,1931711,01-Oct-19,"1,971.00",Adult Care & Health ,S6142,Physical Support - Older People (65+),
AYNSLEY NURSING HOME,1931711,01-Oct-19,"-1,413.00",Adult Care & Health ,S6142,Physical Support - Older People (65+),
AYNSLEY NURSING HOME,1931711,01-Oct-19,"-1,547.57",Adult Care & Health ,S6142,Physical Support - Older People (65+),
AYNSLEY NURSING HOME,1938618,29-Oct-19,"2,044.00",Adult Care & Health ,S6142,Physical Support - Older People (65+),
AYNSLEY NURSING HOME,1938618,29-Oct-19,"2,044.00",Adult Care & Health ,S6142,Physical Support - Older People (65+),
AYNSLEY NURSING HOME,1938618,29-Oct-19,"2,044.00",Adult Care & Health ,S6142,Physical Support - Older People (65+),
AYNSLEY NURSING HOME,1938618,29-Oct-19,"2,044.00",Adult Care & Health ,S6142,Physical Support - Older People (65+),
AYNSLEY NURSING HOME,1938618,29-Oct-19,"2,044.00",Adult Care & Health ,S6142,Physical Support - Older People (65+),
AYNSLEY NURSING HOME,1938618,29-Oct-19,"2,044.00",Adult Care & Health ,S6142,Physical Support - Older People (65+),
AYNSLEY NURSING HOME,1938618,29-Oct-19,"2,044.00",Adult Care & Health ,S6132,Physical Support - Older People (65+),
AYNSLEY NURSING HOME,1938618,29-Oct-19,"2,044.00",Adult Care & Health ,S6142,Physical Support - Older People (65+),
AYNSLEY NURSING HOME,1938618,29-Oct-19,511.00,Adult Care & Health ,S6142,Physical Support - Older People (65+),
AYNSLEY NURSING HOME,1938618,29-Oct-19,"1,884.00",Adult Care & Health ,S6142,Physical Support - Older People (65+),
AYNSLEY NURSING HOME,1938618,29-Oct-19,"1,884.00",Adult Care & Health ,S6142,Physical Support - Older People (65+),
AYNSLEY NURSING HOME,1938618,29-Oct-19,"1,387.00",Adult Care & Health ,S6142,Physical Support - Older People (65+),
AYNSLEY NURSING HOME,1931711,01-Oct-19,"2,044.00",Adult Care & Health ,S6142,Sensory Support - Older People (65+),
AYNSLEY NURSING HOME,1938618,29-Oct-19,"2,044.00",Adult Care & Health ,S6142,Sensory Support - Older People (65+),
AYNSLEY NURSING HOME,1931711,01-Oct-19,"1,884.00",Adult Care & Health ,S6142,Social Care Activities,
AYNSLEY NURSING HOME,1938618,29-Oct-19,"1,884.00",Adult Care & Health ,S6142,Social Care Activities,
B I R C C LIMITED,1937701,25-Oct-19,"3,252.00",Adult Care & Health ,S6142,Learning & Disability Support - Adults (18-64),
B I R C C LIMITED,1934141,10-Oct-19,"48,007.21",Adult Care & Health ,S6121,Physical Support - Adults (18-64),
B L ROCK FERRY LIMITED T/A THE BLACK LIONS,1936532,18-Oct-19,"1,008.00",Economic & Housing Growth ,H6080,Expenses,
B L ROCK FERRY LIMITED T/A THE BLACK LIONS,1936532,18-Oct-19,798.00,Economic & Housing Growth ,H6080,Expenses,
B L ROCK FERRY LIMITED T/A THE BLACK LIONS,1936532,18-Oct-19,798.00,Economic & Housing Growth ,H6080,Expenses,
B L ROCK FERRY LIMITED T/A THE BLACK LIONS,1936532,18-Oct-19,714.00,Economic & Housing Growth ,H6080,Expenses,
B L ROCK FERRY LIMITED T/A THE BLACK LIONS,1938416,28-Oct-19,714.00,Economic & Housing Growth ,H6080,Expenses,
B L ROCK FERRY LIMITED T/A THE BLACK LIONS,1938416,28-Oct-19,"1,008.00",Economic & Housing Growth ,H6080,Expenses,
B L ROCK FERRY LIMITED T/A THE BLACK LIONS,1938416,28-Oct-19,714.00,Economic & Housing Growth ,H6080,Expenses,
B L ROCK FERRY LIMITED T/A THE BLACK LIONS,1938416,28-Oct-19,798.00,Economic & Housing Growth ,H6080,Expenses,
B.I.T.S (BRITISH & INTERNATIONAL TYRE SUPPLIES),1938620,29-Oct-19,813.24,Delivery Services (Assistant Chief Executive) ,T4020,Direct Transport Costs,
B.I.T.S (BRITISH & INTERNATIONAL TYRE SUPPLIES),1938620,29-Oct-19,-813.24,Delivery Services (Assistant Chief Executive) ,T4020,Direct Transport Costs,
B.I.T.S (BRITISH & INTERNATIONAL TYRE SUPPLIES),1934712,14-Oct-19,"1,036.80",Delivery Services (Assistant Chief Executive) ,T4020,Direct Transport Costs,
B.I.T.S (BRITISH & INTERNATIONAL TYRE SUPPLIES),1939433,31-Oct-19,691.20,Delivery Services (Assistant Chief Executive) ,T4020,Direct Transport Costs,
BACKCARE SOLUTIONS LTD,1936533,18-Oct-19,"1,059.60",Business Management ,V1150,"Equipment, Furniture & Materials",
BACKCARE SOLUTIONS LTD,1934713,14-Oct-19,818.94,Business Management ,F4610,"Equipment, Furniture & Materials",
BAGNALL & MORRIS WASTE SERVICES LTD,1939434,31-Oct-19,"2,823.70",Delivery Services (Assistant Chief Executive) ,D3310,Cleaning & Domestic Supplies,
BAGNALL & MORRIS WASTE SERVICES LTD,1937138,23-Oct-19,"6,576.38",Delivery Services (Assistant Chief Executive) ,D2020,Cleaning & Domestic Supplies,
BAGNALL & MORRIS WASTE SERVICES LTD,1931714,01-Oct-19,"2,511.25",Delivery Services (Assistant Chief Executive) ,D3310,Cleaning & Domestic Supplies,
BAKEWELL & HORNER LIMITED,1936784,21-Oct-19,"1,500.00",Economic & Housing Growth ,H6080,Expenses,
BARBARA J FIRTH,1933659,08-Oct-19,965.25,Childrens Services ,E9690,Training Expenses,
BARCHESTER HEALTHCARE LIMITED,1931716,01-Oct-19,"1,884.00",Adult Care & Health ,S6141,Physical Support - Older People (65+),
BARCHESTER HEALTHCARE LIMITED,1931716,01-Oct-19,"2,100.00",Adult Care & Health ,S6131,Physical Support - Older People (65+),
BARCHESTER HEALTHCARE LIMITED,1931716,01-Oct-19,"2,025.00",Adult Care & Health ,S6142,Physical Support - Older People (65+),
BARCHESTER HEALTHCARE LIMITED,1931716,01-Oct-19,874.71,Adult Care & Health ,S6141,Physical Support - Older People (65+),
BARCHESTER HEALTHCARE LIMITED,1938621,29-Oct-19,"2,100.00",Adult Care & Health ,S6142,Physical Support - Older People (65+),
BARCHESTER HEALTHCARE LIMITED,1938621,29-Oct-19,"1,884.00",Adult Care & Health ,S6141,Physical Support - Older People (65+),
BARCHESTER HEALTHCARE LIMITED,1938621,29-Oct-19,"2,100.00",Adult Care & Health ,S6131,Physical Support - Older People (65+),
BARCHESTER HEALTHCARE LIMITED,1938621,29-Oct-19,"1,009.29",Adult Care & Health ,S6141,Physical Support - Older People (65+),
BARCHESTER HEALTHCARE LIMITED,1938621,29-Oct-19,942.00,Adult Care & Health ,S6131,Physical Support - Older People (65+),
BARCHESTER HEALTHCARE LIMITED,1938621,29-Oct-19,874.71,Adult Care & Health ,S6141,Physical Support - Older People (65+),
BARCHESTER HEALTHCARE LIMITED,1931717,01-Oct-19,"2,063.40",Adult Care & Health ,S6141,Social Support - Asylum Seeker Support,
BARCHESTER HEALTHCARE LIMITED,1938622,29-Oct-19,"2,063.40",Adult Care & Health ,S6141,Social Support - Asylum Seeker Support,
BARKER CARE LIMITED,1931718,01-Oct-19,"1,032.11",Adult Care & Health ,S6161,Mental Health Support - Adults (18-64),
BARKER CARE LIMITED,1931718,01-Oct-19,"-1,290.14",Adult Care & Health ,S6161,Mental Health Support - Adults (18-64),
BARKER CARE LIMITED,1931718,01-Oct-19,"2,627.20",Adult Care & Health ,S6161,Mental Health Support - Adults (18-64),
BARNARDO'S,1933660,08-Oct-19,"3,471.43",Childrens Services ,E7080,Care Provision,
BARNARDO'S,1933660,08-Oct-19,"4,704.40",Childrens Services ,E7080,Care Provision,
BARNARDO'S,1933660,08-Oct-19,"4,523.10",Childrens Services ,E7080,Care Provision,
BARNSTON BUDDIES,1938966,30-Oct-19,"16,454.21",Childrens Services ,E1170,Services,
BARRINGTONS FUNERAL SERVICES LIMITED,1931719,01-Oct-19,"3,564.00",Business Management ,F6030,General Supplies and Services,
BEAR HUNT PRODUCTIONS,1935177,16-Oct-19,"9,240.73",Delivery Services (Assistant Chief Executive) ,L3950,Customer and Client Receipts - Non Vatable,
BEBINGTON PRESCHOOL PLAYGROUP,1938968,30-Oct-19,"1,075.20",Childrens Services ,E1170,Services,
BEBINGTON PRESCHOOL PLAYGROUP,1938968,30-Oct-19,"13,822.31",Childrens Services ,E1170,Services,
BEBINGTON PRESCHOOL PLAYGROUP,1938968,30-Oct-19,"1,164.86",Childrens Services ,E1170,Services,
BEE WIRRAL CIC,1936962,22-Oct-19,585.00,Childrens Services ,E6150,Hired or Contracted services,
BEECHWOOD (LIVERPOOL) LIMITED,1931723,01-Oct-19,"4,913.68",Adult Care & Health ,S6142,Mental Health Support - Adults (18-64),
BEECHWOOD (LIVERPOOL) LIMITED,1938623,29-Oct-19,"-2,456.84",Adult Care & Health ,S6142,Mental Health Support - Adults (18-64),
BEECHWOOD (LIVERPOOL) LIMITED,1938623,29-Oct-19,"2,577.22",Adult Care & Health ,S6142,Mental Health Support - Adults (18-64),
BEECHWOOD (LIVERPOOL) LIMITED,1938623,29-Oct-19,"5,154.44",Adult Care & Health ,S6142,Mental Health Support - Adults (18-64),
BEECHWOOD (LIVERPOOL) LIMITED,1938623,29-Oct-19,"-4,913.68",Adult Care & Health ,S6142,Mental Health Support - Adults (18-64),
BEECHWOOD (LIVERPOOL) LIMITED,1938623,29-Oct-19,"-4,913.68",Adult Care & Health ,S6142,Mental Health Support - Adults (18-64),
BEECHWOOD (LIVERPOOL) LIMITED,1938623,29-Oct-19,"5,154.44",Adult Care & Health ,S6142,Mental Health Support - Adults (18-64),
BEECHWOOD (LIVERPOOL) LIMITED,1938623,29-Oct-19,"-4,913.68",Adult Care & Health ,S6142,Mental Health Support - Adults (18-64),
BEECHWOOD (LIVERPOOL) LIMITED,1938623,29-Oct-19,"5,154.44",Adult Care & Health ,S6142,Mental Health Support - Adults (18-64),
BEECHWOOD (LIVERPOOL) LIMITED,1938623,29-Oct-19,"5,154.44",Adult Care & Health ,S6142,Mental Health Support - Adults (18-64),
BEECHWOOD (LIVERPOOL) LIMITED,1938623,29-Oct-19,"-4,913.68",Adult Care & Health ,S6142,Mental Health Support - Adults (18-64),
BEECHWOOD (LIVERPOOL) LIMITED,1938623,29-Oct-19,"-4,913.68",Adult Care & Health ,S6142,Mental Health Support - Adults (18-64),
BEECHWOOD (LIVERPOOL) LIMITED,1938623,29-Oct-19,"5,154.44",Adult Care & Health ,S6142,Mental Health Support - Adults (18-64),
BEECHWOOD (LIVERPOOL) LIMITED,1938623,29-Oct-19,"-4,913.68",Adult Care & Health ,S6142,Mental Health Support - Adults (18-64),
BEECHWOOD (LIVERPOOL) LIMITED,1938623,29-Oct-19,"5,154.44",Adult Care & Health ,S6142,Mental Health Support - Adults (18-64),
BEECHWOOD (LIVERPOOL) LIMITED,1938623,29-Oct-19,"5,154.44",Adult Care & Health ,S6142,Mental Health Support - Adults (18-64),
BEECHWOOD (LIVERPOOL) LIMITED,1931723,01-Oct-19,"5,200.00",Adult Care & Health ,S6167,Mental Health Support - Older People (65+),
BEECHWOOD (LIVERPOOL) LIMITED,1938623,29-Oct-19,"-2,600.00",Adult Care & Health ,S6167,Mental Health Support - Older People (65+),
BEECHWOOD (LIVERPOOL) LIMITED,1938623,29-Oct-19,"2,727.40",Adult Care & Health ,S6167,Mental Health Support - Older People (65+),
BEECHWOOD (LIVERPOOL) LIMITED,1938623,29-Oct-19,"5,454.80",Adult Care & Health ,S6167,Mental Health Support - Older People (65+),
BEECHWOOD (LIVERPOOL) LIMITED,1938623,29-Oct-19,"-5,200.00",Adult Care & Health ,S6167,Mental Health Support - Older People (65+),
BEECHWOOD (LIVERPOOL) LIMITED,1938623,29-Oct-19,"-5,200.00",Adult Care & Health ,S6167,Mental Health Support - Older People (65+),
BEECHWOOD (LIVERPOOL) LIMITED,1938623,29-Oct-19,"5,454.80",Adult Care & Health ,S6167,Mental Health Support - Older People (65+),
BEECHWOOD (LIVERPOOL) LIMITED,1938623,29-Oct-19,"-5,200.00",Adult Care & Health ,S6167,Mental Health Support - Older People (65+),
BEECHWOOD (LIVERPOOL) LIMITED,1938623,29-Oct-19,"5,454.80",Adult Care & Health ,S6167,Mental Health Support - Older People (65+),
BEECHWOOD (LIVERPOOL) LIMITED,1938623,29-Oct-19,"5,454.80",Adult Care & Health ,S6167,Mental Health Support - Older People (65+),
BEECHWOOD (LIVERPOOL) LIMITED,1938623,29-Oct-19,"-5,200.00",Adult Care & Health ,S6167,Mental Health Support - Older People (65+),
BEECHWOOD (LIVERPOOL) LIMITED,1938623,29-Oct-19,"-5,200.00",Adult Care & Health ,S6167,Mental Health Support - Older People (65+),
BEECHWOOD (LIVERPOOL) LIMITED,1938623,29-Oct-19,"5,454.80",Adult Care & Health ,S6167,Mental Health Support - Older People (65+),
BEECHWOOD (LIVERPOOL) LIMITED,1938623,29-Oct-19,"5,454.80",Adult Care & Health ,S6167,Mental Health Support - Older People (65+),
BEECHWOOD (LIVERPOOL) LIMITED,1938623,29-Oct-19,"-5,200.00",Adult Care & Health ,S6167,Mental Health Support - Older People (65+),
BEECHWOOD (LIVERPOOL) LIMITED,1938623,29-Oct-19,"5,454.80",Adult Care & Health ,S6167,Mental Health Support - Older People (65+),
BEERS TIMBER & BUILDING SUPPLIES LIMITED,1931724,01-Oct-19,664.98,Delivery Services (Assistant Chief Executive) ,L4002,Grounds Maintenance,
BELL CONTRACTS LIMITED,1933414,07-Oct-19,"6,003.00",RE  Housing & Community Safety,C4117,Expenditure on Capital Grants,
BELMONT SANDBANKS LIMITED,1931725,01-Oct-19,"2,520.00",Adult Care & Health ,S6132,Physical Support - Older People (65+),
BELMONT SANDBANKS LIMITED,1938625,29-Oct-19,"2,520.00",Adult Care & Health ,S6132,Physical Support - Older People (65+),
BELVIDERE NURSING HOME,1938626,29-Oct-19,"2,044.00",Adult Care & Health ,S6142,Memory & Cognition Support - Older People (65+),
BELVIDERE NURSING HOME,1931726,01-Oct-19,"2,044.00",Adult Care & Health ,S6142,Mental Health Support - Older People (65+),
BELVIDERE NURSING HOME,1931726,01-Oct-19,803.00,Adult Care & Health ,S6167,Mental Health Support - Older People (65+),
BELVIDERE NURSING HOME,1938626,29-Oct-19,"2,044.00",Adult Care & Health ,S6142,Mental Health Support - Older People (65+),
BELVIDERE NURSING HOME,1931726,01-Oct-19,"2,044.00",Adult Care & Health ,S6132,Physical Support - Adults (18-64),
BELVIDERE NURSING HOME,1938626,29-Oct-19,"2,044.00",Adult Care & Health ,S6132,Physical Support - Adults (18-64),
BELVIDERE NURSING HOME,1931726,01-Oct-19,"2,044.00",Adult Care & Health ,S6142,Physical Support - Older People (65+),
BELVIDERE NURSING HOME,1931726,01-Oct-19,"2,044.00",Adult Care & Health ,S6142,Physical Support - Older People (65+),
BELVIDERE NURSING HOME,1931726,01-Oct-19,"2,044.00",Adult Care & Health ,S6141,Physical Support - Older People (65+),
BELVIDERE NURSING HOME,1931726,01-Oct-19,"2,044.00",Adult Care & Health ,S6142,Physical Support - Older People (65+),
BELVIDERE NURSING HOME,1931726,01-Oct-19,"2,044.00",Adult Care & Health ,S6142,Physical Support - Older People (65+),
BELVIDERE NURSING HOME,1931726,01-Oct-19,"2,044.00",Adult Care & Health ,S6142,Physical Support - Older People (65+),
BELVIDERE NURSING HOME,1931726,01-Oct-19,"2,044.00",Adult Care & Health ,S6142,Physical Support - Older People (65+),
BELVIDERE NURSING HOME,1931726,01-Oct-19,"2,044.00",Adult Care & Health ,S6142,Physical Support - Older People (65+),
BELVIDERE NURSING HOME,1931726,01-Oct-19,"1,884.00",Adult Care & Health ,S6142,Physical Support - Older People (65+),
BELVIDERE NURSING HOME,1931726,01-Oct-19,"2,044.00",Adult Care & Health ,S6142,Physical Support - Older People (65+),
BELVIDERE NURSING HOME,1931726,01-Oct-19,"2,044.00",Adult Care & Health ,S6142,Physical Support - Older People (65+),
BELVIDERE NURSING HOME,1931726,01-Oct-19,"2,044.00",Adult Care & Health ,S6142,Physical Support - Older People (65+),
BELVIDERE NURSING HOME,1931726,01-Oct-19,"2,044.00",Adult Care & Health ,S6142,Physical Support - Older People (65+),
BELVIDERE NURSING HOME,1931726,01-Oct-19,"1,241.00",Adult Care & Health ,S6142,Physical Support - Older People (65+),
BELVIDERE NURSING HOME,1931726,01-Oct-19,-874.71,Adult Care & Health ,S6142,Physical Support - Older People (65+),
BELVIDERE NURSING HOME,1938626,29-Oct-19,"2,044.00",Adult Care & Health ,S6142,Physical Support - Older People (65+),
BELVIDERE NURSING HOME,1938626,29-Oct-19,"1,884.00",Adult Care & Health ,S6142,Physical Support - Older People (65+),
BELVIDERE NURSING HOME,1938626,29-Oct-19,"2,044.00",Adult Care & Health ,S6142,Physical Support - Older People (65+),
BELVIDERE NURSING HOME,1938626,29-Oct-19,"2,044.00",Adult Care & Health ,S6142,Physical Support - Older People (65+),
BELVIDERE NURSING HOME,1938626,29-Oct-19,"2,044.00",Adult Care & Health ,S6142,Physical Support - Older People (65+),
BELVIDERE NURSING HOME,1938626,29-Oct-19,"2,044.00",Adult Care & Health ,S6141,Physical Support - Older People (65+),
BELVIDERE NURSING HOME,1938626,29-Oct-19,"2,044.00",Adult Care & Health ,S6142,Physical Support - Older People (65+),
BELVIDERE NURSING HOME,1938626,29-Oct-19,"2,044.00",Adult Care & Health ,S6142,Physical Support - Older People (65+),
BELVIDERE NURSING HOME,1938626,29-Oct-19,"2,044.00",Adult Care & Health ,S6142,Physical Support - Older People (65+),
BELVIDERE NURSING HOME,1938626,29-Oct-19,"2,044.00",Adult Care & Health ,S6142,Physical Support - Older People (65+),
BELVIDERE NURSING HOME,1938626,29-Oct-19,"2,044.00",Adult Care & Health ,S6142,Physical Support - Older People (65+),
BELVIDERE NURSING HOME,1938626,29-Oct-19,"2,044.00",Adult Care & Health ,S6142,Physical Support - Older People (65+),
BELVIDERE NURSING HOME,1938626,29-Oct-19,"2,044.00",Adult Care & Health ,S6142,Physical Support - Older People (65+),
BELVIDERE NURSING HOME,1931726,01-Oct-19,"2,044.00",Adult Care & Health ,S6142,Social Care Activities,
BELVIDERE NURSING HOME,1938626,29-Oct-19,"2,044.00",Adult Care & Health ,S6142,Social Care Activities,
BENNETT BUILDERS (NORTH WEST) LIMITED,1933663,08-Oct-19,"9,661.00",RE  Housing & Community Safety,C4215,Expenditure on Capital Loans,
BENTY HEATH KINDERGARTEN,1938969,30-Oct-19,"2,555.00",Childrens Services ,E1170,Services,
BERENDSEN UK LIMITED,1936786,21-Oct-19,"1,320.76",Delivery Services (Assistant Chief Executive) ,T4020,"Repairs, alterations and maintenance",
BERTRAM TRADING LIMITED T/A BERTRAM LIBRARY SERVICES,1933893,09-Oct-19,636.47,Delivery Services (Assistant Chief Executive) ,L2300,"Equipment, Furniture & Materials",
BERTRAM TRADING LIMITED T/A BERTRAM LIBRARY SERVICES,1935499,17-Oct-19,"1,056.53",Delivery Services (Assistant Chief Executive) ,L2300,"Equipment, Furniture & Materials",
BERTRAM TRADING LIMITED T/A BERTRAM LIBRARY SERVICES,1937142,23-Oct-19,645.49,Delivery Services (Assistant Chief Executive) ,L2300,"Equipment, Furniture & Materials",
BERTRAM TRADING LIMITED T/A BERTRAM LIBRARY SERVICES,1937142,23-Oct-19,621.37,Delivery Services (Assistant Chief Executive) ,L2300,"Equipment, Furniture & Materials",
BERTRAM TRADING LIMITED T/A BERTRAM LIBRARY SERVICES,1938970,30-Oct-19,695.36,Delivery Services (Assistant Chief Executive) ,L2300,"Equipment, Furniture & Materials",
BERTRAM TRADING LIMITED T/A BERTRAM LIBRARY SERVICES,1938970,30-Oct-19,510.88,Delivery Services (Assistant Chief Executive) ,L2300,"Equipment, Furniture & Materials",
BESTCO LIMITED,1938627,29-Oct-19,"1,811.92",Delivery Services (Assistant Chief Executive) ,V1920,"Equipment, Furniture & Materials",
BESTCO LIMITED,1931729,01-Oct-19,"1,451.94",Delivery Services (Assistant Chief Executive) ,L3320,"Repairs, alterations and maintenance",
BETHANY DAY NURSERY LTD,1938971,30-Oct-19,"5,644.80",Childrens Services ,E1170,Services,
BETHANY DAY NURSERY LTD,1938971,30-Oct-19,"-2,431.74",Childrens Services ,E1170,Services,
BETHANY DAY NURSERY LTD,1938971,30-Oct-19,"-3,109.07",Childrens Services ,E1170,Services,
BIDDYAVE BUDDIES,1938972,30-Oct-19,"9,054.67",Childrens Services ,E1170,Services,
BIDDYAVE BUDDIES,1938972,30-Oct-19,903.00,Childrens Services ,E1170,Services,
BIFFA WASTE SERVICES,1935504,17-Oct-19,761.95,Delivery Services (Assistant Chief Executive) ,T4020,"Repairs, alterations and maintenance",
BIFFA WASTE SERVICES,1938973,30-Oct-19,641.02,Delivery Services (Assistant Chief Executive) ,T4020,"Repairs, alterations and maintenance",
BIFFA WASTE SERVICES,1937714,25-Oct-19,"10,008.67",Delivery Services (Assistant Chief Executive) ,H2930,Waste Service Provider,
BIFFA WASTE SERVICES,1937714,25-Oct-19,"20,386.07",Delivery Services (Assistant Chief Executive) ,H2940,Waste Service Provider,
BIFFA WASTE SERVICES,1937714,25-Oct-19,"1,057,703.11",Delivery Services (Assistant Chief Executive) ,H2940,Waste Service Provider,
BIFFA WASTE SERVICES,1937714,25-Oct-19,"1,578.22",Delivery Services (Assistant Chief Executive) ,H2940,Waste Service Provider,
BIFFA WASTE SERVICES,1934717,14-Oct-19,"3,789.60",Delivery Services (Assistant Chief Executive) ,L4974,Waste Service Provider,
BIRKENHEAD HIGH SCHOOL ACADEMY,1936788,21-Oct-19,"1,075.20",Childrens Services ,E9902,Educational Provider,
BIRKENHEAD PREPARATORY SCHOOL,1938975,30-Oct-19,"23,399.55",Childrens Services ,E1170,Services,
BIRKENHEAD PREPARATORY SCHOOL,1938975,30-Oct-19,"13,856.64",Childrens Services ,E1170,Services,
BIRKENHEAD YMCA,1937143,23-Oct-19,"9,554.60",Economic & Housing Growth ,H7180,Government Grants,
BIRKENHEAD YMCA,1937143,23-Oct-19,"30,905.57",Economic & Housing Growth ,H7180,Grants Paid,
BIRMINGHAM STAGE COMPANY (LONDON) LIMITED,1934946,15-Oct-19,"16,082.46",Delivery Services (Assistant Chief Executive) ,L3950,"Advertising, Publicity & Marketing",
BIRMINGHAM STAGE COMPANY (LONDON) LIMITED,1934946,15-Oct-19,801.60,Delivery Services (Assistant Chief Executive) ,L3950,Customer and Client Receipts - Non Vatable,
BIRTENSHAW,1935180,16-Oct-19,"19,475.66",Childrens Services ,E7080,Care Provision,
BIRTENSHAW,1935180,16-Oct-19,"17,847.59",Childrens Services ,E7080,Care Provision,
BIRTENSHAW,1935180,16-Oct-19,"20,440.32",Childrens Services ,E7080,Care Provision,
BIRTENSHAW,1935180,16-Oct-19,"17,802.67",Childrens Services ,E7080,Care Provision,
BIRTENSHAW,1938630,29-Oct-19,"3,092.44",Childrens Services ,E5870,Specialist Contracts & Fees,
BIRTENSHAW,1931731,01-Oct-19,"3,092.44",Childrens Services ,E5870,Specialist Contracts & Fees,
BLACKPOOL FYLDE & WYRE SOCIETY FOR THE DEAF,1931732,01-Oct-19,-569.40,Adult Care & Health ,S6132,Customer and Client - Community Care,
BLACKPOOL FYLDE & WYRE SOCIETY FOR THE DEAF,1938631,29-Oct-19,-569.40,Adult Care & Health ,S6132,Customer and Client - Community Care,
BLACKPOOL FYLDE & WYRE SOCIETY FOR THE DEAF,1931732,01-Oct-19,"2,236.44",Adult Care & Health ,S6132,Sensory Support - Older People (65+),
BLACKPOOL FYLDE & WYRE SOCIETY FOR THE DEAF,1938631,29-Oct-19,"2,236.44",Adult Care & Health ,S6132,Sensory Support - Older People (65+),
BLUEBELLS DAY NURSERY,1938977,30-Oct-19,806.40,Childrens Services ,E1170,Services,
BLUEBELLS DAY NURSERY,1938977,30-Oct-19,"7,484.92",Childrens Services ,E1170,Services,
BLUEBELLS DAY NURSERY,1938977,30-Oct-19,844.20,Childrens Services ,E1170,Services,
BLUEBELLS DAY NURSERY LTD,1938978,30-Oct-19,"4,569.60",Childrens Services ,E1170,Services,
BLUEBELLS DAY NURSERY LTD,1938978,30-Oct-19,"9,251.37",Childrens Services ,E1170,Services,
BMB INDUSTRIAL CABS LIMITED,1932084,02-Oct-19,"1,078.00",Childrens Services ,E9965,Grants & Subscriptions,
BMB INDUSTRIAL CABS LIMITED,1934392,11-Oct-19,991.28,Childrens Services ,E9965,Grants & Subscriptions,
BMB INDUSTRIAL CABS LIMITED,1935508,17-Oct-19,"1,024.10",Childrens Services ,E9965,Grants & Subscriptions,
BNP PARIBAS LEASING SOLUTIONS LIMITED,1938979,30-Oct-19,917.69,Delivery Services (Assistant Chief Executive) ,L4950,"Equipment, Furniture & Materials",
BNP PARIBAS LEASING SOLUTIONS LIMITED,1938979,30-Oct-19,857.69,Delivery Services (Assistant Chief Executive) ,L4950,"Equipment, Furniture & Materials",
BNR AGENCY LIMITED,1933667,08-Oct-19,"35,980.80",Adult Care & Health ,S6121,Learning & Disability Support - Adults (18-64),
BONDCARE WILLINGTON LIMITED,1931733,01-Oct-19,"2,044.00",Adult Care & Health ,S6121,Learning & Disability Support - Adults (18-64),
BONDCARE WILLINGTON LIMITED,1938632,29-Oct-19,"2,044.00",Adult Care & Health ,S6121,Learning & Disability Support - Adults (18-64),
BONDCARE WILLINGTON LIMITED,1931733,01-Oct-19,"2,100.00",Adult Care & Health ,S6121,Learning & Disability Support - Older People (65+),
BONDCARE WILLINGTON LIMITED,1931733,01-Oct-19,540.00,Adult Care & Health ,S6121,Learning & Disability Support - Older People (65+),
BONDCARE WILLINGTON LIMITED,1938632,29-Oct-19,540.00,Adult Care & Health ,S6121,Learning & Disability Support - Older People (65+),
BONDCARE WILLINGTON LIMITED,1938632,29-Oct-19,"2,100.00",Adult Care & Health ,S6121,Learning & Disability Support - Older People (65+),
BONDCARE WILLINGTON LIMITED,1931733,01-Oct-19,"2,116.00",Adult Care & Health ,S6131,Memory & Cognition Support - Older People (65+),
BONDCARE WILLINGTON LIMITED,1931733,01-Oct-19,"2,116.00",Adult Care & Health ,S6167,Memory & Cognition Support - Older People (65+),
BONDCARE WILLINGTON LIMITED,1931733,01-Oct-19,"2,116.00",Adult Care & Health ,S6167,Memory & Cognition Support - Older People (65+),
BONDCARE WILLINGTON LIMITED,1931733,01-Oct-19,"2,116.00",Adult Care & Health ,S6167,Memory & Cognition Support - Older People (65+),
BONDCARE WILLINGTON LIMITED,1931733,01-Oct-19,"2,100.00",Adult Care & Health ,S6131,Memory & Cognition Support - Older People (65+),
BONDCARE WILLINGTON LIMITED,1931733,01-Oct-19,"2,116.00",Adult Care & Health ,S6131,Memory & Cognition Support - Older People (65+),
BONDCARE WILLINGTON LIMITED,1931733,01-Oct-19,"2,100.00",Adult Care & Health ,S6132,Memory & Cognition Support - Older People (65+),
BONDCARE WILLINGTON LIMITED,1931733,01-Oct-19,"2,116.00",Adult Care & Health ,S6131,Memory & Cognition Support - Older People (65+),
BONDCARE WILLINGTON LIMITED,1938632,29-Oct-19,"2,100.00",Adult Care & Health ,S6132,Memory & Cognition Support - Older People (65+),
BONDCARE WILLINGTON LIMITED,1938632,29-Oct-19,"2,100.00",Adult Care & Health ,S6131,Memory & Cognition Support - Older People (65+),
BONDCARE WILLINGTON LIMITED,1938632,29-Oct-19,"2,116.00",Adult Care & Health ,S6167,Memory & Cognition Support - Older People (65+),
BONDCARE WILLINGTON LIMITED,1938632,29-Oct-19,"2,116.00",Adult Care & Health ,S6131,Memory & Cognition Support - Older People (65+),
BONDCARE WILLINGTON LIMITED,1938632,29-Oct-19,"2,116.00",Adult Care & Health ,S6131,Memory & Cognition Support - Older People (65+),
BONDCARE WILLINGTON LIMITED,1938632,29-Oct-19,"2,116.00",Adult Care & Health ,S6167,Memory & Cognition Support - Older People (65+),
BONDCARE WILLINGTON LIMITED,1938632,29-Oct-19,"2,116.00",Adult Care & Health ,S6131,Memory & Cognition Support - Older People (65+),
BONDCARE WILLINGTON LIMITED,1938632,29-Oct-19,"2,116.00",Adult Care & Health ,S6167,Memory & Cognition Support - Older People (65+),
BONDCARE WILLINGTON LIMITED,1931733,01-Oct-19,"2,116.00",Adult Care & Health ,S6131,Mental Health Support - Older People (65+),
BONDCARE WILLINGTON LIMITED,1931733,01-Oct-19,"2,116.00",Adult Care & Health ,S6167,Mental Health Support - Older People (65+),
BONDCARE WILLINGTON LIMITED,1931733,01-Oct-19,"2,100.00",Adult Care & Health ,S6167,Mental Health Support - Older People (65+),
BONDCARE WILLINGTON LIMITED,1931733,01-Oct-19,"2,100.00",Adult Care & Health ,S6131,Mental Health Support - Older People (65+),
BONDCARE WILLINGTON LIMITED,1931733,01-Oct-19,"2,116.00",Adult Care & Health ,S6131,Mental Health Support - Older People (65+),
BONDCARE WILLINGTON LIMITED,1931733,01-Oct-19,"2,116.00",Adult Care & Health ,S6132,Mental Health Support - Older People (65+),
BONDCARE WILLINGTON LIMITED,1938632,29-Oct-19,"2,100.00",Adult Care & Health ,S6167,Mental Health Support - Older People (65+),
BONDCARE WILLINGTON LIMITED,1938632,29-Oct-19,"2,100.00",Adult Care & Health ,S6131,Mental Health Support - Older People (65+),
BONDCARE WILLINGTON LIMITED,1938632,29-Oct-19,"2,116.00",Adult Care & Health ,S6167,Mental Health Support - Older People (65+),
BONDCARE WILLINGTON LIMITED,1938632,29-Oct-19,"2,116.00",Adult Care & Health ,S6131,Mental Health Support - Older People (65+),
BONDCARE WILLINGTON LIMITED,1938632,29-Oct-19,"2,116.00",Adult Care & Health ,S6132,Mental Health Support - Older People (65+),
BONDCARE WILLINGTON LIMITED,1938632,29-Oct-19,"2,116.00",Adult Care & Health ,S6131,Mental Health Support - Older People (65+),
BONDCARE WILLINGTON LIMITED,1931733,01-Oct-19,"2,100.00",Adult Care & Health ,S6131,Physical Support - Older People (65+),
BONDCARE WILLINGTON LIMITED,1931733,01-Oct-19,"1,884.00",Adult Care & Health ,S6131,Physical Support - Older People (65+),
BONDCARE WILLINGTON LIMITED,1931733,01-Oct-19,"2,100.00",Adult Care & Health ,S6132,Physical Support - Older People (65+),
BONDCARE WILLINGTON LIMITED,1931733,01-Oct-19,"2,100.00",Adult Care & Health ,S6132,Physical Support - Older People (65+),
BONDCARE WILLINGTON LIMITED,1931733,01-Oct-19,"2,116.00",Adult Care & Health ,S6132,Physical Support - Older People (65+),
BONDCARE WILLINGTON LIMITED,1931733,01-Oct-19,"2,044.00",Adult Care & Health ,S6131,Physical Support - Older People (65+),
BONDCARE WILLINGTON LIMITED,1931733,01-Oct-19,"2,044.00",Adult Care & Health ,S6131,Physical Support - Older People (65+),
BONDCARE WILLINGTON LIMITED,1931733,01-Oct-19,"1,884.00",Adult Care & Health ,S6131,Physical Support - Older People (65+),
BONDCARE WILLINGTON LIMITED,1931733,01-Oct-19,"1,884.00",Adult Care & Health ,S6131,Physical Support - Older People (65+),
BONDCARE WILLINGTON LIMITED,1931733,01-Oct-19,"2,116.00",Adult Care & Health ,S6131,Physical Support - Older People (65+),
BONDCARE WILLINGTON LIMITED,1931733,01-Oct-19,"2,116.00",Adult Care & Health ,S6132,Physical Support - Older People (65+),
BONDCARE WILLINGTON LIMITED,1931733,01-Oct-19,"2,116.00",Adult Care & Health ,S6167,Physical Support - Older People (65+),
BONDCARE WILLINGTON LIMITED,1931733,01-Oct-19,"2,044.00",Adult Care & Health ,S6131,Physical Support - Older People (65+),
BONDCARE WILLINGTON LIMITED,1931733,01-Oct-19,"2,116.00",Adult Care & Health ,S6131,Physical Support - Older People (65+),
BONDCARE WILLINGTON LIMITED,1931733,01-Oct-19,"2,116.00",Adult Care & Health ,S6132,Physical Support - Older People (65+),
BONDCARE WILLINGTON LIMITED,1938632,29-Oct-19,"1,884.00",Adult Care & Health ,S6131,Physical Support - Older People (65+),
BONDCARE WILLINGTON LIMITED,1938632,29-Oct-19,"1,884.00",Adult Care & Health ,S6131,Physical Support - Older People (65+),
BONDCARE WILLINGTON LIMITED,1938632,29-Oct-19,"2,044.00",Adult Care & Health ,S6131,Physical Support - Older People (65+),
BONDCARE WILLINGTON LIMITED,1938632,29-Oct-19,"2,044.00",Adult Care & Health ,S6131,Physical Support - Older People (65+),
BONDCARE WILLINGTON LIMITED,1938632,29-Oct-19,"2,044.00",Adult Care & Health ,S6131,Physical Support - Older People (65+),
BONDCARE WILLINGTON LIMITED,1938632,29-Oct-19,"2,100.00",Adult Care & Health ,S6132,Physical Support - Older People (65+),
BONDCARE WILLINGTON LIMITED,1938632,29-Oct-19,"2,100.00",Adult Care & Health ,S6131,Physical Support - Older People (65+),
BONDCARE WILLINGTON LIMITED,1938632,29-Oct-19,"2,116.00",Adult Care & Health ,S6167,Physical Support - Older People (65+),
BONDCARE WILLINGTON LIMITED,1938632,29-Oct-19,"2,100.00",Adult Care & Health ,S6132,Physical Support - Older People (65+),
BONDCARE WILLINGTON LIMITED,1938632,29-Oct-19,"1,884.00",Adult Care & Health ,S6131,Physical Support - Older People (65+),
BONDCARE WILLINGTON LIMITED,1938632,29-Oct-19,"2,116.00",Adult Care & Health ,S6131,Physical Support - Older People (65+),
BONDCARE WILLINGTON LIMITED,1938632,29-Oct-19,"2,116.00",Adult Care & Health ,S6131,Physical Support - Older People (65+),
BONDCARE WILLINGTON LIMITED,1938632,29-Oct-19,"2,116.00",Adult Care & Health ,S6132,Physical Support - Older People (65+),
BONDCARE WILLINGTON LIMITED,1938632,29-Oct-19,"2,116.00",Adult Care & Health ,S6132,Physical Support - Older People (65+),
BONDCARE WILLINGTON LIMITED,1938632,29-Oct-19,"2,116.00",Adult Care & Health ,S6132,Physical Support - Older People (65+),
BONDCARE WILLINGTON LIMITED,1931733,01-Oct-19,"2,100.00",Adult Care & Health ,S6131,Sensory Support - Older People (65+),
BONDCARE WILLINGTON LIMITED,1938632,29-Oct-19,"2,100.00",Adult Care & Health ,S6131,Sensory Support - Older People (65+),
BRADFORD COUNCIL,1931735,01-Oct-19,"4,738.00",Childrens Services ,E3680,Services,
BRADLEYS ESTATE AGENTS LIMITED,1938634,29-Oct-19,"1,103.01",Economic & Housing Growth ,H6080,Expenses,
BRENNTAG UK LIMITED,1938423,28-Oct-19,737.80,Delivery Services (Assistant Chief Executive) ,L3240,"Equipment, Furniture & Materials",
BRIGHT SMILES DAY NURSERY,1938982,30-Oct-19,"2,419.20",Childrens Services ,E1170,Services,
BRIGHT SMILES DAY NURSERY,1938982,30-Oct-19,"4,811.58",Childrens Services ,E1170,Services,
BRIGHT STARS CHILDCARE - CHARLOTTE TULLETT,1938983,30-Oct-19,"-1,068.21",Childrens Services ,E1170,Services,
BRIGHT STARS CHILDCARE - CHARLOTTE TULLETT,1938983,30-Oct-19,875.70,Childrens Services ,E1170,Services,
BRITISH GAS BUSINESS,1934950,15-Oct-19,639.54,Adult Care & Health ,S6244,Energy Costs,
BRITISH GAS BUSINESS,1934950,15-Oct-19,715.29,Childrens Services ,E1410,Energy Costs,
BRITISH GAS BUSINESS,1934950,15-Oct-19,975.45,Childrens Services ,E1420,Energy Costs,
BRITISH GAS BUSINESS,1934950,15-Oct-19,676.03,Childrens Services ,E6763,Energy Costs,
BRITISH GAS BUSINESS,1934950,15-Oct-19,919.15,Childrens Services ,E1220,Energy Costs,
BRITISH GAS BUSINESS,1934950,15-Oct-19,"1,383.49",Delivery Services (Assistant Chief Executive) ,D2680,Energy Costs,
BRITISH GAS BUSINESS,1934950,15-Oct-19,"4,647.16",Delivery Services (Assistant Chief Executive) ,D2550,Energy Costs,
BRITISH GAS BUSINESS,1934950,15-Oct-19,724.39,Delivery Services (Assistant Chief Executive) ,D3512,Energy Costs,
BRITISH GAS BUSINESS,1934950,15-Oct-19,"1,050.04",Delivery Services (Assistant Chief Executive) ,D2550,Energy Costs,
BRITISH GAS BUSINESS,1934950,15-Oct-19,"1,318.94",Delivery Services (Assistant Chief Executive) ,L4972,Energy Costs,
BRITISH GAS BUSINESS,1934950,15-Oct-19,"2,047.83",Delivery Services (Assistant Chief Executive) ,L3910,Energy Costs,
BRITISH GAS BUSINESS,1934950,15-Oct-19,"2,279.65",Delivery Services (Assistant Chief Executive) ,L3030,Energy Costs,
BRITISH GAS BUSINESS,1934950,15-Oct-19,942.75,Delivery Services (Assistant Chief Executive) ,D3520,Energy Costs,
BRITISH GAS BUSINESS,1934950,15-Oct-19,812.30,Delivery Services (Assistant Chief Executive) ,L2470,Energy Costs,
BRITISH GAS BUSINESS,1934950,15-Oct-19,"2,239.68",Delivery Services (Assistant Chief Executive) ,D2700,Energy Costs,
BRITISH GAS BUSINESS,1934950,15-Oct-19,"1,005.68",Delivery Services (Assistant Chief Executive) ,L5330,Energy Costs,
BRITISH GAS BUSINESS,1934950,15-Oct-19,"1,801.70",Delivery Services (Assistant Chief Executive) ,D2620,Energy Costs,
BRITISH GAS BUSINESS,1934950,15-Oct-19,"1,350.66",Delivery Services (Assistant Chief Executive) ,T4020,Energy Costs,
BRITISH GAS BUSINESS,1934950,15-Oct-19,637.94,Delivery Services (Assistant Chief Executive) ,L4971,Energy Costs,
BRITISH GAS BUSINESS,1934950,15-Oct-19,"1,036.06",Delivery Services (Assistant Chief Executive) ,D2640,Energy Costs,
BRITISH GAS BUSINESS,1934950,15-Oct-19,"3,166.72",Delivery Services (Assistant Chief Executive) ,D2550,Energy Costs,
BRITISH GAS BUSINESS,1934950,15-Oct-19,"5,366.55",Delivery Services (Assistant Chief Executive) ,L4950,Energy Costs,
BRITISH GAS BUSINESS,1934950,15-Oct-19,770.23,Delivery Services (Assistant Chief Executive) ,D2180,Energy Costs,
BRITISH GAS BUSINESS,1934950,15-Oct-19,-999.74,Delivery Services (Assistant Chief Executive) ,V1920,Energy Costs,
BRITISH GAS BUSINESS,1934950,15-Oct-19,-916.10,Delivery Services (Assistant Chief Executive) ,V1920,Energy Costs,
BRITISH GAS BUSINESS,1934950,15-Oct-19,"-1,143.56",Delivery Services (Assistant Chief Executive) ,V1920,Energy Costs,
BRITISH GAS BUSINESS,1934950,15-Oct-19,"-1,000.78",Delivery Services (Assistant Chief Executive) ,V1920,Energy Costs,
BRITISH GAS BUSINESS,1934950,15-Oct-19,757.75,Delivery Services (Assistant Chief Executive) ,V1920,Energy Costs,
BRITISH GAS BUSINESS,1934950,15-Oct-19,785.30,Delivery Services (Assistant Chief Executive) ,V1920,Energy Costs,
BRITISH GAS BUSINESS,1934950,15-Oct-19,626.08,Delivery Services (Assistant Chief Executive) ,V1920,Energy Costs,
BRITISH GAS BUSINESS,1934950,15-Oct-19,682.76,Delivery Services (Assistant Chief Executive) ,V1920,Energy Costs,
BROOK YOUNG PEOPLE,1938638,29-Oct-19,"11,300.00",Adult Care & Health ,P4090,Hired or Contracted services,
BROOKDALE PRE SCHOOL GROUP,1938984,30-Oct-19,"11,423.30",Childrens Services ,E1170,Services,
BROOKFIELD CARE AGENCY LIMITED,1935185,16-Oct-19,"20,740.20",Adult Care & Health ,S6111,Physical Support - Older People (65+),
BROOKFIELD HOUSE,1938985,30-Oct-19,"12,312.00",Childrens Services ,E3680,Care Provision,
BROOKFIELD HOUSE,1934400,11-Oct-19,"13,440.00",Childrens Services ,E7080,Care Provision,
BROOKFIELD HOUSE,1934400,11-Oct-19,"13,440.00",Childrens Services ,E7080,Care Provision,
BROOKHURST PRE SCHOOL,1938986,30-Oct-19,645.12,Childrens Services ,E1170,Services,
BROOKHURST PRE SCHOOL,1938986,30-Oct-19,"12,826.80",Childrens Services ,E1170,Services,
BROOKLANDS CARE HOME,1931741,01-Oct-19,"2,111.48",Adult Care & Health ,S6142,Physical Support - Older People (65+),
BROOKLANDS CARE HOME,1938639,29-Oct-19,"2,111.48",Adult Care & Health ,S6142,Physical Support - Older People (65+),
BROOKSIDE PRIMARY SCHOOL,1931742,01-Oct-19,"2,375.00",Childrens Services ,E3680,Care Provision,
BROOKSIDE PRIMARY SCHOOL,1931742,01-Oct-19,"2,375.00",Childrens Services ,E3680,Care Provision,
BROTHERS OF CHARITY SERVICES ,1931743,01-Oct-19,"11,499.58",Adult Care & Health ,S6121,Learning & Disability Support - Adults (18-64),
BROTHERS OF CHARITY SERVICES  ,1935186,16-Oct-19,"11,499.58",Adult Care & Health ,S6121,Learning & Disability Support - Adults (18-64),
BROXAP LIMITED,1935187,16-Oct-19,"3,578.40",Delivery Services (Assistant Chief Executive) ,V1920,"Equipment, Furniture & Materials",
BRYN MELYN CARE LIMITED,1933675,08-Oct-19,"22,439.57",Childrens Services ,E7080,Care Provision,
BRYN MELYN CARE LIMITED,1933675,08-Oct-19,"23,477.14",Childrens Services ,E7080,Care Provision,
BRYN MELYN CARE LIMITED,1934150,10-Oct-19,"21,715.71",Childrens Services ,E7080,Care Provision,
BRYN MELYN CARE LIMITED,1935188,16-Oct-19,"4,000.00",Childrens Services ,E7080,Care Provision,
BT BUSINESS DIRECT,1934952,15-Oct-19,"1,149.60",Business Management ,F4409,Communications & Computing,
BT GLOBAL SERVICES,1937151,23-Oct-19,"2,005.70",Business Management ,F4410,Hired or Contracted services,
BT GLOBAL SERVICES,1937151,23-Oct-19,"4,277.92",Business Management ,F4410,Hired or Contracted services,
BT GLOBAL SERVICES,1937151,23-Oct-19,950.41,Business Management ,F4410,Hired or Contracted services,
BT GLOBAL SERVICES,1937151,23-Oct-19,636.14,Business Management ,F4410,Hired or Contracted services,
BT GLOBAL SERVICES,1937151,23-Oct-19,916.81,Business Management ,F4410,Hired or Contracted services,
BT GLOBAL SERVICES,1937151,23-Oct-19,"2,005.70",Business Management ,F4410,Hired or Contracted services,
BT GLOBAL SERVICES,1937151,23-Oct-19,883.21,Business Management ,F4410,Hired or Contracted services,
BT GLOBAL SERVICES,1937151,23-Oct-19,"2,194.91",Business Management ,F4410,Hired or Contracted services,
BT GLOBAL SERVICES,1937151,23-Oct-19,869.24,Childrens Services ,E4470,Communications & Computing,
BUILDING BLOCKS DAY NURSERY,1938987,30-Oct-19,"14,515.20",Childrens Services ,E1170,Services,
BUILDING BLOCKS DAY NURSERY,1938987,30-Oct-19,"20,181.37",Childrens Services ,E1170,Services,
BUILDING BRIDGES (CARE HOMES) LTD,1934401,11-Oct-19,"10,714.29",Childrens Services ,E7080,Care Provision,
BUILDING BRIDGES (CARE HOMES) LTD,1934401,11-Oct-19,"10,714.29",Childrens Services ,E7080,Care Provision,
BUILDING BRIDGES (CARE HOMES) LTD,1934401,11-Oct-19,"11,357.14",Childrens Services ,E7080,Care Provision,
BUPA CARE HOMES,1931744,01-Oct-19,"2,100.00",Adult Care & Health ,S6141,Memory & Cognition Support - Older People (65+),
BUPA CARE HOMES,1938640,29-Oct-19,"2,100.00",Adult Care & Health ,S6141,Memory & Cognition Support - Older People (65+),
BUPA CARE HOMES,1931744,01-Oct-19,"2,044.00",Adult Care & Health ,S6142,Physical Support - Older People (65+),
BUPA CARE HOMES,1931744,01-Oct-19,"2,044.00",Adult Care & Health ,S6141,Physical Support - Older People (65+),
BUPA CARE HOMES,1931744,01-Oct-19,"2,044.00",Adult Care & Health ,S6132,Physical Support - Older People (65+),
BUPA CARE HOMES,1931744,01-Oct-19,"2,100.00",Adult Care & Health ,S6132,Physical Support - Older People (65+),
BUPA CARE HOMES,1931744,01-Oct-19,"1,009.29",Adult Care & Health ,S6142,Physical Support - Older People (65+),
BUPA CARE HOMES,1938640,29-Oct-19,"2,044.00",Adult Care & Health ,S6142,Physical Support - Older People (65+),
BUPA CARE HOMES,1938640,29-Oct-19,"2,044.00",Adult Care & Health ,S6141,Physical Support - Older People (65+),
BUPA CARE HOMES,1938640,29-Oct-19,"2,044.00",Adult Care & Health ,S6132,Physical Support - Older People (65+),
BUPA CARE HOMES,1938640,29-Oct-19,"2,100.00",Adult Care & Health ,S6132,Physical Support - Older People (65+),
BURLEIGH STONE LIMITED,1932418,03-Oct-19,"1,008.00",Delivery Services (Assistant Chief Executive) ,L4973,Grounds Maintenance,
BURLINGTON CARE LIMITED,1931745,01-Oct-19,"2,322.40",Adult Care & Health ,S6167,Mental Health Support - Older People (65+),
BURLINGTON CARE LIMITED,1938641,29-Oct-19,"2,322.40",Adult Care & Health ,S6167,Mental Health Support - Older People (65+),
BUSY BEES BROMBOROUGH,1938988,30-Oct-19,"10,483.20",Childrens Services ,E1170,Services,
BUSY BEES BROMBOROUGH,1938988,30-Oct-19,"21,133.53",Childrens Services ,E1170,Services,
BUSY NOUGHT TO FIVES,1938989,30-Oct-19,537.60,Childrens Services ,E1170,Services,
BUSY NOUGHT TO FIVES,1938989,30-Oct-19,"1,568.64",Childrens Services ,E1170,Services,
BUTTERCUPS CHILDMINDING - VICTORIA ASHWORTH,1938990,30-Oct-19,"1,344.00",Childrens Services ,E1170,Services,
BUTTERCUPS CHILDMINDING - VICTORIA ASHWORTH,1938990,30-Oct-19,746.20,Childrens Services ,E1170,Services,
BWT CONSULTANCY LIMITED,1933420,07-Oct-19,"3,000.00",Adult Care & Health ,P4294,Hired or Contracted services,
BY THE BRIDGE LIMITED,1933677,08-Oct-19,"4,179.00",Childrens Services ,E7080,Care Provision,
BY THE BRIDGE LIMITED,1933677,08-Oct-19,"3,965.79",Childrens Services ,E7080,Care Provision,
BY THE BRIDGE LIMITED,1933677,08-Oct-19,"6,379.93",Childrens Services ,E7080,Care Provision,
BY THE BRIDGE LIMITED,1933677,08-Oct-19,"3,766.50",Childrens Services ,E7080,Care Provision,
BY THE BRIDGE LIMITED,1933677,08-Oct-19,"3,969.00",Childrens Services ,E7080,Care Provision,
BY THE BRIDGE LIMITED,1933677,08-Oct-19,"4,387.95",Childrens Services ,E7080,Care Provision,
BY THE BRIDGE LIMITED,1933677,08-Oct-19,"3,965.79",Childrens Services ,E7080,Care Provision,
BY THE BRIDGE LIMITED,1933677,08-Oct-19,"3,969.00",Childrens Services ,E7080,Care Provision,
BY THE BRIDGE LIMITED,1933677,08-Oct-19,"3,969.00",Childrens Services ,E7080,Care Provision,
BYROM & THOMAS,1934954,15-Oct-19,"2,100.00",Economic & Housing Growth ,H8050,Hospitality,
C & D SURFACING LIMITED,1936972,22-Oct-19,"32,843.28",Delivery Services (Assistant Chief Executive) ,V1920,Hired or Contracted services,
C S SYSTEMS,1934725,14-Oct-19,"5,400.00",Transformation and Resources,C0348,Computer - Hardware,
C&I WELLNESS LIMITED T/A CHOKIE MASSAGE AND BEAUTY THERAPY,1935518,17-Oct-19,861.00,Childrens Services ,E9965,Grants & Subscriptions,
C&I WELLNESS LIMITED T/A CHOKIE MASSAGE AND BEAUTY THERAPY,1935518,17-Oct-19,645.75,Childrens Services ,E9965,Grants & Subscriptions,
CALDY CONSTRUCTION LIMITED,1933423,07-Oct-19,"5,658.00",RE  Housing & Community Safety,C4115,Expenditure on Capital Grants,
CALDY CONSTRUCTION LIMITED,1938643,29-Oct-19,"5,037.00",RE  Housing & Community Safety,C4117,Expenditure on Capital Grants,
CAMBIAN CHILDCARE LIMITED,1933678,08-Oct-19,"14,357.10",Childrens Services ,E7080,Care Provision,
CAMBIAN CHILDCARE LIMITED,1933678,08-Oct-19,"13,285.80",Childrens Services ,E7080,Care Provision,
CAMBIAN CHILDCARE LIMITED,1934152,10-Oct-19,"-26,138.70",Childrens Services ,E7080,Care Provision,
CAMBIAN CHILDCARE LIMITED,1934152,10-Oct-19,"-26,138.70",Childrens Services ,E7080,Care Provision,
CAMBIAN CHILDCARE LIMITED,1934152,10-Oct-19,"-19,285.80",Childrens Services ,E7080,Care Provision,
CAMBIAN CHILDCARE LIMITED,1934152,10-Oct-19,"26,138.70",Childrens Services ,E7080,Care Provision,
CAMBIAN CHILDCARE LIMITED,1934152,10-Oct-19,"19,285.80",Childrens Services ,E7080,Care Provision,
CAMBIAN CHILDCARE LIMITED,1934152,10-Oct-19,"26,138.70",Childrens Services ,E7080,Care Provision,
CAMBIAN CHILDCARE LIMITED,1934152,10-Oct-19,"1,742.58",Childrens Services ,E7080,Care Provision,
CAMBIAN CHILDCARE LIMITED,1934152,10-Oct-19,"18,000.08",Childrens Services ,E7080,Care Provision,
CAMBIAN CHILDCARE LIMITED,1934403,11-Oct-19,"27,009.99",Childrens Services ,E7080,Care Provision,
CAMBIAN CHILDCARE LIMITED,1934403,11-Oct-19,"3,542.99",Childrens Services ,E7080,Care Provision,
CAMBIAN CHILDCARE LIMITED,1933678,08-Oct-19,"3,428.70",Childrens Services ,E5870,Specialist Contracts & Fees,
CAMBIAN WHINFELL SCHOOL LIMITED,1931747,01-Oct-19,"24,166.67",Childrens Services ,E5870,Specialist Contracts & Fees,
CAMBRIAN SUPPORTED LIVING,1933679,08-Oct-19,"22,084.39",Adult Care & Health ,S6121,Learning & Disability Support - Adults (18-64),
CAMBRIANWAY LIMITED,1934153,10-Oct-19,"123,468.52",RE  Environment & Regulation,C5172,Contractors - Main,
CAMBRIANWAY LIMITED,1933903,09-Oct-19,"33,411.72",Business Services,X8500,Credit,
CAMBRIANWAY LIMITED,1933903,09-Oct-19,"11,536.92",Business Services,X8500,Credit,
CAMBRIANWAY LIMITED,1933903,09-Oct-19,"3,766.94",Business Services,X8500,Credit,
CANDA COPYING LTD,1932090,02-Oct-19,"1,056.58",Business Management ,F4410,"Printing, Stationery & General Office Expenses",
CANDA COPYING LTD,1932090,02-Oct-19,936.00,Business Management ,V1990,"Printing, Stationery & General Office Expenses",
CANDA COPYING LTD,1932090,02-Oct-19,"1,636.50",Business Management ,F4410,"Printing, Stationery & General Office Expenses",
CANDA COPYING LTD,1932090,02-Oct-19,898.54,Business Management ,F4410,"Printing, Stationery & General Office Expenses",
CANDA COPYING LTD,1932090,02-Oct-19,685.07,Business Management ,F4410,"Printing, Stationery & General Office Expenses",
CARE 4 CHILDREN RESIDENTIAL SERVICES LIMITED,1933681,08-Oct-19,"4,285.80",Childrens Services ,E7080,Care Provision,
CARE CONNECT WIRRAL LTD,1936548,18-Oct-19,"11,742.90",Adult Care & Health ,S6111,Physical Support - Older People (65+),
CARE IN MIND RESIDENTIAL SERVICES,1931748,01-Oct-19,"16,660.00",Adult Care & Health ,S6161,Mental Health Support - Adults (18-64),
CARE IN MIND RESIDENTIAL SERVICES,1938645,29-Oct-19,"16,660.00",Adult Care & Health ,S6161,Mental Health Support - Adults (18-64),
CAREER CONNECT,1939461,31-Oct-19,"38,947.86",Childrens Services ,E9960,Hired or Contracted services,
CARITAS CARE,1936799,21-Oct-19,"2,142.86",Childrens Services ,E7031,Care Provision,
CARITAS DIOCESE OF SHREWSBURY,1932423,03-Oct-19,"13,117.50",Childrens Services ,E5850,Hired or Contracted services,
CARR STONEWORK,1933215,04-Oct-19,575.00,Delivery Services (Assistant Chief Executive) ,L4972,Grounds Maintenance,
CARR STONEWORK,1936549,18-Oct-19,"1,000.00",Delivery Services (Assistant Chief Executive) ,L4972,Grounds Maintenance,
CARRIE-ANNE'S CHILDMINDING-CARRIE-ANNE MARMION,1938994,30-Oct-19,"1,655.85",Childrens Services ,E1170,Services,
CASCBARROW LIMITED,1934158,10-Oct-19,"11,200.00",Childrens Services ,E7080,Care Provision,
CASTLE ACCESSIBLE TRANSPORT,1933429,07-Oct-19,"3,960.00",Delivery Services (Assistant Chief Executive) ,S5600,Care Provision,
CASTLE ACCESSIBLE TRANSPORT,1934959,15-Oct-19,"3,960.00",Delivery Services (Assistant Chief Executive) ,S5600,Care Provision,
CASTLE ACCESSIBLE TRANSPORT,1936800,21-Oct-19,"3,960.00",Delivery Services (Assistant Chief Executive) ,S5600,Care Provision,
CASTLE ACCESSIBLE TRANSPORT,1938647,29-Oct-19,"3,960.00",Delivery Services (Assistant Chief Executive) ,S5600,Care Provision,
CATHEDRAL LEASING LTD,1935194,16-Oct-19,"1,177.78",Delivery Services (Assistant Chief Executive) ,D3535,"Equipment, Furniture & Materials",
CATHERINE JONES - CHILDMINDER,1938995,30-Oct-19,759.78,Childrens Services ,E1170,Services,
CATHERINE REILLY-CHILDMINDER,1938996,30-Oct-19,"1,110.37",Childrens Services ,E1170,Services,
CBC COMPUTER SYSTEMS LIMITED,1938998,30-Oct-19,"6,352.20",Business Management ,F4300,"Equipment, Furniture & Materials",
CBC COMPUTER SYSTEMS LIMITED,1938649,29-Oct-19,927.60,Business Management ,F4300,"Equipment, Furniture & Materials",
CBC COMPUTER SYSTEMS LIMITED,1938649,29-Oct-19,"5,406.00",Business Management ,F4300,"Equipment, Furniture & Materials",
CEDAR HOUSE SCHOOL (A DIVISION OF WITHERSLACK GROUP LTD),1931751,01-Oct-19,"19,194.00",Childrens Services ,E5870,Specialist Contracts & Fees,
CEDARS CARE GROUP LIMITED,1931752,01-Oct-19,"1,990.20",Adult Care & Health ,S6142,Physical Support - Older People (65+),
CEDARS CARE GROUP LIMITED,1938650,29-Oct-19,"1,990.20",Adult Care & Health ,S6142,Physical Support - Older People (65+),
CELLS PROJECT CIC,1933431,07-Oct-19,965.00,Business Management ,B7565,Grants to Voluntary Organisations,
CELLS PROJECT CIC,1936801,21-Oct-19,965.00,Business Management ,B7565,Grants to Voluntary Organisations,
CELLS PROJECT CIC,1937396,24-Oct-19,965.00,Business Management ,B7565,Grants to Voluntary Organisations,
CENCODE LIMITED,1939000,30-Oct-19,"3,060.05",RE  Environment & Regulation,C5233,Consultants Fees,
CENCODE LIMITED,1934160,10-Oct-19,"3,018.75",RE  Environment & Regulation,C5233,Consultants Fees,
CENCODE LIMITED,1934409,11-Oct-19,"3,014.05",RE  Environment & Regulation,C5233,Consultants Fees,
CENCODE LIMITED,1934409,11-Oct-19,"3,078.30",RE  Environment & Regulation,C5233,Consultants Fees,
CENCODE LIMITED,1936802,21-Oct-19,"3,016.25",RE  Environment & Regulation,C5233,Consultants Fees,
CENTURY HEALTHCARE LIMITED,1931754,01-Oct-19,"2,116.00",Adult Care & Health ,S6132,Memory & Cognition Support - Older People (65+),
CENTURY HEALTHCARE LIMITED,1931754,01-Oct-19,"2,116.00",Adult Care & Health ,S6131,Memory & Cognition Support - Older People (65+),
CENTURY HEALTHCARE LIMITED,1931754,01-Oct-19,"2,116.00",Adult Care & Health ,S6132,Memory & Cognition Support - Older People (65+),
CENTURY HEALTHCARE LIMITED,1931754,01-Oct-19,"2,116.00",Adult Care & Health ,S6141,Memory & Cognition Support - Older People (65+),
CENTURY HEALTHCARE LIMITED,1931754,01-Oct-19,"2,116.00",Adult Care & Health ,S6131,Memory & Cognition Support - Older People (65+),
CENTURY HEALTHCARE LIMITED,1931754,01-Oct-19,715.36,Adult Care & Health ,S6131,Memory & Cognition Support - Older People (65+),
CENTURY HEALTHCARE LIMITED,1931754,01-Oct-19,"2,116.00",Adult Care & Health ,S6167,Memory & Cognition Support - Older People (65+),
CENTURY HEALTHCARE LIMITED,1938651,29-Oct-19,715.36,Adult Care & Health ,S6131,Memory & Cognition Support - Older People (65+),
CENTURY HEALTHCARE LIMITED,1938651,29-Oct-19,"2,116.00",Adult Care & Health ,S6132,Memory & Cognition Support - Older People (65+),
CENTURY HEALTHCARE LIMITED,1938651,29-Oct-19,"2,116.00",Adult Care & Health ,S6131,Memory & Cognition Support - Older People (65+),
CENTURY HEALTHCARE LIMITED,1938651,29-Oct-19,"2,116.00",Adult Care & Health ,S6141,Memory & Cognition Support - Older People (65+),
CENTURY HEALTHCARE LIMITED,1938651,29-Oct-19,"2,116.00",Adult Care & Health ,S6167,Memory & Cognition Support - Older People (65+),
CENTURY HEALTHCARE LIMITED,1938651,29-Oct-19,"2,116.00",Adult Care & Health ,S6132,Memory & Cognition Support - Older People (65+),
CENTURY HEALTHCARE LIMITED,1938651,29-Oct-19,"2,116.00",Adult Care & Health ,S6131,Memory & Cognition Support - Older People (65+),
CENTURY HEALTHCARE LIMITED,1931754,01-Oct-19,"2,116.00",Adult Care & Health ,S6167,Mental Health Support - Older People (65+),
CENTURY HEALTHCARE LIMITED,1931754,01-Oct-19,595.36,Adult Care & Health ,S6167,Mental Health Support - Older People (65+),
CENTURY HEALTHCARE LIMITED,1931754,01-Oct-19,"2,116.00",Adult Care & Health ,S6167,Mental Health Support - Older People (65+),
CENTURY HEALTHCARE LIMITED,1931754,01-Oct-19,"2,116.00",Adult Care & Health ,S6167,Mental Health Support - Older People (65+),
CENTURY HEALTHCARE LIMITED,1931754,01-Oct-19,"2,116.00",Adult Care & Health ,S6167,Mental Health Support - Older People (65+),
CENTURY HEALTHCARE LIMITED,1931754,01-Oct-19,"2,116.00",Adult Care & Health ,S6167,Mental Health Support - Older People (65+),
CENTURY HEALTHCARE LIMITED,1931754,01-Oct-19,803.00,Adult Care & Health ,S6132,Mental Health Support - Older People (65+),
CENTURY HEALTHCARE LIMITED,1938651,29-Oct-19,595.36,Adult Care & Health ,S6167,Mental Health Support - Older People (65+),
CENTURY HEALTHCARE LIMITED,1938651,29-Oct-19,"2,044.00",Adult Care & Health ,S6132,Mental Health Support - Older People (65+),
CENTURY HEALTHCARE LIMITED,1938651,29-Oct-19,"2,116.00",Adult Care & Health ,S6167,Mental Health Support - Older People (65+),
CENTURY HEALTHCARE LIMITED,1938651,29-Oct-19,"2,116.00",Adult Care & Health ,S6167,Mental Health Support - Older People (65+),
CENTURY HEALTHCARE LIMITED,1938651,29-Oct-19,"2,116.00",Adult Care & Health ,S6167,Mental Health Support - Older People (65+),
CENTURY HEALTHCARE LIMITED,1938651,29-Oct-19,"2,116.00",Adult Care & Health ,S6167,Mental Health Support - Older People (65+),
CENTURY HEALTHCARE LIMITED,1938651,29-Oct-19,"2,116.00",Adult Care & Health ,S6167,Mental Health Support - Older People (65+),
CENTURY HEALTHCARE LIMITED,1931754,01-Oct-19,755.71,Adult Care & Health ,S6141,Physical Support - Older People (65+),
CENTURY HEALTHCARE LIMITED,1938651,29-Oct-19,"2,116.00",Adult Care & Health ,S6142,Physical Support - Older People (65+),
CENTURY HEALTHCARE LIMITED,1938651,29-Oct-19,605.36,Adult Care & Health ,S6142,Physical Support - Older People (65+),
CHAMBERS TOURING LIMITED,1933686,08-Oct-19,"6,000.00",Delivery Services (Assistant Chief Executive) ,L3950,Customer and Client Receipts - Non Vatable,
CHANGE GROW LIVE SERVICES LIMITED,1938652,29-Oct-19,"672,717.00",Adult Care & Health ,P4029,Contracts With Voluntary Organisations,
CHESCOMBE TRUST LTD,1931758,01-Oct-19,"5,660.48",Adult Care & Health ,S6121,Learning & Disability Support - Adults (18-64),
CHESCOMBE TRUST LTD,1931758,01-Oct-19,"7,969.16",Adult Care & Health ,S6121,Learning & Disability Support - Adults (18-64),
CHESCOMBE TRUST LTD,1938653,29-Oct-19,"5,660.48",Adult Care & Health ,S6121,Learning & Disability Support - Adults (18-64),
CHESCOMBE TRUST LTD,1938653,29-Oct-19,"7,969.16",Adult Care & Health ,S6121,Learning & Disability Support - Adults (18-64),
CHESHIRE & WARRINGTON TOURISM BOARD,1935196,16-Oct-19,"2,250.00",Business Management ,B9500,"Advertising, Publicity & Marketing",
CHESHIRE & WIRRAL PARTNERSHIP NHS FOUNDATION TRUST,1937749,25-Oct-19,"4,935.00",Adult Care & Health ,P4192,Payments to Other Agencies,
CHESHIRE BATHROOMS & WET ROOMS,1934731,14-Oct-19,"4,447.00",RE  Housing & Community Safety,C4115,Expenditure on Capital Grants,
CHESHIRE BATHROOMS & WET ROOMS,1936803,21-Oct-19,"5,830.00",RE  Housing & Community Safety,C4115,Expenditure on Capital Grants,
CHESHIRE RES HOMES TRUST,1931759,01-Oct-19,"1,884.00",Adult Care & Health ,S6167,Mental Health Support - Older People (65+),
CHESHIRE RES HOMES TRUST,1938654,29-Oct-19,"1,884.00",Adult Care & Health ,S6167,Mental Health Support - Older People (65+),
CHESHIRE WEST & CHESTER COUNCIL,1934963,15-Oct-19,"2,289.00",Childrens Services ,E3680,Services,
CHESHIRE WEST & CHESTER COUNCIL,1937153,23-Oct-19,"6,703.00",Childrens Services ,E5360,Services,
CHESHIRE WEST & CHESTER COUNCIL,1931760,01-Oct-19,"1,971.50",Childrens Services ,E3680,Services,
CHESHIRE WEST & CHESTER COUNCIL,239833,17-Oct-19,"9,080.65",Economic & Housing Growth ,H7850,Hired or Contracted services,
CHESS CYBERSECURITY LIMITED,1932463,03-Oct-19,"3,213.60",Business Management ,F4610,Communications & Computing,
CHESTER HEALTHCARE LIMITED T/A JANE LEWIS,1932095,02-Oct-19,850.20,Adult Care & Health ,E6761,Care Provision,
CHESTER HEALTHCARE LIMITED T/A JANE LEWIS,1938427,28-Oct-19,747.30,Adult Care & Health ,E6761,Care Provision,
CHILDWALL TABLE & CHAIR HIRE,1936552,18-Oct-19,"2,213.40",Business Management ,B7535,General Supplies and Services,
CHOICE LIMITED,1931761,01-Oct-19,"7,344.00",Adult Care & Health ,S6121,Learning & Disability Support - Adults (18-64),
CHOICE LIMITED,1938655,29-Oct-19,"7,344.00",Adult Care & Health ,S6121,Learning & Disability Support - Adults (18-64),
CHOICES HOME FOR CHILDREN LIMITED,1934162,10-Oct-19,"11,357.00",Childrens Services ,E7080,Care Provision,
CHOICES HOME FOR CHILDREN LIMITED,1934412,11-Oct-19,"16,620.00",Childrens Services ,E7080,Care Provision,
CHRIS EDWARDS T/A CVTS MAC TOOLS,1934413,11-Oct-19,618.00,Delivery Services (Assistant Chief Executive) ,T4020,"Equipment, Furniture & Materials",
CHRISTOPHER KATKOWSKI QC,1933436,07-Oct-19,"12,000.00",Economic & Housing Growth ,B7050,Consultants,
CIVICA UK LIMITED,1935592,17-Oct-19,"-1,392.00",Business Management ,A1302,Communications & Computing,
CIVICA UK LIMITED,1935592,17-Oct-19,"12,300.00",Business Management ,A1350,Contract Hire & Operating Leases,
CLARITY INFORMATION SOLUTIONS LIMITED,1938429,28-Oct-19,"1,080.00",Delivery Services (Assistant Chief Executive) ,V1500,General Supplies and Services,
CLAUGHTON COMMUNITY GROUP,1934418,11-Oct-19,"1,000.00",Business Management ,B7600,Grants to Voluntary Organisations,
CLICK TRAVEL,1932490,03-Oct-19,"2,936.84",Business Management ,F4600,Services,
CLICK TRAVEL,1932490,03-Oct-19,"3,998.88",Business Management ,A1300,Services,
CLICK TRAVEL,1932490,03-Oct-19,"6,170.12",Childrens Services ,E9960,Services,
CLOVER TECHNICAL SERVICES LIMITED,1932491,03-Oct-19,"27,816.00",Delivery Services (Assistant Chief Executive) ,D8000,"Repairs, alterations and maintenance",
COASTAL ENGINEERING UK LIMITED,1933909,09-Oct-19,"3,240.00",Delivery Services (Assistant Chief Executive) ,V1430,General Supplies and Services,
COGNITIVE NETWORK SOLUTIONS LIMITED,1933441,07-Oct-19,"2,623.15",Business Management ,F4410,Communications & Computing,
COLLISTER & GLOVER (PIPELINE MATERIALS) LIMITED,1937162,23-Oct-19,966.55,Delivery Services (Assistant Chief Executive) ,D3535,"Repairs, alterations and maintenance",
COMMERCIAL COLOURS LIMITED,1934420,11-Oct-19,"2,493.90",Delivery Services (Assistant Chief Executive) ,T4020,Premises Insurance,
COMMS EXPRESS LTD,1936557,18-Oct-19,778.20,Business Management ,F4410,Communications & Computing,
COMMUNITY ACTION WIRRAL,1938432,28-Oct-19,"11,392.00",Adult Care & Health ,P4307,Hired or Contracted services,
COMMUNITY CARING LTD          ,1934171,10-Oct-19,"8,710.76",Adult Care & Health ,S6121,Physical Support - Adults (18-64),
COMMUNITY CARING LTD          ,1935204,16-Oct-19,"6,240.00",Adult Care & Health ,S6111,Physical Support - Adults (18-64),
COMMUNITY CARING LTD          ,1937782,25-Oct-19,"5,031.00",Adult Care & Health ,S6111,Physical Support - Adults (18-64),
COMMUNITY CARING LTD          ,1932100,02-Oct-19,"191,585.80",Adult Care & Health ,S6111,Physical Support - Older People (65+),
COMMUNITY CARING LTD          ,1936982,22-Oct-19,"174,288.82",Adult Care & Health ,S6132,Physical Support - Older People (65+),
COMMUNITY SUPPORTED LIVING LTD,1934422,11-Oct-19,"76,135.61",Adult Care & Health ,S6121,Learning & Disability Support - Adults (18-64),
COMMUNITY SUPPORTED LIVING LTD,1931767,01-Oct-19,705.90,Adult Care & Health ,S6161,Mental Health Support - Older People (65+),
COMMUNITY SUPPORTED LIVING LTD,1937163,23-Oct-19,795.60,Adult Care & Health ,S6161,Mental Health Support - Older People (65+),
COMPASS FOSTERING NORTH LIMITED,1933693,08-Oct-19,"3,239.31",Childrens Services ,E7080,Care Provision,
COMPASS FOSTERING NORTH LIMITED,1933693,08-Oct-19,"2,898.33",Childrens Services ,E7080,Care Provision,
COMPASS FOSTERING NORTH LIMITED,1933693,08-Oct-19,"2,898.33",Childrens Services ,E7080,Care Provision,
COMPASS FOSTERING NORTH LIMITED,1933693,08-Oct-19,"3,239.31",Childrens Services ,E7080,Care Provision,
COMPASS FOSTERING NORTH LIMITED,1933693,08-Oct-19,"2,491.76",Childrens Services ,E7080,Care Provision,
COMPASS FOSTERING NORTH LIMITED,1933693,08-Oct-19,"3,510.00",Childrens Services ,E7080,Care Provision,
COMPASS FOSTERING NORTH LIMITED,1933693,08-Oct-19,"3,510.00",Childrens Services ,E7080,Care Provision,
COMPASS FOSTERING NORTH LIMITED,1933693,08-Oct-19,"3,477.36",Childrens Services ,E7080,Care Provision,
COMPASS FOSTERING NORTH LIMITED,1933693,08-Oct-19,"3,428.40",Childrens Services ,E7080,Care Provision,
COMPASS FOSTERING NORTH LIMITED,1935205,16-Oct-19,"-1,711.13",Childrens Services ,E7080,Care Provision,
COMPASS FOSTERING NORTH LIMITED,1935205,16-Oct-19,"-1,187.75",Childrens Services ,E7080,Care Provision,
COMPASS FOSTERING NORTH LIMITED,1935205,16-Oct-19,"3,422.25",Childrens Services ,E7080,Care Provision,
COMPLETE CARE HOLDINGS LIMITED,1938433,28-Oct-19,"2,308.80",Adult Care & Health ,S6131,Physical Support - Adults (18-64),
COMPLETE CARE HOLDINGS LIMITED,1938433,28-Oct-19,"2,327.03",Adult Care & Health ,S6121,Physical Support - Adults (18-64),
COMPLETE NETWORK SERVICES LIMITED,1933224,04-Oct-19,660.00,Business Management ,F4418,Communications & Computing,
COMPUTER CAB(LIVERPOOL)LIMITED,1933443,07-Oct-19,734.83,Delivery Services (Assistant Chief Executive) ,E5730,School Transport - College,
CONCEPT WINDOWS & RENOVATIONS LIMITED,1933913,09-Oct-19,"5,314.00",RE  Housing & Community Safety,C4215,Expenditure on Capital Loans,
CONIFERS CARE HOMES LIMITED,1931768,01-Oct-19,"3,600.00",Adult Care & Health ,S6131,Physical Support - Adults (18-64),
CONIFERS CARE HOMES LIMITED,1938659,29-Oct-19,"3,600.00",Adult Care & Health ,S6131,Physical Support - Adults (18-64),
CONSIDERATE CARE LIMITED,1934423,11-Oct-19,"11,550.00",Childrens Services ,E7080,Care Provision,
CONSORTIA INTEGRATED SERVICES LIMITED,1933445,07-Oct-19,616.10,Children & Young People,C2820,Contractors - Main,
CONSORTIA INTEGRATED SERVICES LIMITED,1932498,03-Oct-19,"20,208.00",Children & Young People,C2820,Contractors - Main,
CONSORTIA INTEGRATED SERVICES LIMITED,1932103,02-Oct-19,880.50,Childrens Services ,E2610,"Repairs, alterations and maintenance",
CONSORTIA INTEGRATED SERVICES LIMITED,1936558,18-Oct-19,"2,263.80",Childrens Services ,E2630,"Repairs, alterations and maintenance",
CONSORTIA INTEGRATED SERVICES LIMITED,1936558,18-Oct-19,"1,122.86",Childrens Services ,E2100,"Repairs, alterations and maintenance",
CONSORTIA INTEGRATED SERVICES LIMITED,1936558,18-Oct-19,"1,638.05",Childrens Services ,E2920,"Repairs, alterations and maintenance",
CONSORTIA INTEGRATED SERVICES LIMITED,1936984,22-Oct-19,683.50,Childrens Services ,E8760,"Repairs, alterations and maintenance",
CONSORTIA INTEGRATED SERVICES LIMITED,1936558,18-Oct-19,"3,196.80",Delivery Services (Assistant Chief Executive) ,D3519,"Repairs, alterations and maintenance",
CONTESSA HOTELS AND SPAS LIMITED,1936559,18-Oct-19,815.97,Childrens Services ,E9965,Grants & Subscriptions,
CONTESSA HOTELS AND SPAS LIMITED,1936559,18-Oct-19,"1,149.40",Childrens Services ,E9965,Grants & Subscriptions,
CONTESSA HOTELS AND SPAS LIMITED,1936559,18-Oct-19,"1,024.10",Childrens Services ,E9965,Grants & Subscriptions,
CONTESSA HOTELS AND SPAS LIMITED,1936559,18-Oct-19,789.25,Childrens Services ,E9965,Grants & Subscriptions,
CONTINENTAL LANDSCAPES LIMITED,1933695,08-Oct-19,"6,402.50",Delivery Services (Assistant Chief Executive) ,H2930,Waste Service Provider,
CONTINENTAL LANDSCAPES LIMITED,1933695,08-Oct-19,"6,402.50",Delivery Services (Assistant Chief Executive) ,H2930,Waste Service Provider,
COPPER BEECH RESIDENTIAL HOME,1931770,01-Oct-19,-569.40,Adult Care & Health ,S6142,Customer and Client - Community Care,
COPPER BEECH RESIDENTIAL HOME,1938663,29-Oct-19,-569.40,Adult Care & Health ,S6142,Customer and Client - Community Care,
COPPER BEECH RESIDENTIAL HOME,1931770,01-Oct-19,"1,884.00",Adult Care & Health ,S6142,Learning & Disability Support - Older People (65+),
COPPER BEECH RESIDENTIAL HOME,1938663,29-Oct-19,"1,884.00",Adult Care & Health ,S6142,Learning & Disability Support - Older People (65+),
COPPER BEECH RESIDENTIAL HOME,1931770,01-Oct-19,"1,884.00",Adult Care & Health ,S6161,Mental Health Support - Adults (18-64),
COPPER BEECH RESIDENTIAL HOME,1931770,01-Oct-19,"1,884.00",Adult Care & Health ,S6142,Mental Health Support - Adults (18-64),
COPPER BEECH RESIDENTIAL HOME,1931770,01-Oct-19,"1,884.00",Adult Care & Health ,S6165,Mental Health Support - Adults (18-64),
COPPER BEECH RESIDENTIAL HOME,1931770,01-Oct-19,"1,884.00",Adult Care & Health ,S6165,Mental Health Support - Adults (18-64),
COPPER BEECH RESIDENTIAL HOME,1931770,01-Oct-19,"1,884.00",Adult Care & Health ,S6142,Mental Health Support - Adults (18-64),
COPPER BEECH RESIDENTIAL HOME,1931770,01-Oct-19,"1,884.00",Adult Care & Health ,S6162,Mental Health Support - Adults (18-64),
COPPER BEECH RESIDENTIAL HOME,1931770,01-Oct-19,"1,884.00",Adult Care & Health ,S6161,Mental Health Support - Adults (18-64),
COPPER BEECH RESIDENTIAL HOME,1931770,01-Oct-19,"1,884.00",Adult Care & Health ,S6165,Mental Health Support - Adults (18-64),
COPPER BEECH RESIDENTIAL HOME,1931770,01-Oct-19,"1,884.00",Adult Care & Health ,S6142,Mental Health Support - Adults (18-64),
COPPER BEECH RESIDENTIAL HOME,1931770,01-Oct-19,"1,884.00",Adult Care & Health ,S6162,Mental Health Support - Adults (18-64),
COPPER BEECH RESIDENTIAL HOME,1931770,01-Oct-19,"1,884.00",Adult Care & Health ,S6142,Mental Health Support - Adults (18-64),
COPPER BEECH RESIDENTIAL HOME,1931770,01-Oct-19,"1,884.00",Adult Care & Health ,S6142,Mental Health Support - Adults (18-64),
COPPER BEECH RESIDENTIAL HOME,1931770,01-Oct-19,"1,884.00",Adult Care & Health ,S6142,Mental Health Support - Adults (18-64),
COPPER BEECH RESIDENTIAL HOME,1938663,29-Oct-19,"1,884.00",Adult Care & Health ,S6142,Mental Health Support - Adults (18-64),
COPPER BEECH RESIDENTIAL HOME,1938663,29-Oct-19,"1,884.00",Adult Care & Health ,S6142,Mental Health Support - Adults (18-64),
COPPER BEECH RESIDENTIAL HOME,1938663,29-Oct-19,"1,884.00",Adult Care & Health ,S6165,Mental Health Support - Adults (18-64),
COPPER BEECH RESIDENTIAL HOME,1938663,29-Oct-19,"1,884.00",Adult Care & Health ,S6142,Mental Health Support - Adults (18-64),
COPPER BEECH RESIDENTIAL HOME,1938663,29-Oct-19,"1,884.00",Adult Care & Health ,S6142,Mental Health Support - Adults (18-64),
COPPER BEECH RESIDENTIAL HOME,1938663,29-Oct-19,"1,884.00",Adult Care & Health ,S6142,Mental Health Support - Adults (18-64),
COPPER BEECH RESIDENTIAL HOME,1938663,29-Oct-19,"1,884.00",Adult Care & Health ,S6142,Mental Health Support - Adults (18-64),
COPPER BEECH RESIDENTIAL HOME,1938663,29-Oct-19,"1,884.00",Adult Care & Health ,S6161,Mental Health Support - Adults (18-64),
COPPER BEECH RESIDENTIAL HOME,1938663,29-Oct-19,"1,884.00",Adult Care & Health ,S6162,Mental Health Support - Adults (18-64),
COPPER BEECH RESIDENTIAL HOME,1938663,29-Oct-19,"1,884.00",Adult Care & Health ,S6161,Mental Health Support - Adults (18-64),
COPPER BEECH RESIDENTIAL HOME,1938663,29-Oct-19,"1,884.00",Adult Care & Health ,S6162,Mental Health Support - Adults (18-64),
COPPER BEECH RESIDENTIAL HOME,1938663,29-Oct-19,"1,884.00",Adult Care & Health ,S6165,Mental Health Support - Adults (18-64),
COPPER BEECH RESIDENTIAL HOME,1938663,29-Oct-19,"1,884.00",Adult Care & Health ,S6165,Mental Health Support - Adults (18-64),
COPPER BEECH RESIDENTIAL HOME,1931770,01-Oct-19,"2,100.00",Adult Care & Health ,S6167,Mental Health Support - Older People (65+),
COPPER BEECH RESIDENTIAL HOME,1931770,01-Oct-19,"1,884.00",Adult Care & Health ,S6142,Mental Health Support - Older People (65+),
COPPER BEECH RESIDENTIAL HOME,1931770,01-Oct-19,"1,884.00",Adult Care & Health ,S6142,Mental Health Support - Older People (65+),
COPPER BEECH RESIDENTIAL HOME,1938663,29-Oct-19,"1,884.00",Adult Care & Health ,S6142,Mental Health Support - Older People (65+),
COPPER BEECH RESIDENTIAL HOME,1938663,29-Oct-19,"1,884.00",Adult Care & Health ,S6142,Mental Health Support - Older People (65+),
COPPER BEECH RESIDENTIAL HOME,1938663,29-Oct-19,"2,100.00",Adult Care & Health ,S6167,Mental Health Support - Older People (65+),
COPPER FIELD RESIDENTIAL HOME,1931771,01-Oct-19,-596.48,Adult Care & Health ,S6142,Customer and Client - Community Care,
COPPER FIELD RESIDENTIAL HOME,1931771,01-Oct-19,-577.44,Adult Care & Health ,S6121,Customer and Client - Community Care,
COPPER FIELD RESIDENTIAL HOME,1938664,29-Oct-19,-596.48,Adult Care & Health ,S6142,Customer and Client - Community Care,
COPPER FIELD RESIDENTIAL HOME,1938664,29-Oct-19,-577.44,Adult Care & Health ,S6121,Customer and Client - Community Care,
COPPER FIELD RESIDENTIAL HOME,1931771,01-Oct-19,"1,884.00",Adult Care & Health ,S6121,Learning & Disability Support - Adults (18-64),
COPPER FIELD RESIDENTIAL HOME,1938664,29-Oct-19,"1,884.00",Adult Care & Health ,S6121,Learning & Disability Support - Adults (18-64),
COPPER FIELD RESIDENTIAL HOME,1931771,01-Oct-19,"1,884.00",Adult Care & Health ,S6121,Learning & Disability Support - Older People (65+),
COPPER FIELD RESIDENTIAL HOME,1938664,29-Oct-19,"1,884.00",Adult Care & Health ,S6121,Learning & Disability Support - Older People (65+),
COPPER FIELD RESIDENTIAL HOME,1931771,01-Oct-19,"1,884.00",Adult Care & Health ,S6162,Mental Health Support - Adults (18-64),
COPPER FIELD RESIDENTIAL HOME,1931771,01-Oct-19,"1,884.00",Adult Care & Health ,S6142,Mental Health Support - Adults (18-64),
COPPER FIELD RESIDENTIAL HOME,1931771,01-Oct-19,"1,884.00",Adult Care & Health ,S6142,Mental Health Support - Adults (18-64),
COPPER FIELD RESIDENTIAL HOME,1931771,01-Oct-19,"1,884.00",Adult Care & Health ,S6142,Mental Health Support - Adults (18-64),
COPPER FIELD RESIDENTIAL HOME,1931771,01-Oct-19,"1,884.00",Adult Care & Health ,S6142,Mental Health Support - Adults (18-64),
COPPER FIELD RESIDENTIAL HOME,1931771,01-Oct-19,"1,884.00",Adult Care & Health ,S6162,Mental Health Support - Adults (18-64),
COPPER FIELD RESIDENTIAL HOME,1938664,29-Oct-19,"1,884.00",Adult Care & Health ,S6142,Mental Health Support - Adults (18-64),
COPPER FIELD RESIDENTIAL HOME,1938664,29-Oct-19,"1,884.00",Adult Care & Health ,S6162,Mental Health Support - Adults (18-64),
COPPER FIELD RESIDENTIAL HOME,1938664,29-Oct-19,"1,884.00",Adult Care & Health ,S6142,Mental Health Support - Adults (18-64),
COPPER FIELD RESIDENTIAL HOME,1938664,29-Oct-19,"1,884.00",Adult Care & Health ,S6142,Mental Health Support - Adults (18-64),
COPPER FIELD RESIDENTIAL HOME,1938664,29-Oct-19,"1,884.00",Adult Care & Health ,S6142,Mental Health Support - Adults (18-64),
COPPER FIELD RESIDENTIAL HOME,1938664,29-Oct-19,"1,884.00",Adult Care & Health ,S6162,Mental Health Support - Adults (18-64),
COPPER FIELD RESIDENTIAL HOME,1931771,01-Oct-19,"1,884.00",Adult Care & Health ,S6142,Mental Health Support - Older People (65+),
COPPER FIELD RESIDENTIAL HOME,1931771,01-Oct-19,"1,884.00",Adult Care & Health ,S6142,Mental Health Support - Older People (65+),
COPPER FIELD RESIDENTIAL HOME,1931771,01-Oct-19,"1,884.00",Adult Care & Health ,S6162,Mental Health Support - Older People (65+),
COPPER FIELD RESIDENTIAL HOME,1938664,29-Oct-19,"1,884.00",Adult Care & Health ,S6142,Mental Health Support - Older People (65+),
COPPER FIELD RESIDENTIAL HOME,1938664,29-Oct-19,"1,884.00",Adult Care & Health ,S6142,Mental Health Support - Older People (65+),
COPPER FIELD RESIDENTIAL HOME,1938664,29-Oct-19,"1,884.00",Adult Care & Health ,S6162,Mental Health Support - Older People (65+),
CORAMBAAF ADOPTION & FOSTERING ACADEMY,1931772,01-Oct-19,"1,200.00",Childrens Services ,E7042,"Equipment, Furniture & Materials",
CORAMBAAF ADOPTION & FOSTERING ACADEMY,1938665,29-Oct-19,"5,524.20",Childrens Services ,E7041,Services,
CORNERSTONE (NORTH EAST) ADOPTION & FOSTERING SERVICE,1933696,08-Oct-19,"3,120.00",Childrens Services ,E7080,Care Provision,
CORNERSTONE (NORTH EAST) ADOPTION & FOSTERING SERVICE,1933696,08-Oct-19,"3,060.00",Childrens Services ,E7080,Care Provision,
CORNERSTONE (NORTH EAST) ADOPTION & FOSTERING SERVICE,1933696,08-Oct-19,"3,224.00",Childrens Services ,E7080,Care Provision,
CORNERSTONE (NORTH EAST) ADOPTION & FOSTERING SERVICE,1933696,08-Oct-19,"3,162.00",Childrens Services ,E7080,Care Provision,
CORNERSTONE (NORTH EAST) ADOPTION & FOSTERING SERVICE,1933696,08-Oct-19,"3,120.00",Childrens Services ,E7080,Care Provision,
CORNERSTONE (NORTH EAST) ADOPTION & FOSTERING SERVICE,1933696,08-Oct-19,"3,060.00",Childrens Services ,E7080,Care Provision,
CORNERSTONE (NORTH EAST) ADOPTION & FOSTERING SERVICE,1933696,08-Oct-19,"3,224.00",Childrens Services ,E7080,Care Provision,
CORNERSTONE (NORTH EAST) ADOPTION & FOSTERING SERVICE,1933696,08-Oct-19,"3,162.00",Childrens Services ,E7080,Care Provision,
CORONA ENERGY LIMITED,1934969,15-Oct-19,"1,026.48",Children & Young People,C0916,Miscellaneous,
CORONA ENERGY LIMITED,1934969,15-Oct-19,"1,111.75",Children & Young People,C0916,Miscellaneous,
CORONA ENERGY LIMITED,1934969,15-Oct-19,670.98,Children & Young People,C0916,Miscellaneous,
CORONA ENERGY LIMITED,1934969,15-Oct-19,719.46,Children & Young People,C0916,Miscellaneous,
CORONA ENERGY LIMITED,1934969,15-Oct-19,608.20,Children & Young People,C0916,Miscellaneous,
CORONA ENERGY LIMITED,1934969,15-Oct-19,865.91,Children & Young People,C0916,Miscellaneous,
CORONA ENERGY LIMITED,1934969,15-Oct-19,831.35,Children & Young People,C0916,Miscellaneous,
CORONA ENERGY LIMITED,1934969,15-Oct-19,933.91,Children & Young People,C0916,Miscellaneous,
CORONA ENERGY LIMITED,1934969,15-Oct-19,955.27,Children & Young People,C0916,Miscellaneous,
CORONA ENERGY LIMITED,1934969,15-Oct-19,836.27,Children & Young People,C0916,Miscellaneous,
CORONA ENERGY LIMITED,1934969,15-Oct-19,"1,084.84",Children & Young People,C0916,Miscellaneous,
CORONA ENERGY LIMITED,1934969,15-Oct-19,-879.64,Children & Young People,C0916,Miscellaneous,
CORONA ENERGY LIMITED,1934969,15-Oct-19,"-1,288.30",Children & Young People,C0916,Miscellaneous,
CORONA ENERGY LIMITED,1934969,15-Oct-19,"-1,652.18",Children & Young People,C0916,Miscellaneous,
CORONA ENERGY LIMITED,1934426,11-Oct-19,"6,338.52",Delivery Services (Assistant Chief Executive) ,D3543,Energy Costs,
CORONA ENERGY LIMITED,1934426,11-Oct-19,"5,937.05",Delivery Services (Assistant Chief Executive) ,D3533,Energy Costs,
CORONA ENERGY LIMITED,1934426,11-Oct-19,"8,089.00",Delivery Services (Assistant Chief Executive) ,D3530,Energy Costs,
CORONA ENERGY LIMITED,1934426,11-Oct-19,803.89,Delivery Services (Assistant Chief Executive) ,D2650,Energy Costs,
CORONA ENERGY LIMITED,1934426,11-Oct-19,"5,102.18",Delivery Services (Assistant Chief Executive) ,D3536,Energy Costs,
CORONA ENERGY LIMITED,1934426,11-Oct-19,654.54,Delivery Services (Assistant Chief Executive) ,T4020,Energy Costs,
CORONA ENERGY LIMITED,1934426,11-Oct-19,"10,437.90",Delivery Services (Assistant Chief Executive) ,D3535,Energy Costs,
CORONA ENERGY LIMITED,1934426,11-Oct-19,"3,509.56",Delivery Services (Assistant Chief Executive) ,D3532,Energy Costs,
CORONA ENERGY LIMITED,1934426,11-Oct-19,"1,328.94",Delivery Services (Assistant Chief Executive) ,D2550,Energy Costs,
CORONA ENERGY LIMITED,1934426,11-Oct-19,607.99,Delivery Services (Assistant Chief Executive) ,D3520,Energy Costs,
CORONA ENERGY LIMITED,1934426,11-Oct-19,809.60,Delivery Services (Assistant Chief Executive) ,D3537,Energy Costs,
CORONA ENERGY LIMITED,1934426,11-Oct-19,"1,301.80",Delivery Services (Assistant Chief Executive) ,L3950,Energy Costs,
CORONA ENERGY LIMITED,1934426,11-Oct-19,"-22,495.39",Delivery Services (Assistant Chief Executive) ,D3534,Energy Costs,
CORONA ENERGY LIMITED,1934426,11-Oct-19,"4,537.31",Delivery Services (Assistant Chief Executive) ,D3534,Energy Costs,
CORONA ENERGY LIMITED,1934426,11-Oct-19,"-4,431.97",Delivery Services (Assistant Chief Executive) ,D3534,Energy Costs,
CORONA ENERGY LIMITED,1934426,11-Oct-19,"4,464.70",Delivery Services (Assistant Chief Executive) ,D3534,Energy Costs,
CORONA ENERGY LIMITED,1934426,11-Oct-19,"4,707.35",Delivery Services (Assistant Chief Executive) ,D3534,Energy Costs,
CORONA ENERGY LIMITED,1934426,11-Oct-19,"1,964.50",Delivery Services (Assistant Chief Executive) ,D2700,Energy Costs,
CORONA ENERGY LIMITED,1934426,11-Oct-19,"1,392.94",Delivery Services (Assistant Chief Executive) ,L3910,Energy Costs,
CORONA HOUSE,1931774,01-Oct-19,"1,884.00",Adult Care & Health ,S6167,Mental Health Support - Older People (65+),
CORONA HOUSE,1938667,29-Oct-19,"1,884.00",Adult Care & Health ,S6167,Mental Health Support - Older People (65+),
CORONA HOUSE,1931774,01-Oct-19,"1,884.00",Adult Care & Health ,S6132,Physical Support - Older People (65+),
CORONA HOUSE,1938667,29-Oct-19,"1,884.00",Adult Care & Health ,S6132,Physical Support - Older People (65+),
COURSECHANGE LIMITED T/A GRANGE NURSING HOME,1931775,01-Oct-19,"2,044.00",Adult Care & Health ,S6132,Mental Health Support - Older People (65+),
COURSECHANGE LIMITED T/A GRANGE NURSING HOME,1938668,29-Oct-19,"2,044.00",Adult Care & Health ,S6132,Mental Health Support - Older People (65+),
COURSECHANGE LIMITED T/A GRANGE NURSING HOME,1938668,29-Oct-19,949.00,Adult Care & Health ,S6132,Mental Health Support - Older People (65+),
COURSECHANGE LIMITED T/A GRANGE NURSING HOME,1931775,01-Oct-19,"2,044.00",Adult Care & Health ,S6141,Physical Support - Older People (65+),
COURSECHANGE LIMITED T/A GRANGE NURSING HOME,1931775,01-Oct-19,"2,044.00",Adult Care & Health ,S6131,Physical Support - Older People (65+),
COURSECHANGE LIMITED T/A GRANGE NURSING HOME,1931775,01-Oct-19,"1,884.00",Adult Care & Health ,S6131,Physical Support - Older People (65+),
COURSECHANGE LIMITED T/A GRANGE NURSING HOME,1931775,01-Oct-19,"2,044.00",Adult Care & Health ,S6131,Physical Support - Older People (65+),
COURSECHANGE LIMITED T/A GRANGE NURSING HOME,1931775,01-Oct-19,"2,044.00",Adult Care & Health ,S6141,Physical Support - Older People (65+),
COURSECHANGE LIMITED T/A GRANGE NURSING HOME,1931775,01-Oct-19,"2,044.00",Adult Care & Health ,S6131,Physical Support - Older People (65+),
COURSECHANGE LIMITED T/A GRANGE NURSING HOME,1931775,01-Oct-19,"1,009.29",Adult Care & Health ,S6131,Physical Support - Older People (65+),
COURSECHANGE LIMITED T/A GRANGE NURSING HOME,1931775,01-Oct-19,949.00,Adult Care & Health ,S6131,Physical Support - Older People (65+),
COURSECHANGE LIMITED T/A GRANGE NURSING HOME,1938668,29-Oct-19,"2,044.00",Adult Care & Health ,S6141,Physical Support - Older People (65+),
COURSECHANGE LIMITED T/A GRANGE NURSING HOME,1938668,29-Oct-19,"2,044.00",Adult Care & Health ,S6141,Physical Support - Older People (65+),
COURSECHANGE LIMITED T/A GRANGE NURSING HOME,1938668,29-Oct-19,"2,044.00",Adult Care & Health ,S6131,Physical Support - Older People (65+),
COURSECHANGE LIMITED T/A GRANGE NURSING HOME,1938668,29-Oct-19,"2,044.00",Adult Care & Health ,S6131,Physical Support - Older People (65+),
COURSECHANGE LIMITED T/A GRANGE NURSING HOME,1938668,29-Oct-19,"2,044.00",Adult Care & Health ,S6131,Physical Support - Older People (65+),
COURSECHANGE LIMITED T/A GRANGE NURSING HOME,1938668,29-Oct-19,"2,044.00",Adult Care & Health ,S6131,Physical Support - Older People (65+),
COURSECHANGE LIMITED T/A GRANGE NURSING HOME,1938668,29-Oct-19,"2,044.00",Adult Care & Health ,S6131,Physical Support - Older People (65+),
COURSECHANGE LIMITED T/A GRANGE NURSING HOME,1938668,29-Oct-19,"2,044.00",Adult Care & Health ,S6131,Physical Support - Older People (65+),
COURSECHANGE LIMITED T/A GRANGE NURSING HOME,1938668,29-Oct-19,672.86,Adult Care & Health ,S6132,Physical Support - Older People (65+),
COURSECHANGE LIMITED T/A GRANGE NURSING HOME,1938668,29-Oct-19,"-1,278.43",Adult Care & Health ,S6131,Physical Support - Older People (65+),
COURSECHANGE LIMITED T/A GRANGE NURSING HOME,1938668,29-Oct-19,"1,314.00",Adult Care & Health ,S6131,Physical Support - Older People (65+),
COURSECHANGE LIMITED T/A GRANGE NURSING HOME,1938668,29-Oct-19,"-1,884.00",Adult Care & Health ,S6131,Physical Support - Older People (65+),
COURSECHANGE LIMITED T/A GRANGE NURSING HOME,1938668,29-Oct-19,"2,044.00",Adult Care & Health ,S6131,Physical Support - Older People (65+),
COURSECHANGE LIMITED T/A GRANGE NURSING HOME,1938668,29-Oct-19,"2,044.00",Adult Care & Health ,S6131,Physical Support - Older People (65+),
COURSECHANGE LIMITED T/A GRANGE NURSING HOME,1938668,29-Oct-19,"-1,884.00",Adult Care & Health ,S6131,Physical Support - Older People (65+),
COURSECHANGE LIMITED T/A GRANGE NURSING HOME,1938668,29-Oct-19,"2,044.00",Adult Care & Health ,S6131,Physical Support - Older People (65+),
COURSECHANGE LIMITED T/A GRANGE NURSING HOME,1938668,29-Oct-19,"-1,884.00",Adult Care & Health ,S6131,Physical Support - Older People (65+),
COURSECHANGE LIMITED T/A GRANGE NURSING HOME,1938668,29-Oct-19,"2,044.00",Adult Care & Health ,S6131,Physical Support - Older People (65+),
COURSECHANGE LIMITED T/A GRANGE NURSING HOME,1938668,29-Oct-19,511.00,Adult Care & Health ,S6131,Physical Support - Older People (65+),
COURSECHANGE LIMITED T/A GRANGE NURSING HOME,1931775,01-Oct-19,"2,044.00",Adult Care & Health ,S6141,Sensory Support - Older People (65+),
COURSECHANGE LIMITED T/A GRANGE NURSING HOME,1938668,29-Oct-19,"2,044.00",Adult Care & Health ,S6141,Sensory Support - Older People (65+),
COURT NURSING HOME,1931776,01-Oct-19,"2,116.00",Adult Care & Health ,S6132,Learning & Disability Support - Older People (65+),
COURT NURSING HOME,1938669,29-Oct-19,"2,116.00",Adult Care & Health ,S6132,Learning & Disability Support - Older People (65+),
COURT NURSING HOME,1931776,01-Oct-19,"2,116.00",Adult Care & Health ,S6167,Memory & Cognition Support - Older People (65+),
COURT NURSING HOME,1931776,01-Oct-19,"2,116.00",Adult Care & Health ,S6167,Memory & Cognition Support - Older People (65+),
COURT NURSING HOME,1931776,01-Oct-19,"2,116.00",Adult Care & Health ,S6132,Memory & Cognition Support - Older People (65+),
COURT NURSING HOME,1938669,29-Oct-19,"2,116.00",Adult Care & Health ,S6167,Memory & Cognition Support - Older People (65+),
COURT NURSING HOME,1938669,29-Oct-19,"2,116.00",Adult Care & Health ,S6132,Memory & Cognition Support - Older People (65+),
COURT NURSING HOME,1938669,29-Oct-19,"2,116.00",Adult Care & Health ,S6167,Memory & Cognition Support - Older People (65+),
COURT NURSING HOME,1931776,01-Oct-19,"2,116.00",Adult Care & Health ,S6165,Mental Health Support - Adults (18-64),
COURT NURSING HOME,1931776,01-Oct-19,"1,435.86",Adult Care & Health ,S6166,Mental Health Support - Adults (18-64),
COURT NURSING HOME,1938669,29-Oct-19,"2,116.00",Adult Care & Health ,S6165,Mental Health Support - Adults (18-64),
COURT NURSING HOME,1938669,29-Oct-19,"2,116.00",Adult Care & Health ,S6166,Mental Health Support - Adults (18-64),
COURT NURSING HOME,1931776,01-Oct-19,"2,616.20",Adult Care & Health ,S6167,Mental Health Support - Older People (65+),
COURT NURSING HOME,1931776,01-Oct-19,"2,116.00",Adult Care & Health ,S6167,Mental Health Support - Older People (65+),
COURT NURSING HOME,1931776,01-Oct-19,"2,116.00",Adult Care & Health ,S6131,Mental Health Support - Older People (65+),
COURT NURSING HOME,1931776,01-Oct-19,"4,680.00",Adult Care & Health ,S6131,Mental Health Support - Older People (65+),
COURT NURSING HOME,1931776,01-Oct-19,"5,040.00",Adult Care & Health ,S6131,Mental Health Support - Older People (65+),
COURT NURSING HOME,1938669,29-Oct-19,"2,616.20",Adult Care & Health ,S6167,Mental Health Support - Older People (65+),
COURT NURSING HOME,1938669,29-Oct-19,"2,116.00",Adult Care & Health ,S6167,Mental Health Support - Older People (65+),
COURT NURSING HOME,1938669,29-Oct-19,"2,116.00",Adult Care & Health ,S6131,Mental Health Support - Older People (65+),
COURT NURSING HOME,1938669,29-Oct-19,"5,040.00",Adult Care & Health ,S6131,Mental Health Support - Older People (65+),
COURT NURSING HOME,1931776,01-Oct-19,"2,116.00",Adult Care & Health ,S6132,Physical Support - Older People (65+),
COURT NURSING HOME,1938669,29-Oct-19,"2,116.00",Adult Care & Health ,S6132,Physical Support - Older People (65+),
COURT NURSING HOME,1931776,01-Oct-19,"2,116.00",Adult Care & Health ,S6131,Social Care Activities,
COURT NURSING HOME,1938669,29-Oct-19,"2,116.00",Adult Care & Health ,S6131,Social Care Activities,
COVERAGE CARE SERVICES LIMITED,1938670,29-Oct-19,910.00,Adult Care & Health ,S6121,Learning & Disability Support - Older People (65+),
COVERAGE CARE SERVICES LIMITED,1938670,29-Oct-19,"3,640.00",Adult Care & Health ,S6121,Learning & Disability Support - Older People (65+),
COVERAGE CARE SERVICES LIMITED,1938670,29-Oct-19,"3,640.00",Adult Care & Health ,S6121,Learning & Disability Support - Older People (65+),
COZEE CARE HOMES LIMITED T/A BARNSTON COURT NURSING HOME,1931777,01-Oct-19,"2,044.00",Adult Care & Health ,S6142,Memory & Cognition Support - Older People (65+),
COZEE CARE HOMES LIMITED T/A BARNSTON COURT NURSING HOME,1931777,01-Oct-19,"2,044.00",Adult Care & Health ,S6142,Memory & Cognition Support - Older People (65+),
COZEE CARE HOMES LIMITED T/A BARNSTON COURT NURSING HOME,1931777,01-Oct-19,"2,044.00",Adult Care & Health ,S6142,Memory & Cognition Support - Older People (65+),
COZEE CARE HOMES LIMITED T/A BARNSTON COURT NURSING HOME,1938671,29-Oct-19,"2,044.00",Adult Care & Health ,S6142,Memory & Cognition Support - Older People (65+),
COZEE CARE HOMES LIMITED T/A BARNSTON COURT NURSING HOME,1938671,29-Oct-19,"2,044.00",Adult Care & Health ,S6142,Memory & Cognition Support - Older People (65+),
COZEE CARE HOMES LIMITED T/A BARNSTON COURT NURSING HOME,1938671,29-Oct-19,"2,044.00",Adult Care & Health ,S6142,Memory & Cognition Support - Older People (65+),
COZEE CARE HOMES LIMITED T/A BARNSTON COURT NURSING HOME,1931777,01-Oct-19,"2,044.00",Adult Care & Health ,S6142,Physical Support - Adults (18-64),
COZEE CARE HOMES LIMITED T/A BARNSTON COURT NURSING HOME,1931777,01-Oct-19,"2,044.00",Adult Care & Health ,S6142,Physical Support - Adults (18-64),
COZEE CARE HOMES LIMITED T/A BARNSTON COURT NURSING HOME,1931777,01-Oct-19,"2,044.00",Adult Care & Health ,S6141,Physical Support - Adults (18-64),
COZEE CARE HOMES LIMITED T/A BARNSTON COURT NURSING HOME,1938671,29-Oct-19,"2,044.00",Adult Care & Health ,S6142,Physical Support - Adults (18-64),
COZEE CARE HOMES LIMITED T/A BARNSTON COURT NURSING HOME,1938671,29-Oct-19,"2,044.00",Adult Care & Health ,S6141,Physical Support - Adults (18-64),
COZEE CARE HOMES LIMITED T/A BARNSTON COURT NURSING HOME,1938671,29-Oct-19,"2,044.00",Adult Care & Health ,S6142,Physical Support - Adults (18-64),
COZEE CARE HOMES LIMITED T/A BARNSTON COURT NURSING HOME,1931777,01-Oct-19,"2,044.00",Adult Care & Health ,S6142,Physical Support - Older People (65+),
COZEE CARE HOMES LIMITED T/A BARNSTON COURT NURSING HOME,1931777,01-Oct-19,"2,044.00",Adult Care & Health ,S6142,Physical Support - Older People (65+),
COZEE CARE HOMES LIMITED T/A BARNSTON COURT NURSING HOME,1931777,01-Oct-19,"2,044.00",Adult Care & Health ,S6142,Physical Support - Older People (65+),
COZEE CARE HOMES LIMITED T/A BARNSTON COURT NURSING HOME,1931777,01-Oct-19,"2,044.00",Adult Care & Health ,S6141,Physical Support - Older People (65+),
COZEE CARE HOMES LIMITED T/A BARNSTON COURT NURSING HOME,1931777,01-Oct-19,"2,044.00",Adult Care & Health ,S6141,Physical Support - Older People (65+),
COZEE CARE HOMES LIMITED T/A BARNSTON COURT NURSING HOME,1931777,01-Oct-19,"2,044.00",Adult Care & Health ,S6142,Physical Support - Older People (65+),
COZEE CARE HOMES LIMITED T/A BARNSTON COURT NURSING HOME,1931777,01-Oct-19,"2,044.00",Adult Care & Health ,S6142,Physical Support - Older People (65+),
COZEE CARE HOMES LIMITED T/A BARNSTON COURT NURSING HOME,1931777,01-Oct-19,"2,044.00",Adult Care & Health ,S6141,Physical Support - Older People (65+),
COZEE CARE HOMES LIMITED T/A BARNSTON COURT NURSING HOME,1931777,01-Oct-19,"2,044.00",Adult Care & Health ,S6141,Physical Support - Older People (65+),
COZEE CARE HOMES LIMITED T/A BARNSTON COURT NURSING HOME,1931777,01-Oct-19,"2,044.00",Adult Care & Health ,S6142,Physical Support - Older People (65+),
COZEE CARE HOMES LIMITED T/A BARNSTON COURT NURSING HOME,1931777,01-Oct-19,"2,044.00",Adult Care & Health ,S6142,Physical Support - Older People (65+),
COZEE CARE HOMES LIMITED T/A BARNSTON COURT NURSING HOME,1931777,01-Oct-19,"1,971.00",Adult Care & Health ,S6142,Physical Support - Older People (65+),
COZEE CARE HOMES LIMITED T/A BARNSTON COURT NURSING HOME,1931777,01-Oct-19,"2,044.00",Adult Care & Health ,S6142,Physical Support - Older People (65+),
COZEE CARE HOMES LIMITED T/A BARNSTON COURT NURSING HOME,1931777,01-Oct-19,949.00,Adult Care & Health ,S6142,Physical Support - Older People (65+),
COZEE CARE HOMES LIMITED T/A BARNSTON COURT NURSING HOME,1931777,01-Oct-19,-949.00,Adult Care & Health ,S6142,Physical Support - Older People (65+),
COZEE CARE HOMES LIMITED T/A BARNSTON COURT NURSING HOME,1931777,01-Oct-19,"2,044.00",Adult Care & Health ,S6142,Physical Support - Older People (65+),
COZEE CARE HOMES LIMITED T/A BARNSTON COURT NURSING HOME,1938671,29-Oct-19,-584.00,Adult Care & Health ,S6142,Physical Support - Older People (65+),
COZEE CARE HOMES LIMITED T/A BARNSTON COURT NURSING HOME,1938671,29-Oct-19,"2,044.00",Adult Care & Health ,S6142,Physical Support - Older People (65+),
COZEE CARE HOMES LIMITED T/A BARNSTON COURT NURSING HOME,1938671,29-Oct-19,"2,044.00",Adult Care & Health ,S6142,Physical Support - Older People (65+),
COZEE CARE HOMES LIMITED T/A BARNSTON COURT NURSING HOME,1938671,29-Oct-19,"2,044.00",Adult Care & Health ,S6142,Physical Support - Older People (65+),
COZEE CARE HOMES LIMITED T/A BARNSTON COURT NURSING HOME,1938671,29-Oct-19,"2,044.00",Adult Care & Health ,S6142,Physical Support - Older People (65+),
COZEE CARE HOMES LIMITED T/A BARNSTON COURT NURSING HOME,1938671,29-Oct-19,"2,044.00",Adult Care & Health ,S6142,Physical Support - Older People (65+),
COZEE CARE HOMES LIMITED T/A BARNSTON COURT NURSING HOME,1938671,29-Oct-19,"2,044.00",Adult Care & Health ,S6142,Physical Support - Older People (65+),
COZEE CARE HOMES LIMITED T/A BARNSTON COURT NURSING HOME,1938671,29-Oct-19,"2,044.00",Adult Care & Health ,S6141,Physical Support - Older People (65+),
COZEE CARE HOMES LIMITED T/A BARNSTON COURT NURSING HOME,1938671,29-Oct-19,"2,044.00",Adult Care & Health ,S6141,Physical Support - Older People (65+),
COZEE CARE HOMES LIMITED T/A BARNSTON COURT NURSING HOME,1938671,29-Oct-19,"2,044.00",Adult Care & Health ,S6142,Physical Support - Older People (65+),
COZEE CARE HOMES LIMITED T/A BARNSTON COURT NURSING HOME,1938671,29-Oct-19,"2,044.00",Adult Care & Health ,S6141,Physical Support - Older People (65+),
COZEE CARE HOMES LIMITED T/A BARNSTON COURT NURSING HOME,1938671,29-Oct-19,"2,044.00",Adult Care & Health ,S6141,Physical Support - Older People (65+),
COZEE CARE HOMES LIMITED T/A BARNSTON COURT NURSING HOME,1938671,29-Oct-19,"2,044.00",Adult Care & Health ,S6142,Physical Support - Older People (65+),
CRAEGMOOR FACILITIES COMPANY LIMITED,1931779,01-Oct-19,"7,189.36",Adult Care & Health ,S6121,Learning & Disability Support - Adults (18-64),
CRAEGMOOR FACILITIES COMPANY LIMITED,1931779,01-Oct-19,"7,189.36",Adult Care & Health ,S6142,Learning & Disability Support - Adults (18-64),
CRAEGMOOR FACILITIES COMPANY LIMITED,1931778,01-Oct-19,"4,276.00",Adult Care & Health ,S6121,Learning & Disability Support - Adults (18-64),
CRAEGMOOR FACILITIES COMPANY LIMITED,1938673,29-Oct-19,"7,189.36",Adult Care & Health ,S6142,Learning & Disability Support - Adults (18-64),
CRAEGMOOR FACILITIES COMPANY LIMITED,1938673,29-Oct-19,"7,189.36",Adult Care & Health ,S6121,Learning & Disability Support - Adults (18-64),
CRAEGMOOR FACILITIES COMPANY LIMITED,1938672,29-Oct-19,"4,276.00",Adult Care & Health ,S6121,Learning & Disability Support - Adults (18-64),
CRAEGMOOR FLC NEW DIRECTIONS BISHOP CORNER,1931780,01-Oct-19,"5,909.84",Adult Care & Health ,S6121,Learning & Disability Support - Adults (18-64),
CRAEGMOOR FLC NEW DIRECTIONS BISHOP CORNER,1938674,29-Oct-19,"5,909.84",Adult Care & Health ,S6121,Learning & Disability Support - Adults (18-64),
CREA8ING CAREERS,1934971,15-Oct-19,600.00,Business Management ,B7642,Grants to Voluntary Organisations,
CREA8ING CAREERS,1936987,22-Oct-19,927.00,Childrens Services ,E6150,Hired or Contracted services,
CROFTWOOD CARE UK LIMITED,1931782,01-Oct-19,"1,884.00",Adult Care & Health ,S6132,Physical Support - Older People (65+),
CROFTWOOD CARE UK LIMITED,1931782,01-Oct-19,"1,884.00",Adult Care & Health ,S6141,Physical Support - Older People (65+),
CROFTWOOD CARE UK LIMITED,1931782,01-Oct-19,720.00,Adult Care & Health ,S6141,Physical Support - Older People (65+),
CROFTWOOD CARE UK LIMITED,1931781,01-Oct-19,"1,968.40",Adult Care & Health ,S6167,Physical Support - Older People (65+),
CROFTWOOD CARE UK LIMITED,1931783,01-Oct-19,"1,748.32",Adult Care & Health ,S6132,Physical Support - Older People (65+),
CROFTWOOD CARE UK LIMITED,1938676,29-Oct-19,"1,884.00",Adult Care & Health ,S6132,Physical Support - Older People (65+),
CROFTWOOD CARE UK LIMITED,1938676,29-Oct-19,"1,884.00",Adult Care & Health ,S6141,Physical Support - Older People (65+),
CROFTWOOD CARE UK LIMITED,1938676,29-Oct-19,720.00,Adult Care & Health ,S6141,Physical Support - Older People (65+),
CROFTWOOD CARE UK LIMITED,1938675,29-Oct-19,"1,968.40",Adult Care & Health ,S6167,Physical Support - Older People (65+),
CROFTWOOD CARE UK LIMITED,1938677,29-Oct-19,"1,748.32",Adult Care & Health ,S6132,Physical Support - Older People (65+),
CROSS ROADS CARE CHESHIRE MANCHESTER & MERSEYSIDE,1933698,08-Oct-19,"17,822.77",Childrens Services ,E9675,Hired or Contracted services,
CRYSTAL CARE SOLUTIONS LIMITED,1933699,08-Oct-19,"3,800.00",Childrens Services ,E7080,Care Provision,
CRYSTAL CARE SOLUTIONS LIMITED,1933699,08-Oct-19,"3,800.00",Childrens Services ,E7080,Care Provision,
CRYSTAL CARE SOLUTIONS LIMITED,1933699,08-Oct-19,"3,242.40",Childrens Services ,E7080,Care Provision,
CRYSTAL CARE SOLUTIONS LIMITED,1933699,08-Oct-19,"3,800.00",Childrens Services ,E7080,Care Provision,
CRYSTAL CARE SOLUTIONS LIMITED,1933699,08-Oct-19,"3,800.00",Childrens Services ,E7080,Care Provision,
CRYSTAL CARE SOLUTIONS LIMITED,1933699,08-Oct-19,"3,242.40",Childrens Services ,E7080,Care Provision,
CRYSTAL CARE SOLUTIONS LIMITED,1933699,08-Oct-19,"3,800.00",Childrens Services ,E7080,Care Provision,
CRYSTAL CARE SOLUTIONS LIMITED,1933699,08-Oct-19,"3,800.00",Childrens Services ,E7080,Care Provision,
CRYSTAL CARE SOLUTIONS LIMITED,1934430,11-Oct-19,"3,242.40",Childrens Services ,E7080,Care Provision,
CRYSTAL CARE SOLUTIONS LIMITED,1934430,11-Oct-19,"3,242.40",Childrens Services ,E7080,Care Provision,
CRYSTAL CARE SOLUTIONS LIMITED,1934430,11-Oct-19,"3,800.00",Childrens Services ,E7080,Care Provision,
CRYSTAL CARE SOLUTIONS LIMITED,1934430,11-Oct-19,"3,800.00",Childrens Services ,E7080,Care Provision,
CRYSTAL CARE SOLUTIONS LIMITED,1936568,18-Oct-19,"3,242.40",Childrens Services ,E7080,Care Provision,
CRYSTAL CARE SOLUTIONS LIMITED,1936568,18-Oct-19,"3,242.40",Childrens Services ,E7080,Care Provision,
CRYSTAL CARE SOLUTIONS LIMITED,1936568,18-Oct-19,"3,800.00",Childrens Services ,E7080,Care Provision,
CRYSTAL CARE SOLUTIONS LIMITED,1936568,18-Oct-19,"3,800.00",Childrens Services ,E7080,Care Provision,
CULLEN BUILDING COMPANY LIMITED,1933450,07-Oct-19,"9,718.04",RE  Housing & Community Safety,C4117,Expenditure on Capital Grants,
CYFOR LEGAL LIMITED,1938436,28-Oct-19,"1,752.30",Business Management ,A1305,Legal Service Provider,
CYGNET CARE SERVICES LIMITED,1931785,01-Oct-19,"16,100.00",Adult Care & Health ,S6121,Learning & Disability Support - Adults (18-64),
CYGNET CARE SERVICES LIMITED,1931785,01-Oct-19,"17,354.40",Adult Care & Health ,S6121,Learning & Disability Support - Adults (18-64),
CYGNET CARE SERVICES LIMITED,1931785,01-Oct-19,"16,159.28",Adult Care & Health ,S6121,Learning & Disability Support - Adults (18-64),
CYGNET CARE SERVICES LIMITED,1938680,29-Oct-19,"17,354.40",Adult Care & Health ,S6121,Learning & Disability Support - Adults (18-64),
CYGNET CARE SERVICES LIMITED,1938680,29-Oct-19,"16,100.00",Adult Care & Health ,S6121,Learning & Disability Support - Adults (18-64),
CYGNET CARE SERVICES LIMITED,1938680,29-Oct-19,"16,159.28",Adult Care & Health ,S6121,Learning & Disability Support - Adults (18-64),
D&R SERVICES (NW) LIMITED,1936816,21-Oct-19,"4,674.00",RE  Housing & Community Safety,C4115,Expenditure on Capital Grants,
D&R SERVICES (NW) LIMITED,1936816,21-Oct-19,"4,557.00",RE  Housing & Community Safety,C4115,Expenditure on Capital Grants,
D&R SERVICES (NW) LIMITED,1938681,29-Oct-19,"4,602.00",RE  Housing & Community Safety,C4115,Expenditure on Capital Grants,
DA LANGUAGES LIMITED,1936570,18-Oct-19,891.24,Childrens Services ,E7037,Care Provision,
DAISY & JAKE DAY NURSERY LIMITED,1937798,25-Oct-19,615.00,Childrens Services ,E1170,Disability Access Fund,
DAISY & JAKE DAY NURSERY LIMITED,1937410,24-Oct-19,"1,075.20",Childrens Services ,E9902,Educational Provider,
DAISY & JAKE DAY NURSERY LIMITED,1939016,30-Oct-19,537.60,Childrens Services ,E1170,Services,
DAISY & JAKE DAY NURSERY LIMITED,1939015,30-Oct-19,"5,507.88",Childrens Services ,E1170,Services,
DAISY & JAKE DAY NURSERY LIMITED,1939017,30-Oct-19,"3,805.48",Childrens Services ,E1170,Services,
DAISY & JAKE DAY NURSERY LIMITED,1939018,30-Oct-19,"2,885.82",Childrens Services ,E1170,Services,
DAISY & JAKE DAY NURSERY LIMITED,1939014,30-Oct-19,"5,107.20",Childrens Services ,E1170,Services,
DAISY & JAKE DAY NURSERY LIMITED,1939016,30-Oct-19,"4,009.63",Childrens Services ,E1170,Services,
DAISY & JAKE DAY NURSERY LIMITED,1939015,30-Oct-19,"24,316.36",Childrens Services ,E1170,Services,
DAISY & JAKE DAY NURSERY LIMITED,1939017,30-Oct-19,"18,973.73",Childrens Services ,E1170,Services,
DAISY & JAKE DAY NURSERY LIMITED,1939018,30-Oct-19,"13,381.69",Childrens Services ,E1170,Services,
DAISY & JAKE DAY NURSERY LIMITED,1939014,30-Oct-19,"8,022.92",Childrens Services ,E1170,Services,
DAISY & JAKE DAY NURSERY LIMITED,1939017,30-Oct-19,-666.23,Childrens Services ,E1170,Services,
DAISY & JAKE DAY NURSERY LIMITED,1939018,30-Oct-19,"-1,332.46",Childrens Services ,E1170,Services,
DAISY & JAKE DAY NURSERY LIMITED,1939014,30-Oct-19,-666.23,Childrens Services ,E1170,Services,
DAISY CHAIN NURSERY BEBINGTON LIMITED,1939019,30-Oct-19,"5,376.00",Childrens Services ,E1170,Services,
DAISY CHAIN NURSERY BEBINGTON LIMITED,1939019,30-Oct-19,"6,406.32",Childrens Services ,E1170,Services,
DAISY DAY NURSERY,1936819,21-Oct-19,645.12,Childrens Services ,E9902,Educational Provider,
DAISY DAY NURSERY,1939020,30-Oct-19,"5,752.32",Childrens Services ,E1170,Services,
DAISY DAY NURSERY,1939020,30-Oct-19,"15,684.29",Childrens Services ,E1170,Services,
DAISY DAY NURSERY,1939020,30-Oct-19,"-2,082.16",Childrens Services ,E1170,Services,
DAISYCHAIN-STEPHANIE JONES,1939021,30-Oct-19,"1,336.65",Childrens Services ,E1170,Services,
DALESIDE NURSING HOME LIMITED,1931786,01-Oct-19,"3,096.00",Adult Care & Health ,S6135,Physical Support - Older People (65+),
DALESIDE NURSING HOME LIMITED,1931786,01-Oct-19,"65,016.00",Adult Care & Health ,S6135,Physical Support - Older People (65+),
DALESIDE NURSING HOME LIMITED,1931786,01-Oct-19,"1,884.00",Adult Care & Health ,S6131,Physical Support - Older People (65+),
DALESIDE NURSING HOME LIMITED,1931786,01-Oct-19,"2,044.00",Adult Care & Health ,S6132,Physical Support - Older People (65+),
DALESIDE NURSING HOME LIMITED,1931786,01-Oct-19,"2,044.00",Adult Care & Health ,S6131,Physical Support - Older People (65+),
DALESIDE NURSING HOME LIMITED,1931786,01-Oct-19,"1,884.00",Adult Care & Health ,S6141,Physical Support - Older People (65+),
DALESIDE NURSING HOME LIMITED,1931786,01-Oct-19,"2,044.00",Adult Care & Health ,S6132,Physical Support - Older People (65+),
DALESIDE NURSING HOME LIMITED,1931786,01-Oct-19,"1,884.00",Adult Care & Health ,S6132,Physical Support - Older People (65+),
DALESIDE NURSING HOME LIMITED,1931786,01-Oct-19,"1,884.00",Adult Care & Health ,S6142,Physical Support - Older People (65+),
DALESIDE NURSING HOME LIMITED,1931786,01-Oct-19,"1,884.00",Adult Care & Health ,S6132,Physical Support - Older People (65+),
DALESIDE NURSING HOME LIMITED,1931786,01-Oct-19,"-1,884.00",Adult Care & Health ,S6132,Physical Support - Older People (65+),
DALESIDE NURSING HOME LIMITED,1931786,01-Oct-19,"-1,884.00",Adult Care & Health ,S6132,Physical Support - Older People (65+),
DALESIDE NURSING HOME LIMITED,1931786,01-Oct-19,"2,044.00",Adult Care & Health ,S6132,Physical Support - Older People (65+),
DALESIDE NURSING HOME LIMITED,1931786,01-Oct-19,"2,044.00",Adult Care & Health ,S6132,Physical Support - Older People (65+),
DALESIDE NURSING HOME LIMITED,1931786,01-Oct-19,"1,606.00",Adult Care & Health ,S6132,Physical Support - Older People (65+),
DALESIDE NURSING HOME LIMITED,1938683,29-Oct-19,"3,096.00",Adult Care & Health ,S6135,Physical Support - Older People (65+),
DALESIDE NURSING HOME LIMITED,1938683,29-Oct-19,"65,016.00",Adult Care & Health ,S6135,Physical Support - Older People (65+),
DALESIDE NURSING HOME LIMITED,1938683,29-Oct-19,"2,044.00",Adult Care & Health ,S6132,Physical Support - Older People (65+),
DALESIDE NURSING HOME LIMITED,1938683,29-Oct-19,"2,044.00",Adult Care & Health ,S6132,Physical Support - Older People (65+),
DALESIDE NURSING HOME LIMITED,1938683,29-Oct-19,"1,884.00",Adult Care & Health ,S6131,Physical Support - Older People (65+),
DALESIDE NURSING HOME LIMITED,1938683,29-Oct-19,"1,884.00",Adult Care & Health ,S6132,Physical Support - Older People (65+),
DALESIDE NURSING HOME LIMITED,1938683,29-Oct-19,"1,884.00",Adult Care & Health ,S6142,Physical Support - Older People (65+),
DALESIDE NURSING HOME LIMITED,1938683,29-Oct-19,"1,884.00",Adult Care & Health ,S6132,Physical Support - Older People (65+),
DALESIDE NURSING HOME LIMITED,1938683,29-Oct-19,"1,884.00",Adult Care & Health ,S6141,Physical Support - Older People (65+),
DALESIDE NURSING HOME LIMITED,1938683,29-Oct-19,"2,044.00",Adult Care & Health ,S6132,Physical Support - Older People (65+),
DALESIDE NURSING HOME LIMITED,1938683,29-Oct-19,"2,044.00",Adult Care & Health ,S6131,Physical Support - Older People (65+),
DANIELLE DAY NURSERIES LIMITED,1939023,30-Oct-19,"2,688.00",Childrens Services ,E1170,Services,
DANIELLE DAY NURSERIES LIMITED,1939023,30-Oct-19,"10,602.89",Childrens Services ,E1170,Services,
DAVID LEMER,1938685,29-Oct-19,"2,721.18",Business Management ,A1307,Legal Service Provider,
DAWNS CHILDMINDING - DAWN FORD,1939027,30-Oct-19,"1,398.56",Childrens Services ,E1170,Services,
DDA RAMPS & ADAPTIONS LTD,1933452,07-Oct-19,"1,199.00",RE  Housing & Community Safety,C4114,Expenditure on Capital Grants,
DDA RAMPS & ADAPTIONS LTD,1933452,07-Oct-19,"1,010.00",RE  Housing & Community Safety,C4114,Expenditure on Capital Grants,
DDA RAMPS & ADAPTIONS LTD,1933452,07-Oct-19,"1,160.00",RE  Housing & Community Safety,C4114,Expenditure on Capital Grants,
DDA RAMPS & ADAPTIONS LTD,1933452,07-Oct-19,950.00,RE  Housing & Community Safety,C4114,Expenditure on Capital Grants,
DDA RAMPS & ADAPTIONS LTD,1933452,07-Oct-19,720.00,RE  Housing & Community Safety,C4114,Expenditure on Capital Grants,
DDA RAMPS & ADAPTIONS LTD,1933452,07-Oct-19,"1,160.00",RE  Housing & Community Safety,C4114,Expenditure on Capital Grants,
DDA RAMPS & ADAPTIONS LTD,1933452,07-Oct-19,700.00,RE  Housing & Community Safety,C4114,Expenditure on Capital Grants,
DDA RAMPS & ADAPTIONS LTD,1933452,07-Oct-19,"1,199.00",RE  Housing & Community Safety,C4114,Expenditure on Capital Grants,
DDA RAMPS & ADAPTIONS LTD,1938687,29-Oct-19,"1,060.00",RE  Housing & Community Safety,C4114,Expenditure on Capital Grants,
DDA RAMPS & ADAPTIONS LTD,1938687,29-Oct-19,860.00,RE  Housing & Community Safety,C4114,Expenditure on Capital Grants,
DDA RAMPS & ADAPTIONS LTD,1938687,29-Oct-19,"1,160.00",RE  Housing & Community Safety,C4114,Expenditure on Capital Grants,
DDS (DATA DESIGN SERVICES),1933231,04-Oct-19,"1,584.00",Business Management ,F3000,Hired or Contracted services,
DEANA KAY,1935221,16-Oct-19,600.00,Business Management ,B7900,"Advertising, Publicity & Marketing",
DEBORAH PINK REGISTERED CHILDMINDER,1939030,30-Oct-19,960.59,Childrens Services ,E1170,Services,
DENBIGHSHIRE COUNTY COUNCIL,1934976,15-Oct-19,"1,536.86",Delivery Services (Assistant Chief Executive) ,E5730,Care Provision,
DEREKS BUILDING SERVICES LIMITED,1934750,14-Oct-19,"4,955.30",RE  Housing & Community Safety,C4117,Expenditure on Capital Grants,
DEREKS BUILDING SERVICES LIMITED,1934750,14-Oct-19,"5,039.00",RE  Housing & Community Safety,C4115,Expenditure on Capital Grants,
DERWEN COLLEGE,1931789,01-Oct-19,-639.60,Adult Care & Health ,S6142,Customer and Client - Community Care,
DERWEN COLLEGE,1938688,29-Oct-19,-639.60,Adult Care & Health ,S6142,Customer and Client - Community Care,
DERWEN COLLEGE,1931789,01-Oct-19,"1,352.52",Adult Care & Health ,S6142,Learning & Disability Support - Adults (18-64),
DERWEN COLLEGE,1931789,01-Oct-19,"1,014.39",Adult Care & Health ,S6142,Learning & Disability Support - Adults (18-64),
DERWEN COLLEGE,1938688,29-Oct-19,"1,352.52",Adult Care & Health ,S6142,Learning & Disability Support - Adults (18-64),
DERWEN COLLEGE,1938688,29-Oct-19,"1,255.91",Adult Care & Health ,S6142,Learning & Disability Support - Adults (18-64),
DERWEN COLLEGE,1935224,16-Oct-19,"15,963.73",Childrens Services ,E5944,Special Educ Needs Top Ups,
DERWEN COLLEGE,1931789,01-Oct-19,"10,039.73",Childrens Services ,E5944,Special Educ Needs Top Ups,
DEUTSCHE PF AND BRIEF BANK AG MUNICIPAL,CHAPS,17-Oct-19,"66,523.97",Business Management ,X2000,Financing costs,
DEVONSHIRE MANOR HOMES LIMITED,1931790,01-Oct-19,"2,100.00",Adult Care & Health ,S6132,Memory & Cognition Support - Older People (65+),
DEVONSHIRE MANOR HOMES LIMITED,1931790,01-Oct-19,"1,884.00",Adult Care & Health ,S6132,Memory & Cognition Support - Older People (65+),
DEVONSHIRE MANOR HOMES LIMITED,1931790,01-Oct-19,600.00,Adult Care & Health ,S6132,Memory & Cognition Support - Older People (65+),
DEVONSHIRE MANOR HOMES LIMITED,1931790,01-Oct-19,"1,345.71",Adult Care & Health ,S6132,Memory & Cognition Support - Older People (65+),
DEVONSHIRE MANOR HOMES LIMITED,1938690,29-Oct-19,"1,345.71",Adult Care & Health ,S6132,Memory & Cognition Support - Older People (65+),
DEVONSHIRE MANOR HOMES LIMITED,1938690,29-Oct-19,"2,100.00",Adult Care & Health ,S6132,Memory & Cognition Support - Older People (65+),
DEVONSHIRE MANOR HOMES LIMITED,1938690,29-Oct-19,"1,884.00",Adult Care & Health ,S6132,Memory & Cognition Support - Older People (65+),
DEVONSHIRE MANOR HOMES LIMITED,1931790,01-Oct-19,"2,100.00",Adult Care & Health ,S6132,Mental Health Support - Older People (65+),
DEVONSHIRE MANOR HOMES LIMITED,1931790,01-Oct-19,"1,884.00",Adult Care & Health ,S6167,Mental Health Support - Older People (65+),
DEVONSHIRE MANOR HOMES LIMITED,1931790,01-Oct-19,975.00,Adult Care & Health ,S6141,Mental Health Support - Older People (65+),
DEVONSHIRE MANOR HOMES LIMITED,1938690,29-Oct-19,"2,100.00",Adult Care & Health ,S6132,Mental Health Support - Older People (65+),
DEVONSHIRE MANOR HOMES LIMITED,1938690,29-Oct-19,"2,100.00",Adult Care & Health ,S6141,Mental Health Support - Older People (65+),
DEVONSHIRE MANOR HOMES LIMITED,1938690,29-Oct-19,"1,884.00",Adult Care & Health ,S6167,Mental Health Support - Older People (65+),
DEVONSHIRE MANOR HOMES LIMITED,1931790,01-Oct-19,"1,884.00",Adult Care & Health ,S6142,Physical Support - Older People (65+),
DEVONSHIRE MANOR HOMES LIMITED,1931790,01-Oct-19,"2,100.00",Adult Care & Health ,S6142,Physical Support - Older People (65+),
DEVONSHIRE MANOR HOMES LIMITED,1931790,01-Oct-19,"1,884.00",Adult Care & Health ,S6132,Physical Support - Older People (65+),
DEVONSHIRE MANOR HOMES LIMITED,1931790,01-Oct-19,"2,100.00",Adult Care & Health ,S6132,Physical Support - Older People (65+),
DEVONSHIRE MANOR HOMES LIMITED,1931790,01-Oct-19,"2,100.00",Adult Care & Health ,S6132,Physical Support - Older People (65+),
DEVONSHIRE MANOR HOMES LIMITED,1931790,01-Oct-19,"2,100.00",Adult Care & Health ,S6132,Physical Support - Older People (65+),
DEVONSHIRE MANOR HOMES LIMITED,1938690,29-Oct-19,"1,884.00",Adult Care & Health ,S6142,Physical Support - Older People (65+),
DEVONSHIRE MANOR HOMES LIMITED,1938690,29-Oct-19,"2,100.00",Adult Care & Health ,S6132,Physical Support - Older People (65+),
DEVONSHIRE MANOR HOMES LIMITED,1938690,29-Oct-19,"2,100.00",Adult Care & Health ,S6132,Physical Support - Older People (65+),
DEVONSHIRE MANOR HOMES LIMITED,1938690,29-Oct-19,"2,100.00",Adult Care & Health ,S6132,Physical Support - Older People (65+),
DEVONSHIRE MANOR HOMES LIMITED,1938690,29-Oct-19,"1,884.00",Adult Care & Health ,S6132,Physical Support - Older People (65+),
DEVONSHIRE MANOR HOMES LIMITED,1938690,29-Oct-19,"2,100.00",Adult Care & Health ,S6142,Physical Support - Older People (65+),
DEVONSHIRE MANOR HOMES LIMITED,1931790,01-Oct-19,"2,100.00",Adult Care & Health ,S6132,Social Care Activities,
DEVONSHIRE MANOR HOMES LIMITED,1931790,01-Oct-19,"1,682.14",Adult Care & Health ,S6131,Social Care Activities,
DEVONSHIRE MANOR HOMES LIMITED,1938690,29-Oct-19,"1,816.71",Adult Care & Health ,S6131,Social Care Activities,
DEVONSHIRE MANOR HOMES LIMITED,1938690,29-Oct-19,"2,100.00",Adult Care & Health ,S6132,Social Care Activities,
DG SERVICING LTD,1933453,07-Oct-19,"5,550.85",RE  Housing & Community Safety,C4117,Expenditure on Capital Grants,
DIANE HALL,1939033,30-Oct-19,"1,895.49",Childrens Services ,E1170,Services,
DIGITAL ASSOCIATE (MKTG) LIMITED,1932115,02-Oct-19,947.09,Childrens Services ,E9965,Grants & Subscriptions,
DIGITAL ASSOCIATE (MKTG) LIMITED,1935673,17-Oct-19,"1,131.90",Childrens Services ,E9965,Grants & Subscriptions,
DINAS LANE MEDICAL CENTRE,1937416,24-Oct-19,"1,300.00",Adult Care & Health ,P4201,Hired or Contracted services,
DISCLOSURE & BARRING SERVICES,1937418,24-Oct-19,"5,984.00",Business Management ,P1000,Services,
DISCLOSURE & BARRING SERVICES,1933923,09-Oct-19,"11,264.00",Business Management ,P1000,Services,
DOWHIGH LIMITED,1934184,10-Oct-19,"28,080.77",Business Management ,X8500,Credit,
DR CLARE MCKENNA,1933704,08-Oct-19,585.00,Childrens Services ,E7041,Care Provision,
DR FIONA JANE BOOTH,1933927,09-Oct-19,"2,272.80",Delivery Services (Assistant Chief Executive) ,L4950,Services,
DR JENNIFER ANNE PERKINS,1933928,09-Oct-19,"1,867.80",Delivery Services (Assistant Chief Executive) ,L4950,Services,
DR LOUISE MAY LIMITED T/A KARE PLUS WIRRAL,1934754,14-Oct-19,"39,780.00",Adult Care & Health ,S6132,Physical Support - Older People (65+),
DR RUSSELL D CROFT,1937424,24-Oct-19,956.32,Business Management ,A1305,Legal Service Provider,
DR SIOBHAN HARTY,1933930,09-Oct-19,"1,489.50",Delivery Services (Assistant Chief Executive) ,L4950,Services,
DR TINA GOODSON,1932562,03-Oct-19,"2,750.00",Childrens Services ,E7042,Training Expenses,
DR TINA GOODSON,1932562,03-Oct-19,"2,750.00",Childrens Services ,E7042,Training Expenses,
DRYDENS LIMITED,1936826,21-Oct-19,"1,366.60",Business Management ,F5110,Bailiffs,
DUCKLINGS DAY NURSERY,1939038,30-Oct-19,"3,225.60",Childrens Services ,E1170,Services,
DUCKLINGS DAY NURSERY,1939037,30-Oct-19,"8,870.40",Childrens Services ,E1170,Services,
DUCKLINGS DAY NURSERY,1939038,30-Oct-19,"7,057.89",Childrens Services ,E1170,Services,
DUCKLINGS DAY NURSERY,1939037,30-Oct-19,"8,799.46",Childrens Services ,E1170,Services,
DUNDORAN NURSING HOME,1931795,01-Oct-19,"2,100.00",Adult Care & Health ,S6121,Learning & Disability Support - Older People (65+),
DUNDORAN NURSING HOME,1931795,01-Oct-19,"2,116.00",Adult Care & Health ,S6121,Learning & Disability Support - Older People (65+),
DUNDORAN NURSING HOME,1938693,29-Oct-19,"2,116.00",Adult Care & Health ,S6121,Learning & Disability Support - Older People (65+),
DUNDORAN NURSING HOME,1938693,29-Oct-19,"2,100.00",Adult Care & Health ,S6121,Learning & Disability Support - Older People (65+),
DUNDORAN NURSING HOME,1931795,01-Oct-19,"4,200.00",Adult Care & Health ,S6132,Memory & Cognition Support - Adults (18-64),
DUNDORAN NURSING HOME,1931795,01-Oct-19,"2,044.00",Adult Care & Health ,S6121,Memory & Cognition Support - Adults (18-64),
DUNDORAN NURSING HOME,1938693,29-Oct-19,"2,044.00",Adult Care & Health ,S6121,Memory & Cognition Support - Adults (18-64),
DUNDORAN NURSING HOME,1938693,29-Oct-19,"4,200.00",Adult Care & Health ,S6132,Memory & Cognition Support - Adults (18-64),
DUNDORAN NURSING HOME,1931795,01-Oct-19,"2,116.00",Adult Care & Health ,S6132,Memory & Cognition Support - Older People (65+),
DUNDORAN NURSING HOME,1931795,01-Oct-19,"2,116.00",Adult Care & Health ,S6132,Memory & Cognition Support - Older People (65+),
DUNDORAN NURSING HOME,1931795,01-Oct-19,"1,738.14",Adult Care & Health ,S6141,Memory & Cognition Support - Older People (65+),
DUNDORAN NURSING HOME,1931795,01-Oct-19,"4,200.00",Adult Care & Health ,S6141,Memory & Cognition Support - Older People (65+),
DUNDORAN NURSING HOME,1931795,01-Oct-19,"2,116.00",Adult Care & Health ,S6141,Memory & Cognition Support - Older People (65+),
DUNDORAN NURSING HOME,1931795,01-Oct-19,"5,880.00",Adult Care & Health ,S6141,Memory & Cognition Support - Older People (65+),
DUNDORAN NURSING HOME,1931795,01-Oct-19,"2,116.00",Adult Care & Health ,S6141,Memory & Cognition Support - Older People (65+),
DUNDORAN NURSING HOME,1931795,01-Oct-19,"5,880.00",Adult Care & Health ,S6141,Memory & Cognition Support - Older People (65+),
DUNDORAN NURSING HOME,1931795,01-Oct-19,"5,880.00",Adult Care & Health ,S6141,Memory & Cognition Support - Older People (65+),
DUNDORAN NURSING HOME,1931795,01-Oct-19,"2,116.00",Adult Care & Health ,S6141,Memory & Cognition Support - Older People (65+),
DUNDORAN NURSING HOME,1931795,01-Oct-19,"2,116.00",Adult Care & Health ,S6141,Memory & Cognition Support - Older People (65+),
DUNDORAN NURSING HOME,1931795,01-Oct-19,"5,880.00",Adult Care & Health ,S6141,Memory & Cognition Support - Older People (65+),
DUNDORAN NURSING HOME,1931795,01-Oct-19,"2,116.00",Adult Care & Health ,S6141,Memory & Cognition Support - Older People (65+),
DUNDORAN NURSING HOME,1931795,01-Oct-19,"5,880.00",Adult Care & Health ,S6141,Memory & Cognition Support - Older People (65+),
DUNDORAN NURSING HOME,1938693,29-Oct-19,906.86,Adult Care & Health ,S6141,Memory & Cognition Support - Older People (65+),
DUNDORAN NURSING HOME,1938693,29-Oct-19,"2,520.00",Adult Care & Health ,S6141,Memory & Cognition Support - Older People (65+),
DUNDORAN NURSING HOME,1938693,29-Oct-19,"2,116.00",Adult Care & Health ,S6132,Memory & Cognition Support - Older People (65+),
DUNDORAN NURSING HOME,1938693,29-Oct-19,529.00,Adult Care & Health ,S6132,Memory & Cognition Support - Older People (65+),
DUNDORAN NURSING HOME,1931795,01-Oct-19,"2,116.00",Adult Care & Health ,S6132,Mental Health Support - Older People (65+),
DUNDORAN NURSING HOME,1938693,29-Oct-19,755.71,Adult Care & Health ,S6132,Mental Health Support - Older People (65+),
DUNDORAN NURSING HOME,1931795,01-Oct-19,"2,116.00",Adult Care & Health ,S6167,Physical Support - Older People (65+),
DUNDORAN NURSING HOME,1931795,01-Oct-19,"2,116.00",Adult Care & Health ,S6132,Physical Support - Older People (65+),
DUNDORAN NURSING HOME,1931795,01-Oct-19,"2,116.00",Adult Care & Health ,S6132,Physical Support - Older People (65+),
DUNDORAN NURSING HOME,1931795,01-Oct-19,"2,116.00",Adult Care & Health ,S6132,Physical Support - Older People (65+),
DUNDORAN NURSING HOME,1931795,01-Oct-19,"2,044.00",Adult Care & Health ,S6132,Physical Support - Older People (65+),
DUNDORAN NURSING HOME,1931795,01-Oct-19,"2,116.00",Adult Care & Health ,S6132,Physical Support - Older People (65+),
DUNDORAN NURSING HOME,1931795,01-Oct-19,"2,116.00",Adult Care & Health ,S6141,Physical Support - Older People (65+),
DUNDORAN NURSING HOME,1931795,01-Oct-19,"1,500.00",Adult Care & Health ,S6142,Physical Support - Older People (65+),
DUNDORAN NURSING HOME,1931795,01-Oct-19,529.00,Adult Care & Health ,S6141,Physical Support - Older People (65+),
DUNDORAN NURSING HOME,1938693,29-Oct-19,"2,044.00",Adult Care & Health ,S6132,Physical Support - Older People (65+),
DUNDORAN NURSING HOME,1938693,29-Oct-19,"2,116.00",Adult Care & Health ,S6132,Physical Support - Older People (65+),
DUNDORAN NURSING HOME,1938693,29-Oct-19,"2,116.00",Adult Care & Health ,S6141,Physical Support - Older People (65+),
DUNDORAN NURSING HOME,1938693,29-Oct-19,"2,116.00",Adult Care & Health ,S6132,Physical Support - Older People (65+),
DUNDORAN NURSING HOME,1938693,29-Oct-19,"2,116.00",Adult Care & Health ,S6132,Physical Support - Older People (65+),
DUNDORAN NURSING HOME,1938693,29-Oct-19,"2,116.00",Adult Care & Health ,S6132,Physical Support - Older People (65+),
DUNDORAN NURSING HOME,1938693,29-Oct-19,"2,116.00",Adult Care & Health ,S6167,Physical Support - Older People (65+),
DUNDORAN NURSING HOME,1938693,29-Oct-19,"2,100.00",Adult Care & Health ,S6142,Physical Support - Older People (65+),
DUNDORAN NURSING HOME,1938693,29-Oct-19,"2,116.00",Adult Care & Health ,S6141,Physical Support - Older People (65+),
DUNDORAN NURSING HOME,1938693,29-Oct-19,"1,511.43",Adult Care & Health ,S6141,Physical Support - Older People (65+),
DUNDORAN NURSING HOME,1938693,29-Oct-19,"1,964.86",Adult Care & Health ,S6167,Social Care Activities,
DUNDORAN NURSING HOME,1938693,29-Oct-19,"2,116.00",Adult Care & Health ,S6167,Social Care Activities,
DURHAM COUNTY COUNCIL,1934443,11-Oct-19,"30,780.00",Childrens Services ,E7080,Care Provision,
DYFODOL-FUTURES LIMITED,1934186,10-Oct-19,"1,580.00",Childrens Services ,E7080,Care Provision,
DYFODOL-FUTURES LIMITED,1937177,23-Oct-19,"3,160.00",Childrens Services ,E7080,Care Provision,
E A REED & SONS,1932120,02-Oct-19,684.00,Delivery Services (Assistant Chief Executive) ,L4972,Grounds Maintenance,
E A REED & SONS,1935697,17-Oct-19,"1,020.00",Delivery Services (Assistant Chief Executive) ,L4974,Grounds Maintenance,
E A REED & SONS,1935697,17-Oct-19,"1,896.00",Delivery Services (Assistant Chief Executive) ,L4973,"Repairs, alterations and maintenance",
E A REED & SONS,1936996,22-Oct-19,"1,512.00",Delivery Services (Assistant Chief Executive) ,L4973,"Repairs, alterations and maintenance",
E A REED & SONS,1935697,17-Oct-19,"1,500.00",Delivery Services (Assistant Chief Executive) ,L4971,"Repairs, alterations and maintenance",
ECLIPSE ACCESS SOLUTIONS LTD,1933460,07-Oct-19,"5,020.00",RE  Housing & Community Safety,C4117,Expenditure on Capital Grants,
ECLIPSE ACCESS SOLUTIONS LTD,1933460,07-Oct-19,"1,150.00",RE  Housing & Community Safety,C4114,Expenditure on Capital Grants,
ECLIPSE ACCESS SOLUTIONS LTD,1936827,21-Oct-19,"2,405.00",RE  Housing & Community Safety,C4117,Expenditure on Capital Grants,
ECLIPSE ACCESS SOLUTIONS LTD,1936827,21-Oct-19,"2,400.00",RE  Housing & Community Safety,C4117,Expenditure on Capital Grants,
ECLIPSE ACCESS SOLUTIONS LTD,1936827,21-Oct-19,"4,938.00",RE  Housing & Community Safety,C4117,Expenditure on Capital Grants,
ECLIPSE ACCESS SOLUTIONS LTD,1936827,21-Oct-19,"4,835.00",RE  Housing & Community Safety,C4115,Expenditure on Capital Grants,
EDSENTIAL,1937430,24-Oct-19,"138,057.00",Childrens Services ,E6600,Contributions,
EJF ASSOCIATES LIMITED T/A CAPE PRE-SCHOOL,1939043,30-Oct-19,"6,323.08",Childrens Services ,E1170,Services,
EJF ASSOCIATES LIMITED T/A CAPE PRE-SCHOOL,1939044,30-Oct-19,886.41,Childrens Services ,E1170,Services,
ELDER HOMES NORTH LLP-IN ADMINISTRATION,1931799,01-Oct-19,"4,120.00",Adult Care & Health ,S6167,Mental Health Support - Older People (65+),
ELDER HOMES NORTH LLP-IN ADMINISTRATION,1938698,29-Oct-19,"4,120.00",Adult Care & Health ,S6167,Mental Health Support - Older People (65+),
ELECTORAL REFORM SERVICES,1931800,01-Oct-19,"13,747.08",Business Management ,A5000,"Printing, Stationery & General Office Expenses",
ELECTORAL REFORM SERVICES,1933463,07-Oct-19,"4,371.29",Business Management ,A5000,"Printing, Stationery & General Office Expenses",
ELECTORAL REFORM SERVICES,1935716,17-Oct-19,"20,318.64",Business Management ,A5000,"Printing, Stationery & General Office Expenses",
ELECTORAL REFORM SERVICES,1935716,17-Oct-19,"9,092.21",Business Management ,A5000,"Printing, Stationery & General Office Expenses",
ELIOR UK PLC,1938447,28-Oct-19,784.99,Adult Care & Health ,P4201,"Advertising, Publicity & Marketing",
ELIZABETH FITZROY SUPPORT,1931801,01-Oct-19,"5,133.00",Adult Care & Health ,S6142,Learning & Disability Support - Adults (18-64),
ELIZABETH FITZROY SUPPORT,1938699,29-Oct-19,"5,133.00",Adult Care & Health ,S6142,Learning & Disability Support - Adults (18-64),
EMBRACE CARE LIMITED,1931802,01-Oct-19,"1,704.04",Adult Care & Health ,S6142,Mental Health Support - Older People (65+),
EMBRACE CARE LIMITED,1938700,29-Oct-19,"1,704.04",Adult Care & Health ,S6142,Mental Health Support - Older People (65+),
EMMA BULLOCK - CHILDMINDER,1939047,30-Oct-19,"1,612.80",Childrens Services ,E1170,Services,
EMMA BULLOCK - CHILDMINDER,1939047,30-Oct-19,548.73,Childrens Services ,E1170,Services,
EMMA FREEMAN,1931803,01-Oct-19,816.00,Business Management ,A1305,Legal Service Provider,
EMV BUILDING SERVICES LIMITED,1937860,25-Oct-19,"1,140.00",Childrens Services ,E5500,"Repairs, alterations and maintenance",
ENERGY ASSETS LIMITED,1933465,07-Oct-19,"11,276.44",Children & Young People,C2006,Contractors - Main,
ENGLISH CHURCHES HOUSING GROUP (PART OF RIVERSIDE GROUP),1937183,23-Oct-19,"5,216.25",Economic & Housing Growth ,H7180,Grants Paid,
ENGLISH CHURCHES HOUSING GROUP (PART OF RIVERSIDE GROUP),1937183,23-Oct-19,"14,838.77",Economic & Housing Growth ,H7180,Grants Paid,
ENGLISH CHURCHES HOUSING GROUP (PART OF RIVERSIDE GROUP),1937183,23-Oct-19,"18,334.26",Economic & Housing Growth ,H7180,Grants Paid,
ENTERPRISE RENT-A-CAR UK LIMITED T/A ENTERPRISE FLEX-E-RENT,1938448,28-Oct-19,"1,890.00",Delivery Services (Assistant Chief Executive) ,T4020,Contract Hire & Operating Leases,
ENTERTAINMENT TRADE MANAGEMENT (AGENCIES) LIMITED,1934981,15-Oct-19,"6,600.00",Delivery Services (Assistant Chief Executive) ,L3950,"Advertising, Publicity & Marketing",
ESSANDORE LIMITED,1934459,11-Oct-19,"22,540.11",Childrens Services ,E7080,Care Provision,
EVANS TANKER SERVICES LIMITED,1938449,28-Oct-19,876.00,Delivery Services (Assistant Chief Executive) ,T4020,"Equipment, Furniture & Materials",
EVENTS DESIGN COMPANY LIMITED,1933942,09-Oct-19,845.40,Business Management ,B7535,General Supplies and Services,
EVENTS DESIGN COMPANY LIMITED,1933942,09-Oct-19,"2,968.80",Business Management ,B7535,General Supplies and Services,
EVENTS DESIGN COMPANY LIMITED,1933942,09-Oct-19,768.00,Business Management ,B7535,General Supplies and Services,
EVENTS DESIGN COMPANY LIMITED,1934191,10-Oct-19,"1,365.00",Business Management ,B7537,General Supplies and Services,
EVERITE WINDOWS,1932129,02-Oct-19,"1,291.50",Childrens Services ,E9965,Grants & Subscriptions,
EVERITE WINDOWS,1935733,17-Oct-19,861.00,Childrens Services ,E9965,Grants & Subscriptions,
EVERITE WINDOWS,1936588,18-Oct-19,"1,059.09",Childrens Services ,E9965,Grants & Subscriptions,
EVERSLEY NURSERY SCHOOL,1939051,30-Oct-19,"6,720.00",Childrens Services ,E1170,Services,
EVERSLEY NURSERY SCHOOL,1939051,30-Oct-19,"5,011.03",Childrens Services ,E1170,Services,
EXCEL FOSTERING LIMITED,1933710,08-Oct-19,"4,751.24",Childrens Services ,E7080,Care Provision,
EXCEL FOSTERING LIMITED,1933710,08-Oct-19,"4,751.24",Childrens Services ,E7080,Care Provision,
EXCEL HOUSING SOLUTIONS,1937186,23-Oct-19,"11,288.95",Economic & Housing Growth ,H7180,Grants Paid,
EYE CAB LIMITED,1933467,07-Oct-19,"5,251.25",Delivery Services (Assistant Chief Executive) ,E5730,School Transport - Primary,
EYE CAB LIMITED,1934984,15-Oct-19,"6,060.20",Delivery Services (Assistant Chief Executive) ,E5730,School Transport - Primary,
EYE CAB LIMITED,1936831,21-Oct-19,"5,442.25",Delivery Services (Assistant Chief Executive) ,E5730,School Transport - Primary,
EYE CAB LIMITED,1938702,29-Oct-19,"5,392.25",Delivery Services (Assistant Chief Executive) ,E5730,School Transport - Primary,
F G MARSHALL LIMITED,1939052,30-Oct-19,816.82,Delivery Services (Assistant Chief Executive) ,L4950,"Equipment, Furniture & Materials",
F G MARSHALL LIMITED,1939052,30-Oct-19,"1,402.25",Delivery Services (Assistant Chief Executive) ,L4950,"Equipment, Furniture & Materials",
FABBY WOTSIT ABBY O'HALLORAN,1939053,30-Oct-19,861.00,Childrens Services ,E1170,Services,
FAIRFIELD HEALTHCARE LTD,1931804,01-Oct-19,"2,044.00",Adult Care & Health ,S6132,Learning & Disability Support - Older People (65+),
FAIRFIELD HEALTHCARE LTD,1938703,29-Oct-19,"2,044.00",Adult Care & Health ,S6132,Learning & Disability Support - Older People (65+),
FAIRFIELD HEALTHCARE LTD,1931804,01-Oct-19,"2,044.00",Adult Care & Health ,S6131,Memory & Cognition Support - Older People (65+),
FAIRFIELD HEALTHCARE LTD,1938703,29-Oct-19,"2,044.00",Adult Care & Health ,S6131,Memory & Cognition Support - Older People (65+),
FAIRFIELD HEALTHCARE LTD,1931804,01-Oct-19,"2,044.00",Adult Care & Health ,S6131,Mental Health Support - Older People (65+),
FAIRFIELD HEALTHCARE LTD,1931804,01-Oct-19,"2,044.00",Adult Care & Health ,S6131,Mental Health Support - Older People (65+),
FAIRFIELD HEALTHCARE LTD,1938703,29-Oct-19,"2,044.00",Adult Care & Health ,S6131,Mental Health Support - Older People (65+),
FAIRFIELD HEALTHCARE LTD,1938703,29-Oct-19,"2,044.00",Adult Care & Health ,S6131,Mental Health Support - Older People (65+),
FAIRFIELD HEALTHCARE LTD,1931804,01-Oct-19,"2,044.00",Adult Care & Health ,S6131,Physical Support - Older People (65+),
FAIRFIELD HEALTHCARE LTD,1931804,01-Oct-19,"2,044.00",Adult Care & Health ,S6131,Physical Support - Older People (65+),
FAIRFIELD HEALTHCARE LTD,1931804,01-Oct-19,"1,606.00",Adult Care & Health ,S6131,Physical Support - Older People (65+),
FAIRFIELD HEALTHCARE LTD,1931804,01-Oct-19,"2,044.00",Adult Care & Health ,S6141,Physical Support - Older People (65+),
FAIRFIELD HEALTHCARE LTD,1931804,01-Oct-19,"2,044.00",Adult Care & Health ,S6131,Physical Support - Older People (65+),
